{"text_format":"1","workbook":"xlsx","n_sheets":2,"sheets":["Oiseaux europe","Mammiferes"],"not_rendered":{"charts":0,"images":0,"macros":1,"external_links":0,"defined_names":1,"comments":0,"pivot_tables":0},"unopened":[],"bounds":{"document_bytes":16777216,"sheet_cells":100000,"rows_first":2000,"rows_last":500,"rows_between":2000,"halvings":0,"cell_chars":16384,"cell_head_chars":4096},"cells_cut":0,"cells_raw":0,"read":"whole","date_system":"1900"}

{"sheet":"Oiseaux europe","index":0,"n_rows":1040,"n_cols":9,"rows_kept":1040,"cut":false,"hidden":false,"merged":[]}
["Français","Français (sans accent)","Autre nom","Autre nom (sans accent)","Vernaculaire","Anglais","Ordre","Famille","Liens"]
["Accenteur à gorge noire",{"$f":"StripAccent(A2)","v":"Accenteur a gorge noire"},null,null,"Prunella atrogularis","Black-throated Accentor","Passériformes","Prunellidés","https://www.oiseaux.net/oiseaux/accenteur.a.gorge.noire.html"]
["Accenteur alpin",{"$f":"StripAccent(A3)","v":"Accenteur alpin"},null,null,"Prunella collaris","Alpine Accentor","Passériformes","Prunellidés","https://www.oiseaux.net/oiseaux/accenteur.alpin.html"]
["Accenteur de Radde",{"$f":"StripAccent(A4)","v":"Accenteur de Radde"},null,null,"Prunella ocularis","Radde's Accentor","Passériformes","Prunellidés","https://www.oiseaux.net/oiseaux/accenteur.de.radde.html"]
["Accenteur montanelle",{"$f":"StripAccent(A5)","v":"Accenteur montanelle"},null,null,"Prunella montanella","Siberian Accentor","Passériformes","Prunellidés","https://www.oiseaux.net/oiseaux/accenteur.montanelle.html"]
["Accenteur mouchet",{"$f":"StripAccent(A6)","v":"Accenteur mouchet"},null,null,"Prunella modularis","Dunnock","Passériformes","Prunellidés","https://www.oiseaux.net/oiseaux/accenteur.mouchet.html"]
["Agrobate roux",{"$f":"StripAccent(A7)","v":"Agrobate roux"},null,null,"Cercotrichas galactotes","Rufous-tailed Scrub Robin","Passériformes","Muscicapidés","https://www.oiseaux.net/oiseaux/agrobate.roux.html"]
["Aigle botté",{"$f":"StripAccent(A8)","v":"Aigle botte"},null,null,"Hieraaetus pennatus","Booted Eagle","Accipitriformes","Accipitridés","https://www.oiseaux.net/oiseaux/aigle.botte.html"]
["Aigle criard",{"$f":"StripAccent(A9)","v":"Aigle criard"},null,null,"Clanga clanga","Greater Spotted Eagle","Accipitriformes","Accipitridés","https://www.oiseaux.net/oiseaux/aigle.criard.html"]
["Aigle de Bonelli",{"$f":"StripAccent(A10)","v":"Aigle de Bonelli"},null,null,"Aquila fasciata","Bonelli's Eagle","Accipitriformes","Accipitridés","https://www.oiseaux.net/oiseaux/aigle.de.bonelli.html"]
["Aigle des steppes",{"$f":"StripAccent(A11)","v":"Aigle des steppes"},null,null,"Aquila nipalensis","Steppe Eagle","Accipitriformes","Accipitridés","https://www.oiseaux.net/oiseaux/aigle.des.steppes.html"]
["Aigle ibérique",{"$f":"StripAccent(A12)","v":"Aigle iberique"},null,null,"Aquila adalberti","Spanish Imperial Eagle","Accipitriformes","Accipitridés","https://www.oiseaux.net/oiseaux/aigle.iberique.html"]
["Aigle impérial",{"$f":"StripAccent(A13)","v":"Aigle imperial"},null,null,"Aquila heliaca","Eastern Imperial Eagle","Accipitriformes","Accipitridés","https://www.oiseaux.net/oiseaux/aigle.imperial.html"]
["Aigle pomarin",{"$f":"StripAccent(A14)","v":"Aigle pomarin"},null,null,"Clanga pomarina","Lesser Spotted Eagle","Accipitriformes","Accipitridés","https://www.oiseaux.net/oiseaux/aigle.pomarin.html"]
["Aigle ravisseur",{"$f":"StripAccent(A15)","v":"Aigle ravisseur"},null,null,"Aquila rapax","Tawny Eagle","Accipitriformes","Accipitridés","https://www.oiseaux.net/oiseaux/aigle.ravisseur.html"]
["Aigle royal",{"$f":"StripAccent(A16)","v":"Aigle royal"},null,null,"Aquila chrysaetos","Golden Eagle","Accipitriformes","Accipitridés","https://www.oiseaux.net/oiseaux/aigle.royal.html"]
["Aigrette ardoisée",{"$f":"StripAccent(A17)","v":"Aigrette ardoisee"},null,null,"Egretta ardesiaca","Black Heron","Pélécaniformes","Ardéidés","https://www.oiseaux.net/oiseaux/aigrette.ardoisee.html"]
["Aigrette bleue",{"$f":"StripAccent(A18)","v":"Aigrette bleue"},null,null,"Egretta caerulea","Little Blue Heron","Pélécaniformes","Ardéidés","https://www.oiseaux.net/oiseaux/aigrette.bleue.html"]
["Aigrette des récifs",{"$f":"StripAccent(A19)","v":"Aigrette des recifs"},"Aigrette à gorge blanche",{"$f":"StripAccent(C19)","v":"Aigrette a gorge blanche"},"Egretta gularis","Western Reef Heron","Pélécaniformes","Ardéidés","https://www.oiseaux.net/oiseaux/aigrette.des.recifs.html"]
["Aigrette dimorphe",{"$f":"StripAccent(A20)","v":"Aigrette dimorphe"},null,{"$f":"StripAccent(C20)","v":""},"Egretta dimorpha","Dimorphic Egret","Pélécaniformes","Ardéidés","https://www.oiseaux.net/oiseaux/aigrette.dimorphe.html"]
["Aigrette garzette",{"$f":"StripAccent(A21)","v":"Aigrette garzette"},null,{"$f":"StripAccent(C21)","v":""},"Egretta garzetta","Little Egret","Pélécaniformes","Ardéidés","https://www.oiseaux.net/oiseaux/aigrette.garzette.html"]
["Aigrette neigeuse",{"$f":"StripAccent(A22)","v":"Aigrette neigeuse"},null,{"$f":"StripAccent(C22)","v":""},"Egretta thula","Snowy Egret","Pélécaniformes","Ardéidés","https://www.oiseaux.net/oiseaux/aigrette.neigeuse.html"]
["Aigrette tricolore",{"$f":"StripAccent(A23)","v":"Aigrette tricolore"},null,{"$f":"StripAccent(C23)","v":""},"Egretta tricolor","Tricolored Heron","Pélécaniformes","Ardéidés","https://www.oiseaux.net/oiseaux/aigrette.tricolore.html"]
["Albatros à nez jaune",{"$f":"StripAccent(A24)","v":"Albatros a nez jaune"},null,{"$f":"StripAccent(C24)","v":""},"Thalassarche chlororhynchos","Atlantic Yellow-nosed Albatross","Procellariiformes","Diomédéidés","https://www.oiseaux.net/oiseaux/albatros.a.nez.jaune.html"]
["Albatros à pieds noirs",{"$f":"StripAccent(A25)","v":"Albatros a pieds noirs"},null,{"$f":"StripAccent(C25)","v":""},"Phoebastria nigripes","Black-footed Albatross","Procellariiformes","Diomédéidés","https://www.oiseaux.net/oiseaux/albatros.a.pieds.noirs.html"]
["Albatros à sourcils noirs",{"$f":"StripAccent(A26)","v":"Albatros a sourcils noirs"},null,{"$f":"StripAccent(C26)","v":""},"Thalassarche melanophris","Black-browed Albatross","Procellariiformes","Diomédéidés","https://www.oiseaux.net/oiseaux/albatros.a.sourcils.noirs.html"]
["Albatros de Tristan",{"$f":"StripAccent(A27)","v":"Albatros de Tristan"},"Albatros de Tristan da Cunha",{"$f":"StripAccent(C27)","v":"Albatros de Tristan da Cunha"},"Diomedea dabbenena","Tristan Albatross","Procellariiformes","Diomédéidés","https://www.oiseaux.net/oiseaux/albatros.de.tristan.html"]
["Albatros hurleur",{"$f":"StripAccent(A28)","v":"Albatros hurleur"},null,{"$f":"StripAccent(C28)","v":""},"Diomedea exulans","Snowy Albatross","Procellariiformes","Diomédéidés","https://www.oiseaux.net/oiseaux/albatros.hurleur.html"]
["Alouette bilophe",{"$f":"StripAccent(A29)","v":"Alouette bilophe"},null,{"$f":"StripAccent(C29)","v":""},"Eremophila bilopha","Temminck's Lark","Passériformes","Alaudidés","https://www.oiseaux.net/oiseaux/alouette.bilophe.html"]
["Alouette calandre",{"$f":"StripAccent(A30)","v":"Alouette calandre"},null,{"$f":"StripAccent(C30)","v":""},"Melanocorypha calandra","Calandra Lark","Passériformes","Alaudidés","https://www.oiseaux.net/oiseaux/alouette.calandre.html"]
["Alouette calandrelle",{"$f":"StripAccent(A31)","v":"Alouette calandrelle"},null,{"$f":"StripAccent(C31)","v":""},"Calandrella brachydactyla","Greater Short-toed Lark","Passériformes","Alaudidés","https://www.oiseaux.net/oiseaux/alouette.calandrelle.html"]
["Alouette de Clot-Bey",{"$f":"StripAccent(A32)","v":"Alouette de Clot-Bey"},null,{"$f":"StripAccent(C32)","v":""},"Ramphocoris clotbey","Thick-billed Lark","Passériformes","Alaudidés","https://www.oiseaux.net/oiseaux/alouette.de.clot-bey.html"]
["Alouette de Heine",{"$f":"StripAccent(A33)","v":"Alouette de Heine"},null,{"$f":"StripAccent(C33)","v":""},"Alaudala heinei","Turkestan Short-toed Lark","Passériformes","Alaudidés","https://www.oiseaux.net/oiseaux/alouette.de.heine.html"]
["Alouette de Swinhoe",{"$f":"StripAccent(A34)","v":"Alouette de Swinhoe"},null,{"$f":"StripAccent(C34)","v":""},"Alaudala cheleensis","Asian Short-toed Lark","Passériformes","Alaudidés","https://www.oiseaux.net/oiseaux/alouette.de.swinhoe.html"]
["Alouette des champs",{"$f":"StripAccent(A35)","v":"Alouette des champs"},null,{"$f":"StripAccent(C35)","v":""},"Alauda arvensis","Eurasian Skylark","Passériformes","Alaudidés","https://www.oiseaux.net/oiseaux/alouette.des.champs.html"]
["Alouette gulgule",{"$f":"StripAccent(A36)","v":"Alouette gulgule"},null,{"$f":"StripAccent(C36)","v":""},"Alauda gulgula","Oriental Skylark","Passériformes","Alaudidés","https://www.oiseaux.net/oiseaux/alouette.gulgule.html"]
["Alouette haussecol",{"$f":"StripAccent(A37)","v":"Alouette haussecol"},"Alouette hausse-col",{"$f":"StripAccent(C37)","v":"Alouette hausse-col"},"Eremophila alpestris","Horned Lark","Passériformes","Alaudidés","https://www.oiseaux.net/oiseaux/alouette.haussecol.html"]
["Alouette leucoptère",{"$f":"StripAccent(A38)","v":"Alouette leucoptere"},null,{"$f":"StripAccent(C38)","v":""},"Alauda leucoptera","White-winged Lark","Passériformes","Alaudidés","https://www.oiseaux.net/oiseaux/alouette.leucoptere.html"]
["Alouette lulu",{"$f":"StripAccent(A39)","v":"Alouette lulu"},null,{"$f":"StripAccent(C39)","v":""},"Lullula arborea","Woodlark","Passériformes","Alaudidés","https://www.oiseaux.net/oiseaux/alouette.lulu.html"]
["Alouette monticole",{"$f":"StripAccent(A40)","v":"Alouette monticole"},null,{"$f":"StripAccent(C40)","v":""},"Melanocorypha bimaculata","Bimaculated Lark","Passériformes","Alaudidés","https://www.oiseaux.net/oiseaux/alouette.monticole.html"]
["Alouette nègre",{"$f":"StripAccent(A41)","v":"Alouette negre"},null,{"$f":"StripAccent(C41)","v":""},"Melanocorypha yeltoniensis","Black Lark","Passériformes","Alaudidés","https://www.oiseaux.net/oiseaux/alouette.negre.html"]
["Alouette pispolette",{"$f":"StripAccent(A42)","v":"Alouette pispolette"},null,{"$f":"StripAccent(C42)","v":""},"Alaudala rufescens","Mediterranean Short-toed Lark","Passériformes","Alaudidés","https://www.oiseaux.net/oiseaux/alouette.pispolette.html"]
["Amadine cou-coupé",{"$f":"StripAccent(A43)","v":"Amadine cou-coupe"},null,{"$f":"StripAccent(C43)","v":""},"Amadina fasciata","Cut-throat Finch","Passériformes","Estrildidés","https://www.oiseaux.net/oiseaux/amadine.cou-coupe.html"]
["Ammomane élégante",{"$f":"StripAccent(A44)","v":"Ammomane elegante"},null,{"$f":"StripAccent(C44)","v":""},"Ammomanes cinctura","Bar-tailed Lark","Passériformes","Alaudidés","https://www.oiseaux.net/oiseaux/ammomane.elegante.html"]
["Ammomane isabelline",{"$f":"StripAccent(A45)","v":"Ammomane isabelline"},null,{"$f":"StripAccent(C45)","v":""},"Ammomanes deserti","Desert Lark","Passériformes","Alaudidés","https://www.oiseaux.net/oiseaux/ammomane.isabelline.html"]
["Anhinga d'Afrique",{"$f":"StripAccent(A46)","v":"Anhinga d'Afrique"},null,{"$f":"StripAccent(C46)","v":""},"Anhinga rufa","African Darter","Suliformes","Anhingidés","https://www.oiseaux.net/oiseaux/anhinga.d.afrique.html"]
["Arlequin plongeur",{"$f":"StripAccent(A47)","v":"Arlequin plongeur"},null,{"$f":"StripAccent(C47)","v":""},"Histrionicus histrionicus","Harlequin Duck","Ansériformes","Anatidés","https://www.oiseaux.net/oiseaux/arlequin.plongeur.html"]
["Astrild à joues orange",{"$f":"StripAccent(A48)","v":"Astrild a joues orange"},null,{"$f":"StripAccent(C48)","v":""},"Estrilda melpoda","Orange-cheeked Waxbill","Passériformes","Estrildidés","https://www.oiseaux.net/oiseaux/astrild.a.joues.orange.html"]
["Astrild cendré",{"$f":"StripAccent(A49)","v":"Astrild cendre"},null,{"$f":"StripAccent(C49)","v":""},"Estrilda troglodytes","Black-rumped Waxbill","Passériformes","Estrildidés","https://www.oiseaux.net/oiseaux/astrild.cendre.html"]
["Astrild ondulé",{"$f":"StripAccent(A50)","v":"Astrild ondule"},null,{"$f":"StripAccent(C50)","v":""},"Estrilda astrild","Common Waxbill","Passériformes","Estrildidés","https://www.oiseaux.net/oiseaux/astrild.ondule.html"]
["Autour des palombes",{"$f":"StripAccent(A51)","v":"Autour des palombes"},null,{"$f":"StripAccent(C51)","v":""},"Accipiter gentilis","Eurasian Goshawk","Accipitriformes","Accipitridés","https://www.oiseaux.net/oiseaux/autour.des.palombes.html"]
["Autour sombre",{"$f":"StripAccent(A52)","v":"Autour sombre"},null,{"$f":"StripAccent(C52)","v":""},"Melierax metabates","Dark Chanting Goshawk","Accipitriformes","Accipitridés","https://www.oiseaux.net/oiseaux/autour.sombre.html"]
["Avocette d'Amérique",{"$f":"StripAccent(A53)","v":"Avocette d'Amerique"},null,{"$f":"StripAccent(C53)","v":""},"Recurvirostra americana","American Avocet","Charadriiformes","Récurvirostridés","https://www.oiseaux.net/oiseaux/avocette.d.amerique.html"]
["Avocette élégante",{"$f":"StripAccent(A54)","v":"Avocette elegante"},null,{"$f":"StripAccent(C54)","v":""},"Recurvirostra avosetta","Pied Avocet","Charadriiformes","Récurvirostridés","https://www.oiseaux.net/oiseaux/avocette.elegante.html"]
["Balbuzard pêcheur",{"$f":"StripAccent(A55)","v":"Balbuzard pecheur"},null,{"$f":"StripAccent(C55)","v":""},"Pandion haliaetus","Osprey","Accipitriformes","Pandionidés","https://www.oiseaux.net/oiseaux/balbuzard.pecheur.html"]
["Barge à queue noire",{"$f":"StripAccent(A56)","v":"Barge a queue noire"},null,{"$f":"StripAccent(C56)","v":""},"Limosa limosa","Black-tailed Godwit","Charadriiformes","Scolopacidés","https://www.oiseaux.net/oiseaux/barge.a.queue.noire.html"]
["Barge hudsonienne",{"$f":"StripAccent(A57)","v":"Barge hudsonienne"},null,{"$f":"StripAccent(C57)","v":""},"Limosa haemastica","Hudsonian Godwit","Charadriiformes","Scolopacidés","https://www.oiseaux.net/oiseaux/barge.hudsonienne.html"]
["Barge rousse",{"$f":"StripAccent(A58)","v":"Barge rousse"},null,{"$f":"StripAccent(C58)","v":""},"Limosa lapponica","Bar-tailed Godwit","Charadriiformes","Scolopacidés","https://www.oiseaux.net/oiseaux/barge.rousse.html"]
["Bartramie des champs",{"$f":"StripAccent(A59)","v":"Bartramie des champs"},"Maubèche des champs",{"$f":"StripAccent(C59)","v":"Maubeche des champs"},"Bartramia longicauda","Upland Sandpiper","Charadriiformes","Scolopacidés","https://www.oiseaux.net/oiseaux/bartramie.des.champs.html"]
["Bateleur des savanes",{"$f":"StripAccent(A60)","v":"Bateleur des savanes"},null,{"$f":"StripAccent(C60)","v":""},"Terathopius ecaudatus","Bateleur","Accipitriformes","Accipitridés","https://www.oiseaux.net/oiseaux/bateleur.des.savanes.html"]
["Bec-croisé bifascié",{"$f":"StripAccent(A61)","v":"Bec-croise bifascie"},null,{"$f":"StripAccent(C61)","v":""},"Loxia leucoptera","Two-barred Crossbill","Passériformes","Fringillidés","https://www.oiseaux.net/oiseaux/bec-croise.bifascie.html"]
["Bec-croisé d'Ecosse",{"$f":"StripAccent(A62)","v":"Bec-croise d'Ecosse"},"Bec-croisé d'Écosse",{"$f":"StripAccent(C62)","v":"Bec-croise d'Ecosse"},"Loxia scotica","Scottish Crossbill","Passériformes","Fringillidés","https://www.oiseaux.net/oiseaux/bec-croise.d.ecosse.html"]
["Bec-croisé des sapins",{"$f":"StripAccent(A63)","v":"Bec-croise des sapins"},null,{"$f":"StripAccent(C63)","v":""},"Loxia curvirostra","Red Crossbill","Passériformes","Fringillidés","https://www.oiseaux.net/oiseaux/bec-croise.des.sapins.html"]
["Bec-croisé perroquet",{"$f":"StripAccent(A64)","v":"Bec-croise perroquet"},null,{"$f":"StripAccent(C64)","v":""},"Loxia pytyopsittacus","Parrot Crossbill","Passériformes","Fringillidés","https://www.oiseaux.net/oiseaux/bec-croise.perroquet.html"]
["Bec-en-ciseaux noir",{"$f":"StripAccent(A65)","v":"Bec-en-ciseaux noir"},null,{"$f":"StripAccent(C65)","v":""},"Rynchops niger","Black Skimmer","Charadriiformes","Laridés","https://www.oiseaux.net/oiseaux/bec-en-ciseaux.noir.html"]
["Bécasse d'Amérique",{"$f":"StripAccent(A66)","v":"Becasse d'Amerique"},null,{"$f":"StripAccent(C66)","v":""},"Scolopax minor","American Woodcock","Charadriiformes","Scolopacidés","https://www.oiseaux.net/oiseaux/becasse.d.amerique.html"]
["Bécasse des bois",{"$f":"StripAccent(A67)","v":"Becasse des bois"},null,{"$f":"StripAccent(C67)","v":""},"Scolopax rusticola","Eurasian Woodcock","Charadriiformes","Scolopacidés","https://www.oiseaux.net/oiseaux/becasse.des.bois.html"]
["Bécasseau à cou roux",{"$f":"StripAccent(A68)","v":"Becasseau a cou roux"},"Bécasseau à col roux",{"$f":"StripAccent(C68)","v":"Becasseau a col roux"},"Calidris ruficollis","Red-necked Stint","Charadriiformes","Scolopacidés","https://www.oiseaux.net/oiseaux/becasseau.a.cou.roux.html"]
["Bécasseau à échasses",{"$f":"StripAccent(A69)","v":"Becasseau a echasses"},null,{"$f":"StripAccent(C69)","v":""},"Calidris himantopus","Stilt Sandpiper","Charadriiformes","Scolopacidés","https://www.oiseaux.net/oiseaux/becasseau.a.echasses.html"]
["Bécasseau à longs doigts",{"$f":"StripAccent(A70)","v":"Becasseau a longs doigts"},null,{"$f":"StripAccent(C70)","v":""},"Calidris subminuta","Long-toed Stint","Charadriiformes","Scolopacidés","https://www.oiseaux.net/oiseaux/becasseau.a.longs.doigts.html"]
["Bécasseau à queue pointue",{"$f":"StripAccent(A71)","v":"Becasseau a queue pointue"},null,{"$f":"StripAccent(C71)","v":""},"Calidris acuminata","Sharp-tailed Sandpiper","Charadriiformes","Scolopacidés","https://www.oiseaux.net/oiseaux/becasseau.a.queue.pointue.html"]
["Bécasseau cocorli",{"$f":"StripAccent(A72)","v":"Becasseau cocorli"},null,{"$f":"StripAccent(C72)","v":""},"Calidris ferruginea","Curlew Sandpiper","Charadriiformes","Scolopacidés","https://www.oiseaux.net/oiseaux/becasseau.cocorli.html"]
["Bécasseau d'Alaska",{"$f":"StripAccent(A73)","v":"Becasseau d'Alaska"},null,{"$f":"StripAccent(C73)","v":""},"Calidris mauri","Western Sandpiper","Charadriiformes","Scolopacidés","https://www.oiseaux.net/oiseaux/becasseau.d.alaska.html"]
["Bécasseau de Baird",{"$f":"StripAccent(A74)","v":"Becasseau de Baird"},null,{"$f":"StripAccent(C74)","v":""},"Calidris bairdii","Baird's Sandpiper","Charadriiformes","Scolopacidés","https://www.oiseaux.net/oiseaux/becasseau.de.baird.html"]
["Bécasseau de Bonaparte",{"$f":"StripAccent(A75)","v":"Becasseau de Bonaparte"},"Bécasseau à croupion blanc",{"$f":"StripAccent(C75)","v":"Becasseau a croupion blanc"},"Calidris fuscicollis","White-rumped Sandpiper","Charadriiformes","Scolopacidés","https://www.oiseaux.net/oiseaux/becasseau.de.bonaparte.html"]
["Bécasseau de l'Anadyr",{"$f":"StripAccent(A76)","v":"Becasseau de l'Anadyr"},null,{"$f":"StripAccent(C76)","v":""},"Calidris tenuirostris","Great Knot","Charadriiformes","Scolopacidés","https://www.oiseaux.net/oiseaux/becasseau.de.l.anadyr.html"]
["Bécasseau de Temminck",{"$f":"StripAccent(A77)","v":"Becasseau de Temminck"},null,{"$f":"StripAccent(C77)","v":""},"Calidris temminckii","Temminck's Stint","Charadriiformes","Scolopacidés","https://www.oiseaux.net/oiseaux/becasseau.de.temminck.html"]
["Bécasseau falcinelle",{"$f":"StripAccent(A78)","v":"Becasseau falcinelle"},null,{"$f":"StripAccent(C78)","v":""},"Calidris falcinellus","Broad-billed Sandpiper","Charadriiformes","Scolopacidés","https://www.oiseaux.net/oiseaux/becasseau.falcinelle.html"]
["Bécasseau maubèche",{"$f":"StripAccent(A79)","v":"Becasseau maubeche"},null,{"$f":"StripAccent(C79)","v":""},"Calidris canutus","Red Knot","Charadriiformes","Scolopacidés","https://www.oiseaux.net/oiseaux/becasseau.maubeche.html"]
["Bécasseau minuscule",{"$f":"StripAccent(A80)","v":"Becasseau minuscule"},null,{"$f":"StripAccent(C80)","v":""},"Calidris minutilla","Least Sandpiper","Charadriiformes","Scolopacidés","https://www.oiseaux.net/oiseaux/becasseau.minuscule.html"]
["Bécasseau minute",{"$f":"StripAccent(A81)","v":"Becasseau minute"},null,{"$f":"StripAccent(C81)","v":""},"Calidris minuta","Little Stint","Charadriiformes","Scolopacidés","https://www.oiseaux.net/oiseaux/becasseau.minute.html"]
["Bécasseau rousset",{"$f":"StripAccent(A82)","v":"Becasseau rousset"},"Bécasseau roussâtre",{"$f":"StripAccent(C82)","v":"Becasseau roussatre"},"Calidris subruficollis","Buff-breasted Sandpiper","Charadriiformes","Scolopacidés","https://www.oiseaux.net/oiseaux/becasseau.rousset.html"]
["Bécasseau sanderling",{"$f":"StripAccent(A83)","v":"Becasseau sanderling"},null,{"$f":"StripAccent(C83)","v":""},"Calidris alba","Sanderling","Charadriiformes","Scolopacidés","https://www.oiseaux.net/oiseaux/becasseau.sanderling.html"]
["Bécasseau semipalmé",{"$f":"StripAccent(A84)","v":"Becasseau semipalme"},null,{"$f":"StripAccent(C84)","v":""},"Calidris pusilla","Semipalmated Sandpiper","Charadriiformes","Scolopacidés","https://www.oiseaux.net/oiseaux/becasseau.semipalme.html"]
["Bécasseau spatule",{"$f":"StripAccent(A85)","v":"Becasseau spatule"},null,{"$f":"StripAccent(C85)","v":""},"Calidris pygmaea","Spoon-billed Sandpiper","Charadriiformes","Scolopacidés","https://www.oiseaux.net/oiseaux/becasseau.spatule.html"]
["Bécasseau tacheté",{"$f":"StripAccent(A86)","v":"Becasseau tachete"},"Bécasseau à poitrine cendrée",{"$f":"StripAccent(C86)","v":"Becasseau a poitrine cendree"},"Calidris melanotos","Pectoral Sandpiper","Charadriiformes","Scolopacidés","https://www.oiseaux.net/oiseaux/becasseau.tachete.html"]
["Bécasseau variable",{"$f":"StripAccent(A87)","v":"Becasseau variable"},null,{"$f":"StripAccent(C87)","v":""},"Calidris alpina","Dunlin","Charadriiformes","Scolopacidés","https://www.oiseaux.net/oiseaux/becasseau.variable.html"]
["Bécasseau violet",{"$f":"StripAccent(A88)","v":"Becasseau violet"},null,{"$f":"StripAccent(C88)","v":""},"Calidris maritima","Purple Sandpiper","Charadriiformes","Scolopacidés","https://www.oiseaux.net/oiseaux/becasseau.violet.html"]
["Bécassin à bec court",{"$f":"StripAccent(A89)","v":"Becassin a bec court"},"Bécassin roux",{"$f":"StripAccent(C89)","v":"Becassin roux"},"Limnodromus griseus","Short-billed Dowitcher","Charadriiformes","Scolopacidés","https://www.oiseaux.net/oiseaux/becassin.a.bec.court.html"]
["Bécassin à long bec",{"$f":"StripAccent(A90)","v":"Becassin a long bec"},null,{"$f":"StripAccent(C90)","v":""},"Limnodromus scolopaceus","Long-billed Dowitcher","Charadriiformes","Scolopacidés","https://www.oiseaux.net/oiseaux/becassin.a.long.bec.html"]
["Bécassine à queue pointue",{"$f":"StripAccent(A91)","v":"Becassine a queue pointue"},null,{"$f":"StripAccent(C91)","v":""},"Gallinago stenura","Pin-tailed Snipe","Charadriiformes","Scolopacidés","https://www.oiseaux.net/oiseaux/becassine.a.queue.pointue.html"]
["Bécassine de Swinhoe",{"$f":"StripAccent(A92)","v":"Becassine de Swinhoe"},null,{"$f":"StripAccent(C92)","v":""},"Gallinago megala","Swinhoe's Snipe","Charadriiformes","Scolopacidés","https://www.oiseaux.net/oiseaux/becassine.de.swinhoe.html"]
["Bécassine de Wilson",{"$f":"StripAccent(A93)","v":"Becassine de Wilson"},null,{"$f":"StripAccent(C93)","v":""},"Gallinago delicata","Wilson's Snipe","Charadriiformes","Scolopacidés","https://www.oiseaux.net/oiseaux/becassine.de.wilson.html"]
["Bécassine des marais",{"$f":"StripAccent(A94)","v":"Becassine des marais"},null,{"$f":"StripAccent(C94)","v":""},"Gallinago gallinago","Common Snipe","Charadriiformes","Scolopacidés","https://www.oiseaux.net/oiseaux/becassine.des.marais.html"]
["Bécassine double",{"$f":"StripAccent(A95)","v":"Becassine double"},null,{"$f":"StripAccent(C95)","v":""},"Gallinago media","Great Snipe","Charadriiformes","Scolopacidés","https://www.oiseaux.net/oiseaux/becassine.double.html"]
["Bécassine sourde",{"$f":"StripAccent(A96)","v":"Becassine sourde"},null,{"$f":"StripAccent(C96)","v":""},"Lymnocryptes minimus","Jack Snipe","Charadriiformes","Scolopacidés","https://www.oiseaux.net/oiseaux/becassine.sourde.html"]
["Bengali rouge",{"$f":"StripAccent(A97)","v":"Bengali rouge"},null,{"$f":"StripAccent(C97)","v":""},"Amandava amandava","Red Avadavat","Passériformes","Estrildidés","https://www.oiseaux.net/oiseaux/bengali.rouge.html"]
["Bergeronnette citrine",{"$f":"StripAccent(A98)","v":"Bergeronnette citrine"},null,{"$f":"StripAccent(C98)","v":""},"Motacilla citreola","Citrine Wagtail","Passériformes","Motacillidés","https://www.oiseaux.net/oiseaux/bergeronnette.citrine.html"]
["Bergeronnette de Béringie",{"$f":"StripAccent(A99)","v":"Bergeronnette de Beringie"},null,{"$f":"StripAccent(C99)","v":""},"Motacilla tschutschensis","Eastern Yellow Wagtail","Passériformes","Motacillidés","https://www.oiseaux.net/oiseaux/bergeronnette.de.beringie.html"]
["Bergeronnette des ruisseaux",{"$f":"StripAccent(A100)","v":"Bergeronnette des ruisseaux"},null,{"$f":"StripAccent(C100)","v":""},"Motacilla cinerea","Grey Wagtail","Passériformes","Motacillidés","https://www.oiseaux.net/oiseaux/bergeronnette.des.ruisseaux.html"]
["Bergeronnette grise",{"$f":"StripAccent(A101)","v":"Bergeronnette grise"},null,{"$f":"StripAccent(C101)","v":""},"Motacilla alba","White Wagtail","Passériformes","Motacillidés","https://www.oiseaux.net/oiseaux/bergeronnette.grise.html"]
["Bergeronnette printanière",{"$f":"StripAccent(A102)","v":"Bergeronnette printaniere"},null,{"$f":"StripAccent(C102)","v":""},"Motacilla flava","Western Yellow Wagtail","Passériformes","Motacillidés","https://www.oiseaux.net/oiseaux/bergeronnette.printaniere.html"]
["Bernache à cou roux",{"$f":"StripAccent(A103)","v":"Bernache a cou roux"},null,{"$f":"StripAccent(C103)","v":""},"Branta ruficollis","Red-breasted Goose","Ansériformes","Anatidés","https://www.oiseaux.net/oiseaux/bernache.a.cou.roux.html"]
["Bernache cravant",{"$f":"StripAccent(A104)","v":"Bernache cravant"},null,{"$f":"StripAccent(C104)","v":""},"Branta bernicla","Brant Goose","Ansériformes","Anatidés","https://www.oiseaux.net/oiseaux/bernache.cravant.html"]
["Bernache de Hutchins",{"$f":"StripAccent(A105)","v":"Bernache de Hutchins"},null,{"$f":"StripAccent(C105)","v":""},"Branta hutchinsii","Cackling Goose","Ansériformes","Anatidés","https://www.oiseaux.net/oiseaux/bernache.de.hutchins.html"]
["Bernache du Canada",{"$f":"StripAccent(A106)","v":"Bernache du Canada"},null,{"$f":"StripAccent(C106)","v":""},"Branta canadensis","Canada Goose","Ansériformes","Anatidés","https://www.oiseaux.net/oiseaux/bernache.du.canada.html"]
["Bernache nonnette",{"$f":"StripAccent(A107)","v":"Bernache nonnette"},null,{"$f":"StripAccent(C107)","v":""},"Branta leucopsis","Barnacle Goose","Ansériformes","Anatidés","https://www.oiseaux.net/oiseaux/bernache.nonnette.html"]
["Bihoreau gris",{"$f":"StripAccent(A108)","v":"Bihoreau gris"},null,{"$f":"StripAccent(C108)","v":""},"Nycticorax nycticorax","Black-crowned Night Heron","Pélécaniformes","Ardéidés","https://www.oiseaux.net/oiseaux/bihoreau.gris.html"]
["Bihoreau violacé",{"$f":"StripAccent(A109)","v":"Bihoreau violace"},null,{"$f":"StripAccent(C109)","v":""},"Nyctanassa violacea","Yellow-crowned Night Heron","Pélécaniformes","Ardéidés","https://www.oiseaux.net/oiseaux/bihoreau.violace.html"]
["Blongios de Sturm",{"$f":"StripAccent(A110)","v":"Blongios de Sturm"},null,{"$f":"StripAccent(C110)","v":""},"Ixobrychus sturmii","Dwarf Bittern","Pélécaniformes","Ardéidés","https://www.oiseaux.net/oiseaux/blongios.de.sturm.html"]
["Blongios mandchou",{"$f":"StripAccent(A111)","v":"Blongios mandchou"},"Blongios de Schrenck",{"$f":"StripAccent(C111)","v":"Blongios de Schrenck"},"Ixobrychus eurhythmus","Von Schrenck's Bittern","Pélécaniformes","Ardéidés","https://www.oiseaux.net/oiseaux/blongios.mandchou.html"]
["Blongios nain",{"$f":"StripAccent(A112)","v":"Blongios nain"},null,{"$f":"StripAccent(C112)","v":""},"Ixobrychus minutus","Little Bittern","Pélécaniformes","Ardéidés","https://www.oiseaux.net/oiseaux/blongios.nain.html"]
["Bondrée apivore",{"$f":"StripAccent(A113)","v":"Bondree apivore"},null,{"$f":"StripAccent(C113)","v":""},"Pernis apivorus","European Honey Buzzard","Accipitriformes","Accipitridés","https://www.oiseaux.net/oiseaux/bondree.apivore.html"]
["Bondrée orientale",{"$f":"StripAccent(A114)","v":"Bondree orientale"},null,{"$f":"StripAccent(C114)","v":""},"Pernis ptilorhynchus","Crested Honey Buzzard","Accipitriformes","Accipitridés","https://www.oiseaux.net/oiseaux/bondree.orientale.html"]
["Bouscarle de Cetti",{"$f":"StripAccent(A115)","v":"Bouscarle de Cetti"},null,{"$f":"StripAccent(C115)","v":""},"Cettia cetti","Cetti's Warbler","Passériformes","Cettiidés","https://www.oiseaux.net/oiseaux/bouscarle.de.cetti.html"]
["Bouvreuil des Açores",{"$f":"StripAccent(A116)","v":"Bouvreuil des Acores"},null,{"$f":"StripAccent(C116)","v":""},"Pyrrhula murina","Azores Bullfinch","Passériformes","Fringillidés","https://www.oiseaux.net/oiseaux/bouvreuil.des.acores.html"]
["Bouvreuil pivoine",{"$f":"StripAccent(A117)","v":"Bouvreuil pivoine"},null,{"$f":"StripAccent(C117)","v":""},"Pyrrhula pyrrhula","Eurasian Bullfinch","Passériformes","Fringillidés","https://www.oiseaux.net/oiseaux/bouvreuil.pivoine.html"]
["Bruant à calotte blanche",{"$f":"StripAccent(A118)","v":"Bruant a calotte blanche"},null,{"$f":"StripAccent(C118)","v":""},"Emberiza leucocephalos","Pine Bunting","Passériformes","Emberizidés","https://www.oiseaux.net/oiseaux/bruant.a.calotte.blanche.html"]
["Bruant à cou gris",{"$f":"StripAccent(A119)","v":"Bruant a cou gris"},null,{"$f":"StripAccent(C119)","v":""},"Emberiza buchanani","Grey-necked Bunting","Passériformes","Emberizidés","https://www.oiseaux.net/oiseaux/bruant.a.cou.gris.html"]
["Bruant à couronne blanche",{"$f":"StripAccent(A120)","v":"Bruant a couronne blanche"},null,{"$f":"StripAccent(C120)","v":""},"Zonotrichia leucophrys","White-crowned Sparrow","Passériformes","Passerellidés","https://www.oiseaux.net/oiseaux/bruant.a.couronne.blanche.html"]
["Bruant à gorge blanche",{"$f":"StripAccent(A121)","v":"Bruant a gorge blanche"},null,{"$f":"StripAccent(C121)","v":""},"Zonotrichia albicollis","White-throated Sparrow","Passériformes","Passerellidés","https://www.oiseaux.net/oiseaux/bruant.a.gorge.blanche.html"]
["Bruant à joues marron",{"$f":"StripAccent(A122)","v":"Bruant a joues marron"},null,{"$f":"StripAccent(C122)","v":""},"Chondestes grammacus","Lark Sparrow","Passériformes","Passerellidés","https://www.oiseaux.net/oiseaux/bruant.a.joues.marron.html"]
["Bruant à longue queue",{"$f":"StripAccent(A123)","v":"Bruant a longue queue"},null,{"$f":"StripAccent(C123)","v":""},"Emberiza cioides","Meadow Bunting","Passériformes","Emberizidés","https://www.oiseaux.net/oiseaux/bruant.a.longue.queue.html"]
["Bruant à oreillons",{"$f":"StripAccent(A124)","v":"Bruant a oreillons"},null,{"$f":"StripAccent(C124)","v":""},"Emberiza fucata","Chestnut-eared Bunting","Passériformes","Emberizidés","https://www.oiseaux.net/oiseaux/bruant.a.oreillons.html"]
["Bruant à sourcils jaunes",{"$f":"StripAccent(A125)","v":"Bruant a sourcils jaunes"},null,{"$f":"StripAccent(C125)","v":""},"Emberiza chrysophrys","Yellow-browed Bunting","Passériformes","Emberizidés","https://www.oiseaux.net/oiseaux/bruant.a.sourcils.jaunes.html"]
["Bruant à tête rousse",{"$f":"StripAccent(A126)","v":"Bruant a tete rousse"},null,{"$f":"StripAccent(C126)","v":""},"Emberiza bruniceps","Red-headed Bunting","Passériformes","Emberizidés","https://www.oiseaux.net/oiseaux/bruant.a.tete.rousse.html"]
["Bruant ardoisé",{"$f":"StripAccent(A127)","v":"Bruant ardoise"},null,{"$f":"StripAccent(C127)","v":""},"Passerella schistacea","Slate-colored Fox Sparrow","Passériformes","Passerellidés","https://www.oiseaux.net/oiseaux/bruant.ardoise.html"]
["Bruant auréole",{"$f":"StripAccent(A128)","v":"Bruant aureole"},null,{"$f":"StripAccent(C128)","v":""},"Emberiza aureola","Yellow-breasted Bunting","Passériformes","Emberizidés","https://www.oiseaux.net/oiseaux/bruant.aureole.html"]
["Bruant cendré",{"$f":"StripAccent(A129)","v":"Bruant cendre"},null,{"$f":"StripAccent(C129)","v":""},"Emberiza cineracea","Cinereous Bunting","Passériformes","Emberizidés","https://www.oiseaux.net/oiseaux/bruant.cendre.html"]
["Bruant cendrillard",{"$f":"StripAccent(A130)","v":"Bruant cendrillard"},null,{"$f":"StripAccent(C130)","v":""},"Emberiza caesia","Cretzschmar's Bunting","Passériformes","Emberizidés","https://www.oiseaux.net/oiseaux/bruant.cendrillard.html"]
["Bruant chanteur",{"$f":"StripAccent(A131)","v":"Bruant chanteur"},null,{"$f":"StripAccent(C131)","v":""},"Melospiza melodia","Song Sparrow","Passériformes","Passerellidés","https://www.oiseaux.net/oiseaux/bruant.chanteur.html"]
["Bruant de Lincoln",{"$f":"StripAccent(A132)","v":"Bruant de Lincoln"},null,{"$f":"StripAccent(C132)","v":""},"Melospiza lincolnii","Lincoln's Sparrow","Passériformes","Passerellidés","https://www.oiseaux.net/oiseaux/bruant.de.lincoln.html"]
["Bruant de Pallas",{"$f":"StripAccent(A133)","v":"Bruant de Pallas"},null,{"$f":"StripAccent(C133)","v":""},"Emberiza pallasi","Pallas's Reed Bunting","Passériformes","Emberizidés","https://www.oiseaux.net/oiseaux/bruant.de.pallas.html"]
["Bruant des neiges",{"$f":"StripAccent(A134)","v":"Bruant des neiges"},"Plectrophane des neiges",{"$f":"StripAccent(C134)","v":"Plectrophane des neiges"},"Plectrophenax nivalis","Snow Bunting","Passériformes","Calcariidés","https://www.oiseaux.net/oiseaux/bruant.des.neiges.html"]
["Bruant des prés",{"$f":"StripAccent(A135)","v":"Bruant des pres"},null,{"$f":"StripAccent(C135)","v":""},"Passerculus sandwichensis","Savannah Sparrow","Passériformes","Passerellidés","https://www.oiseaux.net/oiseaux/bruant.des.pres.html"]
["Bruant des roseaux",{"$f":"StripAccent(A136)","v":"Bruant des roseaux"},null,{"$f":"StripAccent(C136)","v":""},"Emberiza schoeniclus","Common Reed Bunting","Passériformes","Emberizidés","https://www.oiseaux.net/oiseaux/bruant.des.roseaux.html"]
["Bruant du Sahara",{"$f":"StripAccent(A137)","v":"Bruant du Sahara"},null,{"$f":"StripAccent(C137)","v":""},"Emberiza sahari","House Bunting","Passériformes","Emberizidés","https://www.oiseaux.net/oiseaux/bruant.du.sahara.html"]
["Bruant fauve",{"$f":"StripAccent(A138)","v":"Bruant fauve"},null,{"$f":"StripAccent(C138)","v":""},"Passerella iliaca","Red Fox Sparrow","Passériformes","Passerellidés","https://www.oiseaux.net/oiseaux/bruant.fauve.html"]
["Bruant fou",{"$f":"StripAccent(A139)","v":"Bruant fou"},null,{"$f":"StripAccent(C139)","v":""},"Emberiza cia","Rock Bunting","Passériformes","Emberizidés","https://www.oiseaux.net/oiseaux/bruant.fou.html"]
["Bruant fuligineux",{"$f":"StripAccent(A140)","v":"Bruant fuligineux"},null,{"$f":"StripAccent(C140)","v":""},"Passerella unalaschcensis","Sooty Fox Sparrow","Passériformes","Passerellidés","https://www.oiseaux.net/oiseaux/bruant.fuligineux.html"]
["Bruant hudsonien",{"$f":"StripAccent(A141)","v":"Bruant hudsonien"},null,{"$f":"StripAccent(C141)","v":""},"Spizelloides arborea","American Tree Sparrow","Passériformes","Passerellidés","https://www.oiseaux.net/oiseaux/bruant.hudsonien.html"]
["Bruant jaune",{"$f":"StripAccent(A142)","v":"Bruant jaune"},null,{"$f":"StripAccent(C142)","v":""},"Emberiza citrinella","Yellowhammer","Passériformes","Emberizidés","https://www.oiseaux.net/oiseaux/bruant.jaune.html"]
["Bruant lapon",{"$f":"StripAccent(A143)","v":"Bruant lapon"},"Plectrophane lapon",{"$f":"StripAccent(C143)","v":"Plectrophane lapon"},"Calcarius lapponicus","Lapland Longspur","Passériformes","Calcariidés","https://www.oiseaux.net/oiseaux/bruant.lapon.html"]
["Bruant masqué",{"$f":"StripAccent(A144)","v":"Bruant masque"},null,{"$f":"StripAccent(C144)","v":""},"Emberiza spodocephala","Black-faced Bunting","Passériformes","Emberizidés","https://www.oiseaux.net/oiseaux/bruant.masque.html"]
["Bruant mélanocéphale",{"$f":"StripAccent(A145)","v":"Bruant melanocephale"},null,{"$f":"StripAccent(C145)","v":""},"Emberiza melanocephala","Black-headed Bunting","Passériformes","Emberizidés","https://www.oiseaux.net/oiseaux/bruant.melanocephale.html"]
["Bruant nain",{"$f":"StripAccent(A146)","v":"Bruant nain"},null,{"$f":"StripAccent(C146)","v":""},"Emberiza pusilla","Little Bunting","Passériformes","Emberizidés","https://www.oiseaux.net/oiseaux/bruant.nain.html"]
["Bruant ortolan",{"$f":"StripAccent(A147)","v":"Bruant ortolan"},null,{"$f":"StripAccent(C147)","v":""},"Emberiza hortulana","Ortolan Bunting","Passériformes","Emberizidés","https://www.oiseaux.net/oiseaux/bruant.ortolan.html"]
["Bruant proyer",{"$f":"StripAccent(A148)","v":"Bruant proyer"},null,{"$f":"StripAccent(C148)","v":""},"Emberiza calandra","Corn Bunting","Passériformes","Emberizidés","https://www.oiseaux.net/oiseaux/bruant.proyer.html"]
["Bruant roux",{"$f":"StripAccent(A149)","v":"Bruant roux"},null,{"$f":"StripAccent(C149)","v":""},"Emberiza rutila","Chestnut Bunting","Passériformes","Emberizidés","https://www.oiseaux.net/oiseaux/bruant.roux.html"]
["Bruant rustique",{"$f":"StripAccent(A150)","v":"Bruant rustique"},null,{"$f":"StripAccent(C150)","v":""},"Emberiza rustica","Rustic Bunting","Passériformes","Emberizidés","https://www.oiseaux.net/oiseaux/bruant.rustique.html"]
["Bruant striolé",{"$f":"StripAccent(A151)","v":"Bruant striole"},null,{"$f":"StripAccent(C151)","v":""},"Emberiza striolata","Striolated Bunting","Passériformes","Emberizidés","https://www.oiseaux.net/oiseaux/bruant.striole.html"]
["Bruant zizi",{"$f":"StripAccent(A152)","v":"Bruant zizi"},null,{"$f":"StripAccent(C152)","v":""},"Emberiza cirlus","Cirl Bunting","Passériformes","Emberizidés","https://www.oiseaux.net/oiseaux/bruant.zizi.html"]
["Bulbul à oreillons blancs",{"$f":"StripAccent(A153)","v":"Bulbul a oreillons blancs"},null,{"$f":"StripAccent(C153)","v":""},"Pycnonotus leucotis","White-eared Bulbul","Passériformes","Pycnonotidés","https://www.oiseaux.net/oiseaux/bulbul.a.oreillons.blancs.html"]
["Bulbul des jardins",{"$f":"StripAccent(A154)","v":"Bulbul des jardins"},null,{"$f":"StripAccent(C154)","v":""},"Pycnonotus barbatus","Common Bulbul","Passériformes","Pycnonotidés","https://www.oiseaux.net/oiseaux/bulbul.des.jardins.html"]
["Bulbul orphée",{"$f":"StripAccent(A155)","v":"Bulbul orphee"},null,{"$f":"StripAccent(C155)","v":""},"Pycnonotus jocosus","Red-whiskered Bulbul","Passériformes","Pycnonotidés","https://www.oiseaux.net/oiseaux/bulbul.orphee.html"]
["Busard cendré",{"$f":"StripAccent(A156)","v":"Busard cendre"},null,{"$f":"StripAccent(C156)","v":""},"Circus pygargus","Montagu's Harrier","Accipitriformes","Accipitridés","https://www.oiseaux.net/oiseaux/busard.cendre.html"]
["Busard d'Amérique",{"$f":"StripAccent(A157)","v":"Busard d'Amerique"},"Busard des marais",{"$f":"StripAccent(C157)","v":"Busard des marais"},"Circus hudsonius","Northern Harrier","Accipitriformes","Accipitridés","https://www.oiseaux.net/oiseaux/busard.d.amerique.html"]
["Busard des roseaux",{"$f":"StripAccent(A158)","v":"Busard des roseaux"},null,{"$f":"StripAccent(C158)","v":""},"Circus aeruginosus","Western Marsh Harrier","Accipitriformes","Accipitridés","https://www.oiseaux.net/oiseaux/busard.des.roseaux.html"]
["Busard pâle",{"$f":"StripAccent(A159)","v":"Busard pale"},null,{"$f":"StripAccent(C159)","v":""},"Circus macrourus","Pallid Harrier","Accipitriformes","Accipitridés","https://www.oiseaux.net/oiseaux/busard.pale.html"]
["Busard Saint-Martin",{"$f":"StripAccent(A160)","v":"Busard Saint-Martin"},null,{"$f":"StripAccent(C160)","v":""},"Circus cyaneus","Hen Harrier","Accipitriformes","Accipitridés","https://www.oiseaux.net/oiseaux/busard.saint-martin.html"]
["Buse de Chine",{"$f":"StripAccent(A161)","v":"Buse de Chine"},null,{"$f":"StripAccent(C161)","v":""},"Buteo hemilasius","Upland Buzzard","Accipitriformes","Accipitridés","https://www.oiseaux.net/oiseaux/buse.de.chine.html"]
["Buse de Swainson",{"$f":"StripAccent(A162)","v":"Buse de Swainson"},null,{"$f":"StripAccent(C162)","v":""},"Buteo swainsoni","Swainson's Hawk","Accipitriformes","Accipitridés","https://www.oiseaux.net/oiseaux/buse.de.swainson.html"]
["Buse féroce",{"$f":"StripAccent(A163)","v":"Buse feroce"},null,{"$f":"StripAccent(C163)","v":""},"Buteo rufinus","Long-legged Buzzard","Accipitriformes","Accipitridés","https://www.oiseaux.net/oiseaux/buse.feroce.html"]
["Buse pattue",{"$f":"StripAccent(A164)","v":"Buse pattue"},null,{"$f":"StripAccent(C164)","v":""},"Buteo lagopus","Rough-legged Buzzard","Accipitriformes","Accipitridés","https://www.oiseaux.net/oiseaux/buse.pattue.html"]
["Buse variable",{"$f":"StripAccent(A165)","v":"Buse variable"},null,{"$f":"StripAccent(C165)","v":""},"Buteo buteo","Common Buzzard","Accipitriformes","Accipitridés","https://www.oiseaux.net/oiseaux/buse.variable.html"]
["Butor d'Amérique",{"$f":"StripAccent(A166)","v":"Butor d'Amerique"},null,{"$f":"StripAccent(C166)","v":""},"Botaurus lentiginosus","American Bittern","Pélécaniformes","Ardéidés","https://www.oiseaux.net/oiseaux/butor.d.amerique.html"]
["Butor étoilé",{"$f":"StripAccent(A167)","v":"Butor etoile"},null,{"$f":"StripAccent(C167)","v":""},"Botaurus stellaris","Eurasian Bittern","Pélécaniformes","Ardéidés","https://www.oiseaux.net/oiseaux/butor.etoile.html"]
["Caille des blés",{"$f":"StripAccent(A168)","v":"Caille des bles"},null,{"$f":"StripAccent(C168)","v":""},"Coturnix coturnix","Common Quail","Galliformes","Phasianidés","https://www.oiseaux.net/oiseaux/caille.des.bles.html"]
["Caille du Japon",{"$f":"StripAccent(A169)","v":"Caille du Japon"},null,{"$f":"StripAccent(C169)","v":""},"Coturnix japonica","Japanese Quail","Galliformes","Phasianidés","https://www.oiseaux.net/oiseaux/caille.du.japon.html"]
["Canard à bec rouge",{"$f":"StripAccent(A170)","v":"Canard a bec rouge"},null,{"$f":"StripAccent(C170)","v":""},"Anas erythrorhyncha","Red-billed Teal","Ansériformes","Anatidés","https://www.oiseaux.net/oiseaux/canard.a.bec.rouge.html"]
["Canard à faucilles",{"$f":"StripAccent(A171)","v":"Canard a faucilles"},null,{"$f":"StripAccent(C171)","v":""},"Mareca falcata","Falcated Duck","Ansériformes","Anatidés","https://www.oiseaux.net/oiseaux/canard.a.faucilles.html"]
["Canard à front blanc",{"$f":"StripAccent(A172)","v":"Canard a front blanc"},"Canard d'Amérique",{"$f":"StripAccent(C172)","v":"Canard d'Amerique"},"Mareca americana","American Wigeon","Ansériformes","Anatidés","https://www.oiseaux.net/oiseaux/canard.a.front.blanc.html"]
["Canard carolin",{"$f":"StripAccent(A173)","v":"Canard carolin"},"Canard branchu",{"$f":"StripAccent(C173)","v":"Canard branchu"},"Aix sponsa","Wood Duck","Ansériformes","Anatidés","https://www.oiseaux.net/oiseaux/canard.carolin.html"]
["Canard chipeau",{"$f":"StripAccent(A174)","v":"Canard chipeau"},null,{"$f":"StripAccent(C174)","v":""},"Mareca strepera","Gadwall","Ansériformes","Anatidés","https://www.oiseaux.net/oiseaux/canard.chipeau.html"]
["Canard colvert",{"$f":"StripAccent(A175)","v":"Canard colvert"},null,{"$f":"StripAccent(C175)","v":""},"Anas platyrhynchos","Mallard","Ansériformes","Anatidés","https://www.oiseaux.net/oiseaux/canard.colvert.html"]
["Canard de Chine",{"$f":"StripAccent(A176)","v":"Canard de Chine"},null,{"$f":"StripAccent(C176)","v":""},"Anas zonorhyncha","Eastern Spot-billed Duck","Ansériformes","Anatidés","https://www.oiseaux.net/oiseaux/canard.de.chine.html"]
["Canard du Cap",{"$f":"StripAccent(A177)","v":"Canard du Cap"},null,{"$f":"StripAccent(C177)","v":""},"Anas capensis","Cape Teal","Ansériformes","Anatidés","https://www.oiseaux.net/oiseaux/canard.du.cap.html"]
["Canard mandarin",{"$f":"StripAccent(A178)","v":"Canard mandarin"},null,{"$f":"StripAccent(C178)","v":""},"Aix galericulata","Mandarin Duck","Ansériformes","Anatidés","https://www.oiseaux.net/oiseaux/canard.mandarin.html"]
["Canard musqué",{"$f":"StripAccent(A179)","v":"Canard musque"},null,{"$f":"StripAccent(C179)","v":""},"Cairina moschata","Muscovy Duck","Ansériformes","Anatidés","https://www.oiseaux.net/oiseaux/canard.musque.html"]
["Canard noir",{"$f":"StripAccent(A180)","v":"Canard noir"},null,{"$f":"StripAccent(C180)","v":""},"Anas rubripes","American Black Duck","Ansériformes","Anatidés","https://www.oiseaux.net/oiseaux/canard.noir.html"]
["Canard pilet",{"$f":"StripAccent(A181)","v":"Canard pilet"},null,{"$f":"StripAccent(C181)","v":""},"Anas acuta","Northern Pintail","Ansériformes","Anatidés","https://www.oiseaux.net/oiseaux/canard.pilet.html"]
["Canard siffleur",{"$f":"StripAccent(A182)","v":"Canard siffleur"},null,{"$f":"StripAccent(C182)","v":""},"Mareca penelope","Eurasian Wigeon","Ansériformes","Anatidés","https://www.oiseaux.net/oiseaux/canard.siffleur.html"]
["Canard souchet",{"$f":"StripAccent(A183)","v":"Canard souchet"},null,{"$f":"StripAccent(C183)","v":""},"Spatula clypeata","Northern Shoveler","Ansériformes","Anatidés","https://www.oiseaux.net/oiseaux/canard.souchet.html"]
["Capucin à dos marron",{"$f":"StripAccent(A184)","v":"Capucin a dos marron"},null,{"$f":"StripAccent(C184)","v":""},"Lonchura malacca","Tricolored Munia","Passériformes","Estrildidés","https://www.oiseaux.net/oiseaux/capucin.a.dos.marron.html"]
["Capucin à tête noire",{"$f":"StripAccent(A185)","v":"Capucin a tete noire"},null,{"$f":"StripAccent(C185)","v":""},"Lonchura atricapilla","Chestnut Munia","Passériformes","Estrildidés","https://www.oiseaux.net/oiseaux/capucin.a.tete.noire.html"]
["Capucin bec-d'argent",{"$f":"StripAccent(A186)","v":"Capucin bec-d'argent"},null,{"$f":"StripAccent(C186)","v":""},"Euodice cantans","African Silverbill","Passériformes","Estrildidés","https://www.oiseaux.net/oiseaux/capucin.bec-d.argent.html"]
["Capucin bec-de-plomb",{"$f":"StripAccent(A187)","v":"Capucin bec-de-plomb"},null,{"$f":"StripAccent(C187)","v":""},"Euodice malabarica","Indian Silverbill","Passériformes","Estrildidés","https://www.oiseaux.net/oiseaux/capucin.bec-de-plomb.html"]
["Capucin damier",{"$f":"StripAccent(A188)","v":"Capucin damier"},null,{"$f":"StripAccent(C188)","v":""},"Lonchura punctulata","Scaly-breasted Munia","Passériformes","Estrildidés","https://www.oiseaux.net/oiseaux/capucin.damier.html"]
["Cardinal à poitrine rose",{"$f":"StripAccent(A189)","v":"Cardinal a poitrine rose"},null,{"$f":"StripAccent(C189)","v":""},"Pheucticus ludovicianus","Rose-breasted Grosbeak","Passériformes","Cardinalidés","https://www.oiseaux.net/oiseaux/cardinal.a.poitrine.rose.html"]
["Carouge à épaulettes",{"$f":"StripAccent(A190)","v":"Carouge a epaulettes"},null,{"$f":"StripAccent(C190)","v":""},"Agelaius phoeniceus","Red-winged Blackbird","Passériformes","Ictéridés","https://www.oiseaux.net/oiseaux/carouge.a.epaulettes.html"]
["Carouge à tête jaune",{"$f":"StripAccent(A191)","v":"Carouge a tete jaune"},null,{"$f":"StripAccent(C191)","v":""},"Xanthocephalus xanthocephalus","Yellow-headed Blackbird","Passériformes","Ictéridés","https://www.oiseaux.net/oiseaux/carouge.a.tete.jaune.html"]
["Cassenoix moucheté",{"$f":"StripAccent(A192)","v":"Cassenoix mouchete"},null,{"$f":"StripAccent(C192)","v":""},"Nucifraga caryocatactes","Spotted Nutcracker","Passériformes","Corvidés","https://www.oiseaux.net/oiseaux/cassenoix.mouchete.html"]
["Chardonneret élégant",{"$f":"StripAccent(A193)","v":"Chardonneret elegant"},null,{"$f":"StripAccent(C193)","v":""},"Carduelis carduelis","European Goldfinch","Passériformes","Fringillidés","https://www.oiseaux.net/oiseaux/chardonneret.elegant.html"]
["Chardonneret jaune",{"$f":"StripAccent(A194)","v":"Chardonneret jaune"},null,{"$f":"StripAccent(C194)","v":""},"Spinus tristis","American Goldfinch","Passériformes","Fringillidés","https://www.oiseaux.net/oiseaux/chardonneret.jaune.html"]
["Chevalier à pattes jaunes",{"$f":"StripAccent(A195)","v":"Chevalier a pattes jaunes"},"Petit Chevalier",{"$f":"StripAccent(C195)","v":"Petit Chevalier"},"Tringa flavipes","Lesser Yellowlegs","Charadriiformes","Scolopacidés","https://www.oiseaux.net/oiseaux/chevalier.a.pattes.jaunes.html"]
["Chevalier aboyeur",{"$f":"StripAccent(A196)","v":"Chevalier aboyeur"},null,{"$f":"StripAccent(C196)","v":""},"Tringa nebularia","Common Greenshank","Charadriiformes","Scolopacidés","https://www.oiseaux.net/oiseaux/chevalier.aboyeur.html"]
["Chevalier arlequin",{"$f":"StripAccent(A197)","v":"Chevalier arlequin"},null,{"$f":"StripAccent(C197)","v":""},"Tringa erythropus","Spotted Redshank","Charadriiformes","Scolopacidés","https://www.oiseaux.net/oiseaux/chevalier.arlequin.html"]
["Chevalier bargette",{"$f":"StripAccent(A198)","v":"Chevalier bargette"},null,{"$f":"StripAccent(C198)","v":""},"Xenus cinereus","Terek Sandpiper","Charadriiformes","Scolopacidés","https://www.oiseaux.net/oiseaux/chevalier.bargette.html"]
["Chevalier criard",{"$f":"StripAccent(A199)","v":"Chevalier criard"},"Grand Chevalier",{"$f":"StripAccent(C199)","v":"Grand Chevalier"},"Tringa melanoleuca","Greater Yellowlegs","Charadriiformes","Scolopacidés","https://www.oiseaux.net/oiseaux/chevalier.criard.html"]
["Chevalier cul-blanc",{"$f":"StripAccent(A200)","v":"Chevalier cul-blanc"},"Chevalier culblanc",{"$f":"StripAccent(C200)","v":"Chevalier culblanc"},"Tringa ochropus","Green Sandpiper","Charadriiformes","Scolopacidés","https://www.oiseaux.net/oiseaux/chevalier.cul-blanc.html"]
["Chevalier de Sibérie",{"$f":"StripAccent(A201)","v":"Chevalier de Siberie"},null,{"$f":"StripAccent(C201)","v":""},"Tringa brevipes","Grey-tailed Tattler","Charadriiformes","Scolopacidés","https://www.oiseaux.net/oiseaux/chevalier.de.siberie.html"]
["Chevalier gambette",{"$f":"StripAccent(A202)","v":"Chevalier gambette"},null,{"$f":"StripAccent(C202)","v":""},"Tringa totanus","Common Redshank","Charadriiformes","Scolopacidés","https://www.oiseaux.net/oiseaux/chevalier.gambette.html"]
["Chevalier grivelé",{"$f":"StripAccent(A203)","v":"Chevalier grivele"},null,{"$f":"StripAccent(C203)","v":""},"Actitis macularius","Spotted Sandpiper","Charadriiformes","Scolopacidés","https://www.oiseaux.net/oiseaux/chevalier.grivele.html"]
["Chevalier guignette",{"$f":"StripAccent(A204)","v":"Chevalier guignette"},null,{"$f":"StripAccent(C204)","v":""},"Actitis hypoleucos","Common Sandpiper","Charadriiformes","Scolopacidés","https://www.oiseaux.net/oiseaux/chevalier.guignette.html"]
["Chevalier semipalmé",{"$f":"StripAccent(A205)","v":"Chevalier semipalme"},null,{"$f":"StripAccent(C205)","v":""},"Tringa semipalmata","Willet","Charadriiformes","Scolopacidés","https://www.oiseaux.net/oiseaux/chevalier.semipalme.html"]
["Chevalier solitaire",{"$f":"StripAccent(A206)","v":"Chevalier solitaire"},null,{"$f":"StripAccent(C206)","v":""},"Tringa solitaria","Solitary Sandpiper","Charadriiformes","Scolopacidés","https://www.oiseaux.net/oiseaux/chevalier.solitaire.html"]
["Chevalier stagnatile",{"$f":"StripAccent(A207)","v":"Chevalier stagnatile"},null,{"$f":"StripAccent(C207)","v":""},"Tringa stagnatilis","Marsh Sandpiper","Charadriiformes","Scolopacidés","https://www.oiseaux.net/oiseaux/chevalier.stagnatile.html"]
["Chevalier sylvain",{"$f":"StripAccent(A208)","v":"Chevalier sylvain"},null,{"$f":"StripAccent(C208)","v":""},"Tringa glareola","Wood Sandpiper","Charadriiformes","Scolopacidés","https://www.oiseaux.net/oiseaux/chevalier.sylvain.html"]
["Chevêche d'Athéna",{"$f":"StripAccent(A209)","v":"Cheveche d'Athena"},null,{"$f":"StripAccent(C209)","v":""},"Athene noctua","Little Owl","Strigiformes","Strigidés","https://www.oiseaux.net/oiseaux/cheveche.d.athena.html"]
["Chevêchette d'Europe",{"$f":"StripAccent(A210)","v":"Chevechette d'Europe"},null,{"$f":"StripAccent(C210)","v":""},"Glaucidium passerinum","Eurasian Pygmy Owl","Strigiformes","Strigidés","https://www.oiseaux.net/oiseaux/chevechette.d.europe.html"]
["Chionis blanc",{"$f":"StripAccent(A211)","v":"Chionis blanc"},null,{"$f":"StripAccent(C211)","v":""},"Chionis albus","Snowy Sheathbill","Charadriiformes","Chionidés","https://www.oiseaux.net/oiseaux/chionis.blanc.html"]
["Chocard à bec jaune",{"$f":"StripAccent(A212)","v":"Chocard a bec jaune"},null,{"$f":"StripAccent(C212)","v":""},"Pyrrhocorax graculus","Alpine Chough","Passériformes","Corvidés","https://www.oiseaux.net/oiseaux/chocard.a.bec.jaune.html"]
["Choucador à oreillons bleus",{"$f":"StripAccent(A213)","v":"Choucador a oreillons bleus"},null,{"$f":"StripAccent(C213)","v":""},"Lamprotornis chalybaeus","Greater Blue-eared Starling","Passériformes","Sturnidés","https://www.oiseaux.net/oiseaux/choucador.a.oreillons.bleus.html"]
["Choucas de Daourie",{"$f":"StripAccent(A214)","v":"Choucas de Daourie"},null,{"$f":"StripAccent(C214)","v":""},"Coloeus dauuricus","Daurian Jackdaw","Passériformes","Corvidés","https://www.oiseaux.net/oiseaux/choucas.de.daourie.html"]
["Choucas des tours",{"$f":"StripAccent(A215)","v":"Choucas des tours"},null,{"$f":"StripAccent(C215)","v":""},"Coloeus monedula","Western Jackdaw","Passériformes","Corvidés","https://www.oiseaux.net/oiseaux/choucas.des.tours.html"]
["Chouette de l'Oural",{"$f":"StripAccent(A216)","v":"Chouette de l'Oural"},null,{"$f":"StripAccent(C216)","v":""},"Strix uralensis","Ural Owl","Strigiformes","Strigidés","https://www.oiseaux.net/oiseaux/chouette.de.l.oural.html"]
["Chouette de Tengmalm",{"$f":"StripAccent(A217)","v":"Chouette de Tengmalm"},"Nyctale de Tengmalm",{"$f":"StripAccent(C217)","v":"Nyctale de Tengmalm"},"Aegolius funereus","Boreal Owl","Strigiformes","Strigidés","https://www.oiseaux.net/oiseaux/chouette.de.tengmalm.html"]
["Chouette épervière",{"$f":"StripAccent(A218)","v":"Chouette eperviere"},"Épervière boréale",{"$f":"StripAccent(C218)","v":"Eperviere boreale"},"Surnia ulula","Northern Hawk-Owl","Strigiformes","Strigidés","https://www.oiseaux.net/oiseaux/chouette.eperviere.html"]
["Chouette hulotte",{"$f":"StripAccent(A219)","v":"Chouette hulotte"},null,{"$f":"StripAccent(C219)","v":""},"Strix aluco","Tawny Owl","Strigiformes","Strigidés","https://www.oiseaux.net/oiseaux/chouette.hulotte.html"]
["Chouette hulotte africaine",{"$f":"StripAccent(A220)","v":"Chouette hulotte africaine"},null,{"$f":"StripAccent(C220)","v":""},"Strix mauritanica","Maghreb Owl","Strigiformes","Strigidés","https://www.oiseaux.net/oiseaux/chouette.hulotte.africaine.html"]
["Chouette lapone",{"$f":"StripAccent(A221)","v":"Chouette lapone"},null,{"$f":"StripAccent(C221)","v":""},"Strix nebulosa","Great Grey Owl","Strigiformes","Strigidés","https://www.oiseaux.net/oiseaux/chouette.lapone.html"]
["Cigogne blanche",{"$f":"StripAccent(A222)","v":"Cigogne blanche"},null,{"$f":"StripAccent(C222)","v":""},"Ciconia ciconia","White Stork","Ciconiiformes","Ciconiidés","https://www.oiseaux.net/oiseaux/cigogne.blanche.html"]
["Cigogne noire",{"$f":"StripAccent(A223)","v":"Cigogne noire"},null,{"$f":"StripAccent(C223)","v":""},"Ciconia nigra","Black Stork","Ciconiiformes","Ciconiidés","https://www.oiseaux.net/oiseaux/cigogne.noire.html"]
["Cincle plongeur",{"$f":"StripAccent(A224)","v":"Cincle plongeur"},null,{"$f":"StripAccent(C224)","v":""},"Cinclus cinclus","White-throated Dipper","Passériformes","Cinclidés","https://www.oiseaux.net/oiseaux/cincle.plongeur.html"]
["Circaète Jean-le-Blanc",{"$f":"StripAccent(A225)","v":"Circaete Jean-le-Blanc"},null,{"$f":"StripAccent(C225)","v":""},"Circaetus gallicus","Short-toed Snake Eagle","Accipitriformes","Accipitridés","https://www.oiseaux.net/oiseaux/circaete.jean-le-blanc.html"]
["Cisticole des joncs",{"$f":"StripAccent(A226)","v":"Cisticole des joncs"},null,{"$f":"StripAccent(C226)","v":""},"Cisticola juncidis","Zitting Cisticola","Passériformes","Cisticolidés","https://www.oiseaux.net/oiseaux/cisticole.des.joncs.html"]
["Cochevis de Thékla",{"$f":"StripAccent(A227)","v":"Cochevis de Thekla"},null,{"$f":"StripAccent(C227)","v":""},"Galerida theklae","Thekla's Lark","Passériformes","Alaudidés","https://www.oiseaux.net/oiseaux/cochevis.de.thekla.html"]
["Cochevis huppé",{"$f":"StripAccent(A228)","v":"Cochevis huppe"},null,{"$f":"StripAccent(C228)","v":""},"Galerida cristata","Crested Lark","Passériformes","Alaudidés","https://www.oiseaux.net/oiseaux/cochevis.huppe.html"]
["Colin de Californie",{"$f":"StripAccent(A229)","v":"Colin de Californie"},null,{"$f":"StripAccent(C229)","v":""},"Callipepla californica","California Quail","Galliformes","Odontophoridés","https://www.oiseaux.net/oiseaux/colin.de.californie.html"]
["Colin de Virginie",{"$f":"StripAccent(A230)","v":"Colin de Virginie"},null,{"$f":"StripAccent(C230)","v":""},"Colinus virginianus","Northern Bobwhite","Galliformes","Odontophoridés","https://www.oiseaux.net/oiseaux/colin.de.virginie.html"]
["Combattant varié",{"$f":"StripAccent(A231)","v":"Combattant varie"},null,{"$f":"StripAccent(C231)","v":""},"Calidris pugnax","Ruff","Charadriiformes","Scolopacidés","https://www.oiseaux.net/oiseaux/combattant.varie.html"]
["Conure à tête rouge",{"$f":"StripAccent(A232)","v":"Conure a tete rouge"},null,{"$f":"StripAccent(C232)","v":""},"Psittacara erythrogenys","Red-masked Parakeet","Psittaciformes","Psittacidés","https://www.oiseaux.net/oiseaux/conure.a.tete.rouge.html"]
["Corbeau à queue courte",{"$f":"StripAccent(A233)","v":"Corbeau a queue courte"},null,{"$f":"StripAccent(C233)","v":""},"Corvus rhipidurus","Fan-tailed Raven","Passériformes","Corvidés","https://www.oiseaux.net/oiseaux/corbeau.a.queue.courte.html"]
["Corbeau brun",{"$f":"StripAccent(A234)","v":"Corbeau brun"},null,{"$f":"StripAccent(C234)","v":""},"Corvus ruficollis","Brown-necked Raven","Passériformes","Corvidés","https://www.oiseaux.net/oiseaux/corbeau.brun.html"]
["Corbeau familier",{"$f":"StripAccent(A235)","v":"Corbeau familier"},null,{"$f":"StripAccent(C235)","v":""},"Corvus splendens","House Crow","Passériformes","Corvidés","https://www.oiseaux.net/oiseaux/corbeau.familier.html"]
["Corbeau freux",{"$f":"StripAccent(A236)","v":"Corbeau freux"},null,{"$f":"StripAccent(C236)","v":""},"Corvus frugilegus","Rook","Passériformes","Corvidés","https://www.oiseaux.net/oiseaux/corbeau.freux.html"]
["Corbeau pie",{"$f":"StripAccent(A237)","v":"Corbeau pie"},null,{"$f":"StripAccent(C237)","v":""},"Corvus albus","Pied Crow","Passériformes","Corvidés","https://www.oiseaux.net/oiseaux/corbeau.pie.html"]
["Cormoran à aigrettes",{"$f":"StripAccent(A238)","v":"Cormoran a aigrettes"},null,{"$f":"StripAccent(C238)","v":""},"Nannopterum auritum","Double-crested Cormorant","Suliformes","Phalacrocoracidés","https://www.oiseaux.net/oiseaux/cormoran.a.aigrettes.html"]
["Cormoran à poitrine blanche",{"$f":"StripAccent(A239)","v":"Cormoran a poitrine blanche"},null,{"$f":"StripAccent(C239)","v":""},"Phalacrocorax lucidus","White-breasted Cormorant","Suliformes","Phalacrocoracidés","https://www.oiseaux.net/oiseaux/cormoran.a.poitrine.blanche.html"]
["Cormoran africain",{"$f":"StripAccent(A240)","v":"Cormoran africain"},null,{"$f":"StripAccent(C240)","v":""},"Microcarbo africanus","Reed Cormorant","Suliformes","Phalacrocoracidés","https://www.oiseaux.net/oiseaux/cormoran.africain.html"]
["Cormoran de Pallas",{"$f":"StripAccent(A241)","v":"Cormoran de Pallas"},null,{"$f":"StripAccent(C241)","v":""},"Urile perspicillatus","Spectacled Cormorant","Suliformes","Phalacrocoracidés","https://www.oiseaux.net/oiseaux/cormoran.de.pallas.html"]
["Cormoran huppé",{"$f":"StripAccent(A242)","v":"Cormoran huppe"},null,{"$f":"StripAccent(C242)","v":""},"Gulosus aristotelis","European Shag","Suliformes","Phalacrocoracidés","https://www.oiseaux.net/oiseaux/cormoran.huppe.html"]
["Cormoran pygmée",{"$f":"StripAccent(A243)","v":"Cormoran pygmee"},null,{"$f":"StripAccent(C243)","v":""},"Microcarbo pygmaeus","Pygmy Cormorant","Suliformes","Phalacrocoracidés","https://www.oiseaux.net/oiseaux/cormoran.pygmee.html"]
["Corneille mantelée",{"$f":"StripAccent(A244)","v":"Corneille mantelee"},null,{"$f":"StripAccent(C244)","v":""},"Corvus cornix","Hooded Crow","Passériformes","Corvidés","https://www.oiseaux.net/oiseaux/corneille.mantelee.html"]
["Corneille noire",{"$f":"StripAccent(A245)","v":"Corneille noire"},null,{"$f":"StripAccent(C245)","v":""},"Corvus corone","Carrion Crow","Passériformes","Corvidés","https://www.oiseaux.net/oiseaux/corneille.noire.html"]
["Corvinelle à bec jaune",{"$f":"StripAccent(A246)","v":"Corvinelle a bec jaune"},null,{"$f":"StripAccent(C246)","v":""},"Lanius corvinus","Yellow-billed Shrike","Passériformes","Laniidés","https://www.oiseaux.net/oiseaux/corvinelle.a.bec.jaune.html"]
["Coucou de Chine",{"$f":"StripAccent(A247)","v":"Coucou de Chine"},null,{"$f":"StripAccent(C247)","v":""},"Hierococcyx hyperythrus","Northern Hawk-Cuckoo","Cuculiformes","Cuculidés","https://www.oiseaux.net/oiseaux/coucou.de.chine.html"]
["Coucou de l'Himalaya",{"$f":"StripAccent(A248)","v":"Coucou de l'Himalaya"},null,{"$f":"StripAccent(C248)","v":""},"Cuculus saturatus","Himalayan Cuckoo","Cuculiformes","Cuculidés","https://www.oiseaux.net/oiseaux/coucou.de.l.himalaya.html"]
["Coucou geai",{"$f":"StripAccent(A249)","v":"Coucou geai"},null,{"$f":"StripAccent(C249)","v":""},"Clamator glandarius","Great Spotted Cuckoo","Cuculiformes","Cuculidés","https://www.oiseaux.net/oiseaux/coucou.geai.html"]
["Coucou gris",{"$f":"StripAccent(A250)","v":"Coucou gris"},null,{"$f":"StripAccent(C250)","v":""},"Cuculus canorus","Common Cuckoo","Cuculiformes","Cuculidés","https://www.oiseaux.net/oiseaux/coucou.gris.html"]
["Coucou oriental",{"$f":"StripAccent(A251)","v":"Coucou oriental"},null,{"$f":"StripAccent(C251)","v":""},"Cuculus optatus","Oriental Cuckoo","Cuculiformes","Cuculidés","https://www.oiseaux.net/oiseaux/coucou.oriental.html"]
["Coulicou à bec jaune",{"$f":"StripAccent(A252)","v":"Coulicou a bec jaune"},null,{"$f":"StripAccent(C252)","v":""},"Coccyzus americanus","Yellow-billed Cuckoo","Cuculiformes","Cuculidés","https://www.oiseaux.net/oiseaux/coulicou.a.bec.jaune.html"]
["Coulicou à bec noir",{"$f":"StripAccent(A253)","v":"Coulicou a bec noir"},null,{"$f":"StripAccent(C253)","v":""},"Coccyzus erythropthalmus","Black-billed Cuckoo","Cuculiformes","Cuculidés","https://www.oiseaux.net/oiseaux/coulicou.a.bec.noir.html"]
["Courlis à bec grêle",{"$f":"StripAccent(A254)","v":"Courlis a bec grele"},null,{"$f":"StripAccent(C254)","v":""},"Numenius tenuirostris","Slender-billed Curlew","Charadriiformes","Scolopacidés","https://www.oiseaux.net/oiseaux/courlis.a.bec.grele.html"]
["Courlis cendré",{"$f":"StripAccent(A255)","v":"Courlis cendre"},null,{"$f":"StripAccent(C255)","v":""},"Numenius arquata","Eurasian Curlew","Charadriiformes","Scolopacidés","https://www.oiseaux.net/oiseaux/courlis.cendre.html"]
["Courlis corlieu",{"$f":"StripAccent(A256)","v":"Courlis corlieu"},null,{"$f":"StripAccent(C256)","v":""},"Numenius phaeopus","Eurasian Whimbrel","Charadriiformes","Scolopacidés","https://www.oiseaux.net/oiseaux/courlis.corlieu.html"]
["Courlis esquimau",{"$f":"StripAccent(A257)","v":"Courlis esquimau"},null,{"$f":"StripAccent(C257)","v":""},"Numenius borealis","Eskimo Curlew","Charadriiformes","Scolopacidés","https://www.oiseaux.net/oiseaux/courlis.esquimau.html"]
["Courlis hudsonien",{"$f":"StripAccent(A258)","v":"Courlis hudsonien"},null,{"$f":"StripAccent(C258)","v":""},"Numenius hudsonicus","Hudsonian Whimbrel","Charadriiformes","Scolopacidés","https://www.oiseaux.net/oiseaux/courlis.hudsonien.html"]
["Courlis nain",{"$f":"StripAccent(A259)","v":"Courlis nain"},null,{"$f":"StripAccent(C259)","v":""},"Numenius minutus","Little Curlew","Charadriiformes","Scolopacidés","https://www.oiseaux.net/oiseaux/courlis.nain.html"]
["Courvite isabelle",{"$f":"StripAccent(A260)","v":"Courvite isabelle"},null,{"$f":"StripAccent(C260)","v":""},"Cursorius cursor","Cream-colored Courser","Charadriiformes","Glaréolidés","https://www.oiseaux.net/oiseaux/courvite.isabelle.html"]
["Crabier chevelu",{"$f":"StripAccent(A261)","v":"Crabier chevelu"},null,{"$f":"StripAccent(C261)","v":""},"Ardeola ralloides","Squacco Heron","Pélécaniformes","Ardéidés","https://www.oiseaux.net/oiseaux/crabier.chevelu.html"]
["Crabier chinois",{"$f":"StripAccent(A262)","v":"Crabier chinois"},null,{"$f":"StripAccent(C262)","v":""},"Ardeola bacchus","Chinese Pond Heron","Pélécaniformes","Ardéidés","https://www.oiseaux.net/oiseaux/crabier.chinois.html"]
["Crabier de Gray",{"$f":"StripAccent(A263)","v":"Crabier de Gray"},null,{"$f":"StripAccent(C263)","v":""},"Ardeola grayii","Indian Pond Heron","Pélécaniformes","Ardéidés","https://www.oiseaux.net/oiseaux/crabier.de.gray.html"]
["Crave à bec rouge",{"$f":"StripAccent(A264)","v":"Crave a bec rouge"},null,{"$f":"StripAccent(C264)","v":""},"Pyrrhocorax pyrrhocorax","Red-billed Chough","Passériformes","Corvidés","https://www.oiseaux.net/oiseaux/crave.a.bec.rouge.html"]
["Crécerelle d'Amérique",{"$f":"StripAccent(A265)","v":"Crecerelle d'Amerique"},null,{"$f":"StripAccent(C265)","v":""},"Falco sparverius","American Kestrel","Falconiformes","Falconidés","https://www.oiseaux.net/oiseaux/crecerelle.d.amerique.html"]
["Cygne chanteur",{"$f":"StripAccent(A266)","v":"Cygne chanteur"},null,{"$f":"StripAccent(C266)","v":""},"Cygnus cygnus","Whooper Swan","Ansériformes","Anatidés","https://www.oiseaux.net/oiseaux/cygne.chanteur.html"]
["Cygne de Bewick",{"$f":"StripAccent(A267)","v":"Cygne de Bewick"},"Cygne siffleur",{"$f":"StripAccent(C267)","v":"Cygne siffleur"},"Cygnus columbianus","Tundra Swan","Ansériformes","Anatidés","https://www.oiseaux.net/oiseaux/cygne.de.bewick.html"]
["Cygne noir",{"$f":"StripAccent(A268)","v":"Cygne noir"},null,{"$f":"StripAccent(C268)","v":""},"Cygnus atratus","Black Swan","Ansériformes","Anatidés","https://www.oiseaux.net/oiseaux/cygne.noir.html"]
["Cygne tuberculé",{"$f":"StripAccent(A269)","v":"Cygne tubercule"},null,{"$f":"StripAccent(C269)","v":""},"Cygnus olor","Mute Swan","Ansériformes","Anatidés","https://www.oiseaux.net/oiseaux/cygne.tubercule.html"]
["Damier du Cap",{"$f":"StripAccent(A270)","v":"Damier du Cap"},null,{"$f":"StripAccent(C270)","v":""},"Daption capense","Cape Petrel","Procellariiformes","Procellariidés","https://www.oiseaux.net/oiseaux/damier.du.cap.html"]
["Dendrocygne fauve",{"$f":"StripAccent(A271)","v":"Dendrocygne fauve"},null,{"$f":"StripAccent(C271)","v":""},"Dendrocygna bicolor","Fulvous Whistling Duck","Ansériformes","Anatidés","https://www.oiseaux.net/oiseaux/dendrocygne.fauve.html"]
["Dendrocygne veuf",{"$f":"StripAccent(A272)","v":"Dendrocygne veuf"},null,{"$f":"StripAccent(C272)","v":""},"Dendrocygna viduata","White-faced Whistling Duck","Ansériformes","Anatidés","https://www.oiseaux.net/oiseaux/dendrocygne.veuf.html"]
["Diamant mandarin",{"$f":"StripAccent(A273)","v":"Diamant mandarin"},null,{"$f":"StripAccent(C273)","v":""},"Taeniopygia guttata","Sunda Zebra Finch","Passériformes","Estrildidés","https://www.oiseaux.net/oiseaux/diamant.mandarin.html"]
["Dickcissel d'Amérique",{"$f":"StripAccent(A274)","v":"Dickcissel d'Amerique"},null,{"$f":"StripAccent(C274)","v":""},"Spiza americana","Dickcissel","Passériformes","Cardinalidés","https://www.oiseaux.net/oiseaux/dickcissel.d.amerique.html"]
["Dindon sauvage",{"$f":"StripAccent(A275)","v":"Dindon sauvage"},null,{"$f":"StripAccent(C275)","v":""},"Meleagris gallopavo","Wild Turkey","Galliformes","Phasianidés","https://www.oiseaux.net/oiseaux/dindon.sauvage.html"]
["Drongo cendré",{"$f":"StripAccent(A276)","v":"Drongo cendre"},null,{"$f":"StripAccent(C276)","v":""},"Dicrurus leucophaeus","Ashy Drongo","Passériformes","Dicruridés","https://www.oiseaux.net/oiseaux/drongo.cendre.html"]
["Durbec des sapins",{"$f":"StripAccent(A277)","v":"Durbec des sapins"},null,{"$f":"StripAccent(C277)","v":""},"Pinicola enucleator","Pine Grosbeak","Passériformes","Fringillidés","https://www.oiseaux.net/oiseaux/durbec.des.sapins.html"]
["Échasse blanche",{"$f":"StripAccent(A278)","v":"Echasse blanche"},null,{"$f":"StripAccent(C278)","v":""},"Himantopus himantopus","Black-winged Stilt","Charadriiformes","Récurvirostridés","https://www.oiseaux.net/oiseaux/echasse.blanche.html"]
["Effraie d'Amérique",{"$f":"StripAccent(A279)","v":"Effraie d'Amerique"},null,{"$f":"StripAccent(C279)","v":""},"Tyto furcata","American Barn Owl","Strigiformes","Tytonidés","https://www.oiseaux.net/oiseaux/effraie.d.amerique.html"]
["Effraie d'Australie",{"$f":"StripAccent(A280)","v":"Effraie d'Australie"},null,{"$f":"StripAccent(C280)","v":""},"Tyto javanica","Eastern Barn Owl","Strigiformes","Tytonidés","https://www.oiseaux.net/oiseaux/effraie.d.australie.html"]
["Effraie des clochers",{"$f":"StripAccent(A281)","v":"Effraie des clochers"},"Chouette effraie",{"$f":"StripAccent(C281)","v":"Chouette effraie"},"Tyto alba","Western Barn Owl","Strigiformes","Tytonidés","https://www.oiseaux.net/oiseaux/effraie.des.clochers.html"]
["Eider à duvet",{"$f":"StripAccent(A282)","v":"Eider a duvet"},null,{"$f":"StripAccent(C282)","v":""},"Somateria mollissima","Common Eider","Ansériformes","Anatidés","https://www.oiseaux.net/oiseaux/eider.a.duvet.html"]
["Eider à lunettes",{"$f":"StripAccent(A283)","v":"Eider a lunettes"},null,{"$f":"StripAccent(C283)","v":""},"Somateria fischeri","Spectacled Eider","Ansériformes","Anatidés","https://www.oiseaux.net/oiseaux/eider.a.lunettes.html"]
["Eider à tête grise",{"$f":"StripAccent(A284)","v":"Eider a tete grise"},null,{"$f":"StripAccent(C284)","v":""},"Somateria spectabilis","King Eider","Ansériformes","Anatidés","https://www.oiseaux.net/oiseaux/eider.a.tete.grise.html"]
["Eider de Steller",{"$f":"StripAccent(A285)","v":"Eider de Steller"},null,{"$f":"StripAccent(C285)","v":""},"Polysticta stelleri","Steller's Eider","Ansériformes","Anatidés","https://www.oiseaux.net/oiseaux/eider.de.steller.html"]
["Élanion blanc",{"$f":"StripAccent(A286)","v":"Elanion blanc"},null,{"$f":"StripAccent(C286)","v":""},"Elanus caeruleus","Black-winged Kite","Accipitriformes","Accipitridés","https://www.oiseaux.net/oiseaux/elanion.blanc.html"]
["Engoulevent à collier roux",{"$f":"StripAccent(A287)","v":"Engoulevent a collier roux"},null,{"$f":"StripAccent(C287)","v":""},"Caprimulgus ruficollis","Red-necked Nightjar","Caprimulgiformes","Caprimulgidés","https://www.oiseaux.net/oiseaux/engoulevent.a.collier.roux.html"]
["Engoulevent d'Amérique",{"$f":"StripAccent(A288)","v":"Engoulevent d'Amerique"},null,{"$f":"StripAccent(C288)","v":""},"Chordeiles minor","Common Nighthawk","Caprimulgiformes","Caprimulgidés","https://www.oiseaux.net/oiseaux/engoulevent.d.amerique.html"]
["Engoulevent d'Europe",{"$f":"StripAccent(A289)","v":"Engoulevent d'Europe"},null,{"$f":"StripAccent(C289)","v":""},"Caprimulgus europaeus","European Nightjar","Caprimulgiformes","Caprimulgidés","https://www.oiseaux.net/oiseaux/engoulevent.d.europe.html"]
["Engoulevent du désert",{"$f":"StripAccent(A290)","v":"Engoulevent du desert"},null,{"$f":"StripAccent(C290)","v":""},"Caprimulgus aegyptius","Egyptian Nightjar","Caprimulgiformes","Caprimulgidés","https://www.oiseaux.net/oiseaux/engoulevent.du.desert.html"]
["Épervier à pieds courts",{"$f":"StripAccent(A291)","v":"Epervier a pieds courts"},null,{"$f":"StripAccent(C291)","v":""},"Accipiter brevipes","Levant Sparrowhawk","Accipitriformes","Accipitridés","https://www.oiseaux.net/oiseaux/epervier.a.pieds.courts.html"]
["Épervier d'Europe",{"$f":"StripAccent(A292)","v":"Epervier d'Europe"},null,{"$f":"StripAccent(C292)","v":""},"Accipiter nisus","Eurasian Sparrowhawk","Accipitriformes","Accipitridés","https://www.oiseaux.net/oiseaux/epervier.d.europe.html"]
["Érismature à tête blanche",{"$f":"StripAccent(A293)","v":"Erismature a tete blanche"},null,{"$f":"StripAccent(C293)","v":""},"Oxyura leucocephala","White-headed Duck","Ansériformes","Anatidés","https://www.oiseaux.net/oiseaux/erismature.a.tete.blanche.html"]
["Érismature rousse",{"$f":"StripAccent(A294)","v":"Erismature rousse"},null,{"$f":"StripAccent(C294)","v":""},"Oxyura jamaicensis","Ruddy Duck","Ansériformes","Anatidés","https://www.oiseaux.net/oiseaux/erismature.rousse.html"]
["Étourneau de Daourie",{"$f":"StripAccent(A295)","v":"Etourneau de Daourie"},null,{"$f":"StripAccent(C295)","v":""},"Agropsar sturninus","Daurian Starling","Passériformes","Sturnidés","https://www.oiseaux.net/oiseaux/etourneau.de.daourie.html"]
["Étourneau roselin",{"$f":"StripAccent(A296)","v":"Etourneau roselin"},null,{"$f":"StripAccent(C296)","v":""},"Pastor roseus","Rosy Starling","Passériformes","Sturnidés","https://www.oiseaux.net/oiseaux/etourneau.roselin.html"]
["Étourneau sansonnet",{"$f":"StripAccent(A297)","v":"Etourneau sansonnet"},null,{"$f":"StripAccent(C297)","v":""},"Sturnus vulgaris","Common Starling","Passériformes","Sturnidés","https://www.oiseaux.net/oiseaux/etourneau.sansonnet.html"]
["Étourneau unicolore",{"$f":"StripAccent(A298)","v":"Etourneau unicolore"},null,{"$f":"StripAccent(C298)","v":""},"Sturnus unicolor","Spotless Starling","Passériformes","Sturnidés","https://www.oiseaux.net/oiseaux/etourneau.unicolore.html"]
["Euplecte vorabé",{"$f":"StripAccent(A299)","v":"Euplecte vorabe"},null,{"$f":"StripAccent(C299)","v":""},"Euplectes afer","Yellow-crowned Bishop","Passériformes","Plocéidés","https://www.oiseaux.net/oiseaux/euplecte.vorabe.html"]
["Faisan de Colchide",{"$f":"StripAccent(A300)","v":"Faisan de Colchide"},null,{"$f":"StripAccent(C300)","v":""},"Phasianus colchicus","Common Pheasant","Galliformes","Phasianidés","https://www.oiseaux.net/oiseaux/faisan.de.colchide.html"]
["Faisan de Lady Amherst",{"$f":"StripAccent(A301)","v":"Faisan de Lady Amherst"},null,{"$f":"StripAccent(C301)","v":""},"Chrysolophus amherstiae","Lady Amherst's Pheasant","Galliformes","Phasianidés","https://www.oiseaux.net/oiseaux/faisan.de.lady.amherst.html"]
["Faisan doré",{"$f":"StripAccent(A302)","v":"Faisan dore"},null,{"$f":"StripAccent(C302)","v":""},"Chrysolophus pictus","Golden Pheasant","Galliformes","Phasianidés","https://www.oiseaux.net/oiseaux/faisan.dore.html"]
["Faisan vénéré",{"$f":"StripAccent(A303)","v":"Faisan venere"},null,{"$f":"StripAccent(C303)","v":""},"Syrmaticus reevesii","Reeves's Pheasant","Galliformes","Phasianidés","https://www.oiseaux.net/oiseaux/faisan.venere.html"]
["Faucon concolore",{"$f":"StripAccent(A304)","v":"Faucon concolore"},null,{"$f":"StripAccent(C304)","v":""},"Falco concolor","Sooty Falcon","Falconiformes","Falconidés","https://www.oiseaux.net/oiseaux/faucon.concolore.html"]
["Faucon crécerelle",{"$f":"StripAccent(A305)","v":"Faucon crecerelle"},null,{"$f":"StripAccent(C305)","v":""},"Falco tinnunculus","Common Kestrel","Falconiformes","Falconidés","https://www.oiseaux.net/oiseaux/faucon.crecerelle.html"]
["Faucon crécerellette",{"$f":"StripAccent(A306)","v":"Faucon crecerellette"},null,{"$f":"StripAccent(C306)","v":""},"Falco naumanni","Lesser Kestrel","Falconiformes","Falconidés","https://www.oiseaux.net/oiseaux/faucon.crecerellette.html"]
["Faucon d'Éléonore",{"$f":"StripAccent(A307)","v":"Faucon d'Eleonore"},null,{"$f":"StripAccent(C307)","v":""},"Falco eleonorae","Eleonora's Falcon","Falconiformes","Falconidés","https://www.oiseaux.net/oiseaux/faucon.d.eleonore.html"]
["Faucon de l'Amour",{"$f":"StripAccent(A308)","v":"Faucon de l'Amour"},null,{"$f":"StripAccent(C308)","v":""},"Falco amurensis","Amur Falcon","Falconiformes","Falconidés","https://www.oiseaux.net/oiseaux/faucon.de.l.amour.html"]
["Faucon émerillon",{"$f":"StripAccent(A309)","v":"Faucon emerillon"},null,{"$f":"StripAccent(C309)","v":""},"Falco columbarius","Merlin","Falconiformes","Falconidés","https://www.oiseaux.net/oiseaux/faucon.emerillon.html"]
["Faucon gerfaut",{"$f":"StripAccent(A310)","v":"Faucon gerfaut"},null,{"$f":"StripAccent(C310)","v":""},"Falco rusticolus","Gyrfalcon","Falconiformes","Falconidés","https://www.oiseaux.net/oiseaux/faucon.gerfaut.html"]
["Faucon hobereau",{"$f":"StripAccent(A311)","v":"Faucon hobereau"},null,{"$f":"StripAccent(C311)","v":""},"Falco subbuteo","Eurasian Hobby","Falconiformes","Falconidés","https://www.oiseaux.net/oiseaux/faucon.hobereau.html"]
["Faucon kobez",{"$f":"StripAccent(A312)","v":"Faucon kobez"},null,{"$f":"StripAccent(C312)","v":""},"Falco vespertinus","Red-footed Falcon","Falconiformes","Falconidés","https://www.oiseaux.net/oiseaux/faucon.kobez.html"]
["Faucon lanier",{"$f":"StripAccent(A313)","v":"Faucon lanier"},null,{"$f":"StripAccent(C313)","v":""},"Falco biarmicus","Lanner Falcon","Falconiformes","Falconidés","https://www.oiseaux.net/oiseaux/faucon.lanier.html"]
["Faucon pèlerin",{"$f":"StripAccent(A314)","v":"Faucon pelerin"},null,{"$f":"StripAccent(C314)","v":""},"Falco peregrinus","Peregrine Falcon","Falconiformes","Falconidés","https://www.oiseaux.net/oiseaux/faucon.pelerin.html"]
["Faucon sacre",{"$f":"StripAccent(A315)","v":"Faucon sacre"},null,{"$f":"StripAccent(C315)","v":""},"Falco cherrug","Saker Falcon","Falconiformes","Falconidés","https://www.oiseaux.net/oiseaux/faucon.sacre.html"]
["Fauvette à lunettes",{"$f":"StripAccent(A316)","v":"Fauvette a lunettes"},null,{"$f":"StripAccent(C316)","v":""},"Curruca conspicillata","Spectacled Warbler","Passériformes","Sylviidés","https://www.oiseaux.net/oiseaux/fauvette.a.lunettes.html"]
["Fauvette à tête noire",{"$f":"StripAccent(A317)","v":"Fauvette a tete noire"},null,{"$f":"StripAccent(C317)","v":""},"Sylvia atricapilla","Eurasian Blackcap","Passériformes","Sylviidés","https://www.oiseaux.net/oiseaux/fauvette.a.tete.noire.html"]
["Fauvette babillarde",{"$f":"StripAccent(A318)","v":"Fauvette babillarde"},null,{"$f":"StripAccent(C318)","v":""},"Curruca curruca","Lesser Whitethroat","Passériformes","Sylviidés","https://www.oiseaux.net/oiseaux/fauvette.babillarde.html"]
["Fauvette de Chypre",{"$f":"StripAccent(A319)","v":"Fauvette de Chypre"},null,{"$f":"StripAccent(C319)","v":""},"Curruca melanothorax","Cyprus Warbler","Passériformes","Sylviidés","https://www.oiseaux.net/oiseaux/fauvette.de.chypre.html"]
["Fauvette de l'Atlas",{"$f":"StripAccent(A320)","v":"Fauvette de l'Atlas"},null,{"$f":"StripAccent(C320)","v":""},"Curruca deserticola","Tristram's Warbler","Passériformes","Sylviidés","https://www.oiseaux.net/oiseaux/fauvette.de.l.atlas.html"]
["Fauvette de Ménétries",{"$f":"StripAccent(A321)","v":"Fauvette de Menetries"},null,{"$f":"StripAccent(C321)","v":""},"Curruca mystacea","Menetries's Warbler","Passériformes","Sylviidés","https://www.oiseaux.net/oiseaux/fauvette.de.menetries.html"]
["Fauvette de Moltoni",{"$f":"StripAccent(A322)","v":"Fauvette de Moltoni"},null,{"$f":"StripAccent(C322)","v":""},"Curruca subalpina","Moltoni's Warbler","Passériformes","Sylviidés","https://www.oiseaux.net/oiseaux/fauvette.de.moltoni.html"]
["Fauvette de Rüppell",{"$f":"StripAccent(A323)","v":"Fauvette de Ruppell"},null,{"$f":"StripAccent(C323)","v":""},"Curruca ruppeli","Rüppell's Warbler","Passériformes","Sylviidés","https://www.oiseaux.net/oiseaux/fauvette.de.ruppell.html"]
["Fauvette des Baléares",{"$f":"StripAccent(A324)","v":"Fauvette des Baleares"},null,{"$f":"StripAccent(C324)","v":""},"Curruca balearica","Balearic Warbler","Passériformes","Sylviidés","https://www.oiseaux.net/oiseaux/fauvette.des.baleares.html"]
["Fauvette des Balkans",{"$f":"StripAccent(A325)","v":"Fauvette des Balkans"},null,{"$f":"StripAccent(C325)","v":""},"Curruca cantillans","Eastern Subalpine Warbler","Passériformes","Sylviidés","https://www.oiseaux.net/oiseaux/fauvette.des.balkans.html"]
["Fauvette des jardins",{"$f":"StripAccent(A326)","v":"Fauvette des jardins"},null,{"$f":"StripAccent(C326)","v":""},"Sylvia borin","Garden Warbler","Passériformes","Sylviidés","https://www.oiseaux.net/oiseaux/fauvette.des.jardins.html"]
["Fauvette du désert",{"$f":"StripAccent(A327)","v":"Fauvette du desert"},null,{"$f":"StripAccent(C327)","v":""},"Curruca deserti","African Desert Warbler","Passériformes","Sylviidés","https://www.oiseaux.net/oiseaux/fauvette.du.desert.html"]
["Fauvette épervière",{"$f":"StripAccent(A328)","v":"Fauvette eperviere"},null,{"$f":"StripAccent(C328)","v":""},"Curruca nisoria","Barred Warbler","Passériformes","Sylviidés","https://www.oiseaux.net/oiseaux/fauvette.eperviere.html"]
["Fauvette grisette",{"$f":"StripAccent(A329)","v":"Fauvette grisette"},null,{"$f":"StripAccent(C329)","v":""},"Curruca communis","Common Whitethroat","Passériformes","Sylviidés","https://www.oiseaux.net/oiseaux/fauvette.grisette.html"]
["Fauvette mélanocéphale",{"$f":"StripAccent(A330)","v":"Fauvette melanocephale"},null,{"$f":"StripAccent(C330)","v":""},"Curruca melanocephala","Sardinian Warbler","Passériformes","Sylviidés","https://www.oiseaux.net/oiseaux/fauvette.melanocephale.html"]
["Fauvette naine",{"$f":"StripAccent(A331)","v":"Fauvette naine"},null,{"$f":"StripAccent(C331)","v":""},"Curruca nana","Asian Desert Warbler","Passériformes","Sylviidés","https://www.oiseaux.net/oiseaux/fauvette.naine.html"]
["Fauvette orphéane",{"$f":"StripAccent(A332)","v":"Fauvette orpheane"},null,{"$f":"StripAccent(C332)","v":""},"Curruca crassirostris","Eastern Orphean Warbler","Passériformes","Sylviidés","https://www.oiseaux.net/oiseaux/fauvette.orpheane.html"]
["Fauvette orphée",{"$f":"StripAccent(A333)","v":"Fauvette orphee"},null,{"$f":"StripAccent(C333)","v":""},"Curruca hortensis","Western Orphean Warbler","Passériformes","Sylviidés","https://www.oiseaux.net/oiseaux/fauvette.orphee.html"]
["Fauvette passerinette",{"$f":"StripAccent(A334)","v":"Fauvette passerinette"},null,{"$f":"StripAccent(C334)","v":""},"Curruca iberiae","Western Subalpine Warbler","Passériformes","Sylviidés","https://www.oiseaux.net/oiseaux/fauvette.passerinette.html"]
["Fauvette pitchou",{"$f":"StripAccent(A335)","v":"Fauvette pitchou"},null,{"$f":"StripAccent(C335)","v":""},"Curruca undata","Dartford Warbler","Passériformes","Sylviidés","https://www.oiseaux.net/oiseaux/fauvette.pitchou.html"]
["Fauvette sarde",{"$f":"StripAccent(A336)","v":"Fauvette sarde"},null,{"$f":"StripAccent(C336)","v":""},"Curruca sarda","Marmora's Warbler","Passériformes","Sylviidés","https://www.oiseaux.net/oiseaux/fauvette.sarde.html"]
["Flamant des Caraïbes",{"$f":"StripAccent(A337)","v":"Flamant des Caraibes"},null,{"$f":"StripAccent(C337)","v":""},"Phoenicopterus ruber","American Flamingo","Phoenicoptériformes","Phoenicoptéridés","https://www.oiseaux.net/oiseaux/flamant.des.caraibes.html"]
["Flamant du Chili",{"$f":"StripAccent(A338)","v":"Flamant du Chili"},null,{"$f":"StripAccent(C338)","v":""},"Phoenicopterus chilensis","Chilean Flamingo","Phoenicoptériformes","Phoenicoptéridés","https://www.oiseaux.net/oiseaux/flamant.du.chili.html"]
["Flamant nain",{"$f":"StripAccent(A339)","v":"Flamant nain"},null,{"$f":"StripAccent(C339)","v":""},"Phoeniconaias minor","Lesser Flamingo","Phoenicoptériformes","Phoenicoptéridés","https://www.oiseaux.net/oiseaux/flamant.nain.html"]
["Flamant rose",{"$f":"StripAccent(A340)","v":"Flamant rose"},null,{"$f":"StripAccent(C340)","v":""},"Phoenicopterus roseus","Greater Flamingo","Phoenicoptériformes","Phoenicoptéridés","https://www.oiseaux.net/oiseaux/flamant.rose.html"]
["Fou à pieds rouges",{"$f":"StripAccent(A341)","v":"Fou a pieds rouges"},null,{"$f":"StripAccent(C341)","v":""},"Sula sula","Red-footed Booby","Suliformes","Sulidés","https://www.oiseaux.net/oiseaux/fou.a.pieds.rouges.html"]
["Fou brun",{"$f":"StripAccent(A342)","v":"Fou brun"},null,{"$f":"StripAccent(C342)","v":""},"Sula leucogaster","Brown Booby","Suliformes","Sulidés","https://www.oiseaux.net/oiseaux/fou.brun.html"]
["Fou de Bassan",{"$f":"StripAccent(A343)","v":"Fou de Bassan"},null,{"$f":"StripAccent(C343)","v":""},"Morus bassanus","Northern Gannet","Suliformes","Sulidés","https://www.oiseaux.net/oiseaux/fou.de.bassan.html"]
["Fou du Cap",{"$f":"StripAccent(A344)","v":"Fou du Cap"},null,{"$f":"StripAccent(C344)","v":""},"Morus capensis","Cape Gannet","Suliformes","Sulidés","https://www.oiseaux.net/oiseaux/fou.du.cap.html"]
["Fou masqué",{"$f":"StripAccent(A345)","v":"Fou masque"},null,{"$f":"StripAccent(C345)","v":""},"Sula dactylatra","Masked Booby","Suliformes","Sulidés","https://www.oiseaux.net/oiseaux/fou.masque.html"]
["Foulque caronculée",{"$f":"StripAccent(A346)","v":"Foulque caronculee"},"Foulque à crête",{"$f":"StripAccent(C346)","v":"Foulque a crete"},"Fulica cristata","Red-knobbed Coot","Gruiformes","Rallidés","https://www.oiseaux.net/oiseaux/foulque.caronculee.html"]
["Foulque d'Amérique",{"$f":"StripAccent(A347)","v":"Foulque d'Amerique"},null,{"$f":"StripAccent(C347)","v":""},"Fulica americana","American Coot","Gruiformes","Rallidés","https://www.oiseaux.net/oiseaux/foulque.d.amerique.html"]
["Foulque macroule",{"$f":"StripAccent(A348)","v":"Foulque macroule"},null,{"$f":"StripAccent(C348)","v":""},"Fulica atra","Eurasian Coot","Gruiformes","Rallidés","https://www.oiseaux.net/oiseaux/foulque.macroule.html"]
["Francolin d'Erckel",{"$f":"StripAccent(A349)","v":"Francolin d'Erckel"},null,{"$f":"StripAccent(C349)","v":""},"Pternistis erckelii","Erckel's Spurfowl","Galliformes","Phasianidés","https://www.oiseaux.net/oiseaux/francolin.d.erckel.html"]
["Francolin noir",{"$f":"StripAccent(A350)","v":"Francolin noir"},null,{"$f":"StripAccent(C350)","v":""},"Francolinus francolinus","Black Francolin","Galliformes","Phasianidés","https://www.oiseaux.net/oiseaux/francolin.noir.html"]
["Frégate aigle-de-mer",{"$f":"StripAccent(A351)","v":"Fregate aigle-de-mer"},null,{"$f":"StripAccent(C351)","v":""},"Fregata aquila","Ascension Frigatebird","Suliformes","Frégatidés","https://www.oiseaux.net/oiseaux/fregate.aigle-de-mer.html"]
["Frégate superbe",{"$f":"StripAccent(A352)","v":"Fregate superbe"},null,{"$f":"StripAccent(C352)","v":""},"Fregata magnificens","Magnificent Frigatebird","Suliformes","Frégatidés","https://www.oiseaux.net/oiseaux/fregate.superbe.html"]
["Fuligule à bec cerclé",{"$f":"StripAccent(A353)","v":"Fuligule a bec cercle"},"Fuligule à collier",{"$f":"StripAccent(C353)","v":"Fuligule a collier"},"Aythya collaris","Ring-necked Duck","Ansériformes","Anatidés","https://www.oiseaux.net/oiseaux/fuligule.a.bec.cercle.html"]
["Fuligule à dos blanc",{"$f":"StripAccent(A354)","v":"Fuligule a dos blanc"},null,{"$f":"StripAccent(C354)","v":""},"Aythya valisineria","Canvasback","Ansériformes","Anatidés","https://www.oiseaux.net/oiseaux/fuligule.a.dos.blanc.html"]
["Fuligule à tête noire",{"$f":"StripAccent(A355)","v":"Fuligule a tete noire"},"Petit Fuligule",{"$f":"StripAccent(C355)","v":"Petit Fuligule"},"Aythya affinis","Lesser Scaup","Ansériformes","Anatidés","https://www.oiseaux.net/oiseaux/fuligule.a.tete.noire.html"]
["Fuligule à tête rouge",{"$f":"StripAccent(A356)","v":"Fuligule a tete rouge"},null,{"$f":"StripAccent(C356)","v":""},"Aythya americana","Redhead","Ansériformes","Anatidés","https://www.oiseaux.net/oiseaux/fuligule.a.tete.rouge.html"]
["Fuligule milouin",{"$f":"StripAccent(A357)","v":"Fuligule milouin"},null,{"$f":"StripAccent(C357)","v":""},"Aythya ferina","Common Pochard","Ansériformes","Anatidés","https://www.oiseaux.net/oiseaux/fuligule.milouin.html"]
["Fuligule milouinan",{"$f":"StripAccent(A358)","v":"Fuligule milouinan"},null,{"$f":"StripAccent(C358)","v":""},"Aythya marila","Greater Scaup","Ansériformes","Anatidés","https://www.oiseaux.net/oiseaux/fuligule.milouinan.html"]
["Fuligule morillon",{"$f":"StripAccent(A359)","v":"Fuligule morillon"},null,{"$f":"StripAccent(C359)","v":""},"Aythya fuligula","Tufted Duck","Ansériformes","Anatidés","https://www.oiseaux.net/oiseaux/fuligule.morillon.html"]
["Fuligule nyroca",{"$f":"StripAccent(A360)","v":"Fuligule nyroca"},null,{"$f":"StripAccent(C360)","v":""},"Aythya nyroca","Ferruginous Duck","Ansériformes","Anatidés","https://www.oiseaux.net/oiseaux/fuligule.nyroca.html"]
["Fulmar boréal",{"$f":"StripAccent(A361)","v":"Fulmar boreal"},null,{"$f":"StripAccent(C361)","v":""},"Fulmarus glacialis","Northern Fulmar","Procellariiformes","Procellariidés","https://www.oiseaux.net/oiseaux/fulmar.boreal.html"]
["Gallinule africaine",{"$f":"StripAccent(A362)","v":"Gallinule africaine"},null,{"$f":"StripAccent(C362)","v":""},"Paragallinula angulata","Lesser Moorhen","Gruiformes","Rallidés","https://www.oiseaux.net/oiseaux/gallinule.africaine.html"]
["Gallinule d'Amérique",{"$f":"StripAccent(A363)","v":"Gallinule d'Amerique"},null,{"$f":"StripAccent(C363)","v":""},"Gallinula galeata","Common Gallinule","Gruiformes","Rallidés","https://www.oiseaux.net/oiseaux/gallinule.d.amerique.html"]
["Gallinule poule-d'eau",{"$f":"StripAccent(A364)","v":"Gallinule poule-d'eau"},null,{"$f":"StripAccent(C364)","v":""},"Gallinula chloropus","Common Moorhen","Gruiformes","Rallidés","https://www.oiseaux.net/oiseaux/gallinule.poule-d.eau.html"]
["Ganga à ventre brun",{"$f":"StripAccent(A365)","v":"Ganga a ventre brun"},null,{"$f":"StripAccent(C365)","v":""},"Pterocles exustus","Chestnut-bellied Sandgrouse","Pterocliformes","Pteroclidés","https://www.oiseaux.net/oiseaux/ganga.a.ventre.brun.html"]
["Ganga cata",{"$f":"StripAccent(A366)","v":"Ganga cata"},null,{"$f":"StripAccent(C366)","v":""},"Pterocles alchata","Pin-tailed Sandgrouse","Pterocliformes","Pteroclidés","https://www.oiseaux.net/oiseaux/ganga.cata.html"]
["Ganga quadribande",{"$f":"StripAccent(A367)","v":"Ganga quadribande"},null,{"$f":"StripAccent(C367)","v":""},"Pterocles quadricinctus","Four-banded Sandgrouse","Pterocliformes","Pteroclidés","https://www.oiseaux.net/oiseaux/ganga.quadribande.html"]
["Ganga tacheté",{"$f":"StripAccent(A368)","v":"Ganga tachete"},null,{"$f":"StripAccent(C368)","v":""},"Pterocles senegallus","Spotted Sandgrouse","Pterocliformes","Pteroclidés","https://www.oiseaux.net/oiseaux/ganga.tachete.html"]
["Ganga unibande",{"$f":"StripAccent(A369)","v":"Ganga unibande"},null,{"$f":"StripAccent(C369)","v":""},"Pterocles orientalis","Black-bellied Sandgrouse","Pterocliformes","Pteroclidés","https://www.oiseaux.net/oiseaux/ganga.unibande.html"]
["Garde-boeufs d'Asie",{"$f":"StripAccent(A370)","v":"Garde-boeufs d'Asie"},"Gardeboeuf d'Asie",{"$f":"StripAccent(C370)","v":"Gardeboeuf d'Asie"},"Bubulcus coromandus","Eastern Cattle Egret","Pélécaniformes","Ardéidés","https://www.oiseaux.net/oiseaux/garde-boeufs.d.asie.html"]
["Garrot à oeil d'or",{"$f":"StripAccent(A371)","v":"Garrot a oeil d'or"},null,{"$f":"StripAccent(C371)","v":""},"Bucephala clangula","Common Goldeneye","Ansériformes","Anatidés","https://www.oiseaux.net/oiseaux/garrot.a.oeil.d.or.html"]
["Garrot albéole",{"$f":"StripAccent(A372)","v":"Garrot albeole"},"Petit Garrot",{"$f":"StripAccent(C372)","v":"Petit Garrot"},"Bucephala albeola","Bufflehead","Ansériformes","Anatidés","https://www.oiseaux.net/oiseaux/garrot.albeole.html"]
["Garrot d'Islande",{"$f":"StripAccent(A373)","v":"Garrot d'Islande"},null,{"$f":"StripAccent(C373)","v":""},"Bucephala islandica","Barrow's Goldeneye","Ansériformes","Anatidés","https://www.oiseaux.net/oiseaux/garrot.d.islande.html"]
["Geai bleu",{"$f":"StripAccent(A374)","v":"Geai bleu"},null,{"$f":"StripAccent(C374)","v":""},"Cyanocitta cristata","Blue Jay","Passériformes","Corvidés","https://www.oiseaux.net/oiseaux/geai.bleu.html"]
["Geai des chênes",{"$f":"StripAccent(A375)","v":"Geai des chenes"},null,{"$f":"StripAccent(C375)","v":""},"Garrulus glandarius","Eurasian Jay","Passériformes","Corvidés","https://www.oiseaux.net/oiseaux/geai.des.chenes.html"]
["Gélinotte des bois",{"$f":"StripAccent(A376)","v":"Gelinotte des bois"},null,{"$f":"StripAccent(C376)","v":""},"Tetrastes bonasia","Hazel Grouse","Galliformes","Phasianidés","https://www.oiseaux.net/oiseaux/gelinotte.des.bois.html"]
["Glaréole à ailes noires",{"$f":"StripAccent(A377)","v":"Glareole a ailes noires"},null,{"$f":"StripAccent(C377)","v":""},"Glareola nordmanni","Black-winged Pratincole","Charadriiformes","Glaréolidés","https://www.oiseaux.net/oiseaux/glareole.a.ailes.noires.html"]
["Glaréole à collier",{"$f":"StripAccent(A378)","v":"Glareole a collier"},null,{"$f":"StripAccent(C378)","v":""},"Glareola pratincola","Collared Pratincole","Charadriiformes","Glaréolidés","https://www.oiseaux.net/oiseaux/glareole.a.collier.html"]
["Glaréole orientale",{"$f":"StripAccent(A379)","v":"Glareole orientale"},null,{"$f":"StripAccent(C379)","v":""},"Glareola maldivarum","Oriental Pratincole","Charadriiformes","Glaréolidés","https://www.oiseaux.net/oiseaux/glareole.orientale.html"]
["Gobemouche à collier",{"$f":"StripAccent(A380)","v":"Gobemouche a collier"},null,{"$f":"StripAccent(C380)","v":""},"Ficedula albicollis","Collared Flycatcher","Passériformes","Muscicapidés","https://www.oiseaux.net/oiseaux/gobemouche.a.collier.html"]
["Gobemouche à demi-collier",{"$f":"StripAccent(A381)","v":"Gobemouche a demi-collier"},null,{"$f":"StripAccent(C381)","v":""},"Ficedula semitorquata","Semicollared Flycatcher","Passériformes","Muscicapidés","https://www.oiseaux.net/oiseaux/gobemouche.a.demi-collier.html"]
["Gobemouche brun",{"$f":"StripAccent(A382)","v":"Gobemouche brun"},null,{"$f":"StripAccent(C382)","v":""},"Muscicapa dauurica","Asian Brown Flycatcher","Passériformes","Muscicapidés","https://www.oiseaux.net/oiseaux/gobemouche.brun.html"]
["Gobemouche de l'Atlas",{"$f":"StripAccent(A383)","v":"Gobemouche de l'Atlas"},null,{"$f":"StripAccent(C383)","v":""},"Ficedula speculigera","Atlas Pied Flycatcher","Passériformes","Muscicapidés","https://www.oiseaux.net/oiseaux/gobemouche.de.l.atlas.html"]
["Gobemouche de la taïga",{"$f":"StripAccent(A384)","v":"Gobemouche de la taiga"},null,{"$f":"StripAccent(C384)","v":""},"Ficedula albicilla","Taiga Flycatcher","Passériformes","Muscicapidés","https://www.oiseaux.net/oiseaux/gobemouche.de.la.taiga.html"]
["Gobemouche de Sibérie",{"$f":"StripAccent(A385)","v":"Gobemouche de Siberie"},null,{"$f":"StripAccent(C385)","v":""},"Muscicapa sibirica","Dark-sided Flycatcher","Passériformes","Muscicapidés","https://www.oiseaux.net/oiseaux/gobemouche.de.siberie.html"]
["Gobemouche gris",{"$f":"StripAccent(A386)","v":"Gobemouche gris"},null,{"$f":"StripAccent(C386)","v":""},"Muscicapa striata","Spotted Flycatcher","Passériformes","Muscicapidés","https://www.oiseaux.net/oiseaux/gobemouche.gris.html"]
["Gobemouche mugimaki",{"$f":"StripAccent(A387)","v":"Gobemouche mugimaki"},null,{"$f":"StripAccent(C387)","v":""},"Ficedula mugimaki","Mugimaki Flycatcher","Passériformes","Muscicapidés","https://www.oiseaux.net/oiseaux/gobemouche.mugimaki.html"]
["Gobemouche nain",{"$f":"StripAccent(A388)","v":"Gobemouche nain"},null,{"$f":"StripAccent(C388)","v":""},"Ficedula parva","Red-breasted Flycatcher","Passériformes","Muscicapidés","https://www.oiseaux.net/oiseaux/gobemouche.nain.html"]
["Gobemouche noir",{"$f":"StripAccent(A389)","v":"Gobemouche noir"},null,{"$f":"StripAccent(C389)","v":""},"Ficedula hypoleuca","European Pied Flycatcher","Passériformes","Muscicapidés","https://www.oiseaux.net/oiseaux/gobemouche.noir.html"]
["Gobemouche tyrrhénien",{"$f":"StripAccent(A390)","v":"Gobemouche tyrrhenien"},"Gobemouche méditerranéen",{"$f":"StripAccent(C390)","v":"Gobemouche mediterraneen"},"Muscicapa tyrrhenica","Mediterranean Flycatcher","Passériformes","Muscicapidés","https://www.oiseaux.net/oiseaux/gobemouche.tyrrhenien.html"]
["Goéland à ailes blanches",{"$f":"StripAccent(A391)","v":"Goeland a ailes blanches"},"Goéland arctique",{"$f":"StripAccent(C391)","v":"Goeland arctique"},"Larus glaucoides","Iceland Gull","Charadriiformes","Laridés","https://www.oiseaux.net/oiseaux/goeland.a.ailes.blanches.html"]
["Goéland à ailes grises",{"$f":"StripAccent(A392)","v":"Goeland a ailes grises"},null,{"$f":"StripAccent(C392)","v":""},"Larus glaucescens","Glaucous-winged Gull","Charadriiformes","Laridés","https://www.oiseaux.net/oiseaux/goeland.a.ailes.grises.html"]
["Goéland à bec cerclé",{"$f":"StripAccent(A393)","v":"Goeland a bec cercle"},null,{"$f":"StripAccent(C393)","v":""},"Larus delawarensis","Ring-billed Gull","Charadriiformes","Laridés","https://www.oiseaux.net/oiseaux/goeland.a.bec.cercle.html"]
["Goéland à bec court",{"$f":"StripAccent(A394)","v":"Goeland a bec court"},null,{"$f":"StripAccent(C394)","v":""},"Larus brachyrhynchus","Short-billed Gull","Charadriiformes","Laridés","https://www.oiseaux.net/oiseaux/goeland.a.bec.court.html"]
["Goéland à iris blanc",{"$f":"StripAccent(A395)","v":"Goeland a iris blanc"},null,{"$f":"StripAccent(C395)","v":""},"Ichthyaetus leucophthalmus","White-eyed Gull","Charadriiformes","Laridés","https://www.oiseaux.net/oiseaux/goeland.a.iris.blanc.html"]
["Goéland à manteau ardoisé",{"$f":"StripAccent(A396)","v":"Goeland a manteau ardoise"},null,{"$f":"StripAccent(C396)","v":""},"Larus schistisagus","Slaty-backed Gull","Charadriiformes","Laridés","https://www.oiseaux.net/oiseaux/goeland.a.manteau.ardoise.html"]
["Goéland à queue noire",{"$f":"StripAccent(A397)","v":"Goeland a queue noire"},null,{"$f":"StripAccent(C397)","v":""},"Larus crassirostris","Black-tailed Gull","Charadriiformes","Laridés","https://www.oiseaux.net/oiseaux/goeland.a.queue.noire.html"]
["Goéland argenté",{"$f":"StripAccent(A398)","v":"Goeland argente"},null,{"$f":"StripAccent(C398)","v":""},"Larus argentatus","European Herring Gull","Charadriiformes","Laridés","https://www.oiseaux.net/oiseaux/goeland.argente.html"]
["Goéland bourgmestre",{"$f":"StripAccent(A399)","v":"Goeland bourgmestre"},null,{"$f":"StripAccent(C399)","v":""},"Larus hyperboreus","Glaucous Gull","Charadriiformes","Laridés","https://www.oiseaux.net/oiseaux/goeland.bourgmestre.html"]
["Goéland brun",{"$f":"StripAccent(A400)","v":"Goeland brun"},null,{"$f":"StripAccent(C400)","v":""},"Larus fuscus","Lesser Black-backed Gull","Charadriiformes","Laridés","https://www.oiseaux.net/oiseaux/goeland.brun.html"]
["Goéland cendré",{"$f":"StripAccent(A401)","v":"Goeland cendre"},null,{"$f":"StripAccent(C401)","v":""},"Larus canus","Common Gull","Charadriiformes","Laridés","https://www.oiseaux.net/oiseaux/goeland.cendre.html"]
["Goéland d'Amérique",{"$f":"StripAccent(A402)","v":"Goeland d'Amerique"},"Goéland hudsonien",{"$f":"StripAccent(C402)","v":"Goeland hudsonien"},"Larus smithsonianus","American Herring Gull","Charadriiformes","Laridés","https://www.oiseaux.net/oiseaux/goeland.d.amerique.html"]
["Goéland d'Arménie",{"$f":"StripAccent(A403)","v":"Goeland d'Armenie"},null,{"$f":"StripAccent(C403)","v":""},"Larus armenicus","Armenian Gull","Charadriiformes","Laridés","https://www.oiseaux.net/oiseaux/goeland.d.armenie.html"]
["Goéland d'Audouin",{"$f":"StripAccent(A404)","v":"Goeland d'Audouin"},null,{"$f":"StripAccent(C404)","v":""},"Ichthyaetus audouinii","Audouin's Gull","Charadriiformes","Laridés","https://www.oiseaux.net/oiseaux/goeland.d.audouin.html"]
["Goéland de la Véga",{"$f":"StripAccent(A405)","v":"Goeland de la Vega"},null,{"$f":"StripAccent(C405)","v":""},"Larus vegae","Vega Gull","Charadriiformes","Laridés","https://www.oiseaux.net/oiseaux/goeland.de.la.vega.html"]
["Goéland dominicain",{"$f":"StripAccent(A406)","v":"Goeland dominicain"},null,{"$f":"StripAccent(C406)","v":""},"Larus dominicanus","Kelp Gull","Charadriiformes","Laridés","https://www.oiseaux.net/oiseaux/goeland.dominicain.html"]
["Goéland ichthyaète",{"$f":"StripAccent(A407)","v":"Goeland ichthyaete"},null,{"$f":"StripAccent(C407)","v":""},"Ichthyaetus ichthyaetus","Pallas's Gull","Charadriiformes","Laridés","https://www.oiseaux.net/oiseaux/goeland.ichthyaete.html"]
["Goéland leucophée",{"$f":"StripAccent(A408)","v":"Goeland leucophee"},null,{"$f":"StripAccent(C408)","v":""},"Larus michahellis","Yellow-legged Gull","Charadriiformes","Laridés","https://www.oiseaux.net/oiseaux/goeland.leucophee.html"]
["Goéland marin",{"$f":"StripAccent(A409)","v":"Goeland marin"},null,{"$f":"StripAccent(C409)","v":""},"Larus marinus","Great Black-backed Gull","Charadriiformes","Laridés","https://www.oiseaux.net/oiseaux/goeland.marin.html"]
["Goéland pontique",{"$f":"StripAccent(A410)","v":"Goeland pontique"},null,{"$f":"StripAccent(C410)","v":""},"Larus cachinnans","Caspian Gull","Charadriiformes","Laridés","https://www.oiseaux.net/oiseaux/goeland.pontique.html"]
["Goéland railleur",{"$f":"StripAccent(A411)","v":"Goeland railleur"},null,{"$f":"StripAccent(C411)","v":""},"Chroicocephalus genei","Slender-billed Gull","Charadriiformes","Laridés","https://www.oiseaux.net/oiseaux/goeland.railleur.html"]
["Goglu des prés",{"$f":"StripAccent(A412)","v":"Goglu des pres"},null,{"$f":"StripAccent(C412)","v":""},"Dolichonyx oryzivorus","Bobolink","Passériformes","Ictéridés","https://www.oiseaux.net/oiseaux/goglu.des.pres.html"]
["Gorgebleue à miroir",{"$f":"StripAccent(A413)","v":"Gorgebleue a miroir"},null,{"$f":"StripAccent(C413)","v":""},"Luscinia svecica","Bluethroat","Passériformes","Muscicapidés","https://www.oiseaux.net/oiseaux/gorgebleue.a.miroir.html"]
["Grand-duc ascalaphe",{"$f":"StripAccent(A414)","v":"Grand-duc ascalaphe"},null,{"$f":"StripAccent(C414)","v":""},"Bubo ascalaphus","Pharaoh Eagle-Owl","Strigiformes","Strigidés","https://www.oiseaux.net/oiseaux/grand-duc.ascalaphe.html"]
["Grand-duc d'Europe",{"$f":"StripAccent(A415)","v":"Grand-duc d'Europe"},null,{"$f":"StripAccent(C415)","v":""},"Bubo bubo","Eurasian Eagle-Owl","Strigiformes","Strigidés","https://www.oiseaux.net/oiseaux/grand-duc.d.europe.html"]
["Grand Corbeau",{"$f":"StripAccent(A416)","v":"Grand Corbeau"},null,{"$f":"StripAccent(C416)","v":""},"Corvus corax","Northern Raven","Passériformes","Corvidés","https://www.oiseaux.net/oiseaux/grand.corbeau.html"]
["Grand Cormoran",{"$f":"StripAccent(A417)","v":"Grand Cormoran"},null,{"$f":"StripAccent(C417)","v":""},"Phalacrocorax carbo","Great Cormorant","Suliformes","Phalacrocoracidés","https://www.oiseaux.net/oiseaux/grand.cormoran.html"]
["Grand Gravelot",{"$f":"StripAccent(A418)","v":"Grand Gravelot"},"Pluvier grand-gravelot",{"$f":"StripAccent(C418)","v":"Pluvier grand-gravelot"},"Charadrius hiaticula","Common Ringed Plover","Charadriiformes","Charadriidés","https://www.oiseaux.net/oiseaux/grand.gravelot.html"]
["Grand Grèbe",{"$f":"StripAccent(A419)","v":"Grand Grebe"},null,{"$f":"StripAccent(C419)","v":""},"Podiceps major","Great Grebe","Podicipédiformes","Podicipédidés","https://www.oiseaux.net/oiseaux/grand.grebe.html"]
["Grand Héron",{"$f":"StripAccent(A420)","v":"Grand Heron"},null,{"$f":"StripAccent(C420)","v":""},"Ardea herodias","Great Blue Heron","Pélécaniformes","Ardéidés","https://www.oiseaux.net/oiseaux/grand.heron.html"]
["Grand Labbe",{"$f":"StripAccent(A421)","v":"Grand Labbe"},null,{"$f":"StripAccent(C421)","v":""},"Stercorarius skua","Great Skua","Charadriiformes","Stercorariidés","https://www.oiseaux.net/oiseaux/grand.labbe.html"]
["Grand Pingouin",{"$f":"StripAccent(A422)","v":"Grand Pingouin"},null,{"$f":"StripAccent(C422)","v":""},"Pinguinus impennis","Great Auk","Charadriiformes","Alcidés","https://www.oiseaux.net/oiseaux/grand.pingouin.html"]
["Grand Tétras",{"$f":"StripAccent(A423)","v":"Grand Tetras"},null,{"$f":"StripAccent(C423)","v":""},"Tetrao urogallus","Western Capercaillie","Galliformes","Phasianidés","https://www.oiseaux.net/oiseaux/grand.tetras.html"]
["Grande Aigrette",{"$f":"StripAccent(A424)","v":"Grande Aigrette"},null,{"$f":"StripAccent(C424)","v":""},"Ardea alba","Great Egret","Pélécaniformes","Ardéidés","https://www.oiseaux.net/oiseaux/grande.aigrette.html"]
["Gravelot à collier interrompu",{"$f":"StripAccent(A425)","v":"Gravelot a collier interrompu"},"Pluvier à collier interrompu",{"$f":"StripAccent(C425)","v":"Pluvier a collier interrompu"},"Anarhynchus alexandrinus","Kentish Plover","Charadriiformes","Charadriidés","https://www.oiseaux.net/oiseaux/gravelot.a.collier.interrompu.html"]
["Gravelot de Leschenault",{"$f":"StripAccent(A426)","v":"Gravelot de Leschenault"},"Pluvier de Leschenault",{"$f":"StripAccent(C426)","v":"Pluvier de Leschenault"},"Anarhynchus leschenaultii","Greater Sand Plover","Charadriiformes","Charadriidés","https://www.oiseaux.net/oiseaux/gravelot.de.leschenault.html"]
["Gravelot kildir",{"$f":"StripAccent(A427)","v":"Gravelot kildir"},"Pluvier kildir",{"$f":"StripAccent(C427)","v":"Pluvier kildir"},"Charadrius vociferus","Killdeer","Charadriiformes","Charadriidés","https://www.oiseaux.net/oiseaux/gravelot.kildir.html"]
["Gravelot mongol",{"$f":"StripAccent(A428)","v":"Gravelot mongol"},"Pluvier de Mongolie",{"$f":"StripAccent(C428)","v":"Pluvier de Mongolie"},"Anarhynchus mongolus","Siberian Sand Plover","Charadriiformes","Charadriidés","https://www.oiseaux.net/oiseaux/gravelot.mongol.html"]
["Gravelot neigeux",{"$f":"StripAccent(A429)","v":"Gravelot neigeux"},"Pluvier neigeux",{"$f":"StripAccent(C429)","v":"Pluvier neigeux"},"Anarhynchus nivosus","Snowy Plover","Charadriiformes","Charadriidés","https://www.oiseaux.net/oiseaux/gravelot.neigeux.html"]
["Gravelot oriental",{"$f":"StripAccent(A430)","v":"Gravelot oriental"},"Pluvier oriental",{"$f":"StripAccent(C430)","v":"Pluvier oriental"},"Anarhynchus veredus","Oriental Plover","Charadriiformes","Charadriidés","https://www.oiseaux.net/oiseaux/gravelot.oriental.html"]
["Gravelot pâtre",{"$f":"StripAccent(A431)","v":"Gravelot patre"},"Pluvier pâtre",{"$f":"StripAccent(C431)","v":"Pluvier patre"},"Anarhynchus pecuarius","Kittlitz's Plover","Charadriiformes","Charadriidés","https://www.oiseaux.net/oiseaux/gravelot.patre.html"]
["Gravelot semipalmé",{"$f":"StripAccent(A432)","v":"Gravelot semipalme"},"Pluvier semipalmé",{"$f":"StripAccent(C432)","v":"Pluvier semipalme"},"Charadrius semipalmatus","Semipalmated Plover","Charadriiformes","Charadriidés","https://www.oiseaux.net/oiseaux/gravelot.semipalme.html"]
["Grèbe à bec bigarré",{"$f":"StripAccent(A433)","v":"Grebe a bec bigarre"},null,{"$f":"StripAccent(C433)","v":""},"Podilymbus podiceps","Pied-billed Grebe","Podicipédiformes","Podicipédidés","https://www.oiseaux.net/oiseaux/grebe.a.bec.bigarre.html"]
["Grèbe à cou noir",{"$f":"StripAccent(A434)","v":"Grebe a cou noir"},null,{"$f":"StripAccent(C434)","v":""},"Podiceps nigricollis","Black-necked Grebe","Podicipédiformes","Podicipédidés","https://www.oiseaux.net/oiseaux/grebe.a.cou.noir.html"]
["Grèbe castagneux",{"$f":"StripAccent(A435)","v":"Grebe castagneux"},null,{"$f":"StripAccent(C435)","v":""},"Tachybaptus ruficollis","Little Grebe","Podicipédiformes","Podicipédidés","https://www.oiseaux.net/oiseaux/grebe.castagneux.html"]
["Grèbe esclavon",{"$f":"StripAccent(A436)","v":"Grebe esclavon"},null,{"$f":"StripAccent(C436)","v":""},"Podiceps auritus","Horned Grebe","Podicipédiformes","Podicipédidés","https://www.oiseaux.net/oiseaux/grebe.esclavon.html"]
["Grèbe huppé",{"$f":"StripAccent(A437)","v":"Grebe huppe"},null,{"$f":"StripAccent(C437)","v":""},"Podiceps cristatus","Great Crested Grebe","Podicipédiformes","Podicipédidés","https://www.oiseaux.net/oiseaux/grebe.huppe.html"]
["Grèbe jougris",{"$f":"StripAccent(A438)","v":"Grebe jougris"},null,{"$f":"StripAccent(C438)","v":""},"Podiceps grisegena","Red-necked Grebe","Podicipédiformes","Podicipédidés","https://www.oiseaux.net/oiseaux/grebe.jougris.html"]
["Grimpereau des bois",{"$f":"StripAccent(A439)","v":"Grimpereau des bois"},null,{"$f":"StripAccent(C439)","v":""},"Certhia familiaris","Eurasian Treecreeper","Passériformes","Certhiidés","https://www.oiseaux.net/oiseaux/grimpereau.des.bois.html"]
["Grimpereau des jardins",{"$f":"StripAccent(A440)","v":"Grimpereau des jardins"},null,{"$f":"StripAccent(C440)","v":""},"Certhia brachydactyla","Short-toed Treecreeper","Passériformes","Certhiidés","https://www.oiseaux.net/oiseaux/grimpereau.des.jardins.html"]
["Grive à ailes rousses",{"$f":"StripAccent(A441)","v":"Grive a ailes rousses"},null,{"$f":"StripAccent(C441)","v":""},"Turdus eunomus","Dusky Thrush","Passériformes","Turdidés","https://www.oiseaux.net/oiseaux/grive.a.ailes.rousses.html"]
["Grive à collier",{"$f":"StripAccent(A442)","v":"Grive a collier"},null,{"$f":"StripAccent(C442)","v":""},"Ixoreus naevius","Varied Thrush","Passériformes","Turdidés","https://www.oiseaux.net/oiseaux/grive.a.collier.html"]
["Grive à dos olive",{"$f":"StripAccent(A443)","v":"Grive a dos olive"},null,{"$f":"StripAccent(C443)","v":""},"Catharus ustulatus","Swainson's Thrush","Passériformes","Turdidés","https://www.oiseaux.net/oiseaux/grive.a.dos.olive.html"]
["Grive à gorge noire",{"$f":"StripAccent(A444)","v":"Grive a gorge noire"},null,{"$f":"StripAccent(C444)","v":""},"Turdus atrogularis","Black-throated Thrush","Passériformes","Turdidés","https://www.oiseaux.net/oiseaux/grive.a.gorge.noire.html"]
["Grive à gorge rousse",{"$f":"StripAccent(A445)","v":"Grive a gorge rousse"},null,{"$f":"StripAccent(C445)","v":""},"Turdus ruficollis","Red-throated Thrush","Passériformes","Turdidés","https://www.oiseaux.net/oiseaux/grive.a.gorge.rousse.html"]
["Grive à joues grises",{"$f":"StripAccent(A446)","v":"Grive a joues grises"},null,{"$f":"StripAccent(C446)","v":""},"Catharus minimus","Grey-cheeked Thrush","Passériformes","Turdidés","https://www.oiseaux.net/oiseaux/grive.a.joues.grises.html"]
["Grive dama",{"$f":"StripAccent(A447)","v":"Grive dama"},null,{"$f":"StripAccent(C447)","v":""},"Zoothera dauma","Scaly Thrush","Passériformes","Turdidés","https://www.oiseaux.net/oiseaux/grive.dama.html"]
["Grive de Naumann",{"$f":"StripAccent(A448)","v":"Grive de Naumann"},null,{"$f":"StripAccent(C448)","v":""},"Turdus naumanni","Naumann's Thrush","Passériformes","Turdidés","https://www.oiseaux.net/oiseaux/grive.de.naumann.html"]
["Grive de Sibérie",{"$f":"StripAccent(A449)","v":"Grive de Siberie"},null,{"$f":"StripAccent(C449)","v":""},"Geokichla sibirica","Siberian Thrush","Passériformes","Turdidés","https://www.oiseaux.net/oiseaux/grive.de.siberie.html"]
["Grive des bois",{"$f":"StripAccent(A450)","v":"Grive des bois"},null,{"$f":"StripAccent(C450)","v":""},"Hylocichla mustelina","Wood Thrush","Passériformes","Turdidés","https://www.oiseaux.net/oiseaux/grive.des.bois.html"]
["Grive dorée",{"$f":"StripAccent(A451)","v":"Grive doree"},null,{"$f":"StripAccent(C451)","v":""},"Zoothera aurea","White's Thrush","Passériformes","Turdidés","https://www.oiseaux.net/oiseaux/grive.doree.html"]
["Grive draine",{"$f":"StripAccent(A452)","v":"Grive draine"},null,{"$f":"StripAccent(C452)","v":""},"Turdus viscivorus","Mistle Thrush","Passériformes","Turdidés","https://www.oiseaux.net/oiseaux/grive.draine.html"]
["Grive fauve",{"$f":"StripAccent(A453)","v":"Grive fauve"},null,{"$f":"StripAccent(C453)","v":""},"Catharus fuscescens","Veery","Passériformes","Turdidés","https://www.oiseaux.net/oiseaux/grive.fauve.html"]
["Grive litorne",{"$f":"StripAccent(A454)","v":"Grive litorne"},null,{"$f":"StripAccent(C454)","v":""},"Turdus pilaris","Fieldfare","Passériformes","Turdidés","https://www.oiseaux.net/oiseaux/grive.litorne.html"]
["Grive mauvis",{"$f":"StripAccent(A455)","v":"Grive mauvis"},null,{"$f":"StripAccent(C455)","v":""},"Turdus iliacus","Redwing","Passériformes","Turdidés","https://www.oiseaux.net/oiseaux/grive.mauvis.html"]
["Grive musicienne",{"$f":"StripAccent(A456)","v":"Grive musicienne"},null,{"$f":"StripAccent(C456)","v":""},"Turdus philomelos","Song Thrush","Passériformes","Turdidés","https://www.oiseaux.net/oiseaux/grive.musicienne.html"]
["Grive obscure",{"$f":"StripAccent(A457)","v":"Grive obscure"},"Merle obscur",{"$f":"StripAccent(C457)","v":"Merle obscur"},"Turdus obscurus","Eyebrowed Thrush","Passériformes","Turdidés","https://www.oiseaux.net/oiseaux/grive.obscure.html"]
["Grive solitaire",{"$f":"StripAccent(A458)","v":"Grive solitaire"},null,{"$f":"StripAccent(C458)","v":""},"Catharus guttatus","Hermit Thrush","Passériformes","Turdidés","https://www.oiseaux.net/oiseaux/grive.solitaire.html"]
["Grosbec casse-noyaux",{"$f":"StripAccent(A459)","v":"Grosbec casse-noyaux"},"Gros-bec casse-noyaux",{"$f":"StripAccent(C459)","v":"Gros-bec casse-noyaux"},"Coccothraustes coccothraustes","Hawfinch","Passériformes","Fringillidés","https://www.oiseaux.net/oiseaux/grosbec.casse-noyaux.html"]
["Grosbec errant",{"$f":"StripAccent(A460)","v":"Grosbec errant"},"Gros-bec errant",{"$f":"StripAccent(C460)","v":"Gros-bec errant"},"Hesperiphona vespertina","Evening Grosbeak","Passériformes","Fringillidés","https://www.oiseaux.net/oiseaux/grosbec.errant.html"]
["Grue cendrée",{"$f":"StripAccent(A461)","v":"Grue cendree"},null,{"$f":"StripAccent(C461)","v":""},"Grus grus","Common Crane","Gruiformes","Gruidés","https://www.oiseaux.net/oiseaux/grue.cendree.html"]
["Grue de Sibérie",{"$f":"StripAccent(A462)","v":"Grue de Siberie"},null,{"$f":"StripAccent(C462)","v":""},"Leucogeranus leucogeranus","Siberian Crane","Gruiformes","Gruidés","https://www.oiseaux.net/oiseaux/grue.de.siberie.html"]
["Grue demoiselle",{"$f":"StripAccent(A463)","v":"Grue demoiselle"},null,{"$f":"StripAccent(C463)","v":""},"Grus virgo","Demoiselle Crane","Gruiformes","Gruidés","https://www.oiseaux.net/oiseaux/grue.demoiselle.html"]
["Grue du Canada",{"$f":"StripAccent(A464)","v":"Grue du Canada"},null,{"$f":"StripAccent(C464)","v":""},"Antigone canadensis","Sandhill Crane","Gruiformes","Gruidés","https://www.oiseaux.net/oiseaux/grue.du.canada.html"]
["Grue moine",{"$f":"StripAccent(A465)","v":"Grue moine"},null,{"$f":"StripAccent(C465)","v":""},"Grus monacha","Hooded Crane","Gruiformes","Gruidés","https://www.oiseaux.net/oiseaux/grue.moine.html"]
["Guêpier à sourcils bleus",{"$f":"StripAccent(A466)","v":"Guepier a sourcils bleus"},null,{"$f":"StripAccent(C466)","v":""},"Merops cyanophrys","Arabian Green Bee-eater","Coraciiformes","Méropidés","https://www.oiseaux.net/oiseaux/guepier.a.sourcils.bleus.html"]
["Guêpier d'Europe",{"$f":"StripAccent(A467)","v":"Guepier d'Europe"},null,{"$f":"StripAccent(C467)","v":""},"Merops apiaster","European Bee-eater","Coraciiformes","Méropidés","https://www.oiseaux.net/oiseaux/guepier.d.europe.html"]
["Guêpier d'Orient",{"$f":"StripAccent(A468)","v":"Guepier d'Orient"},null,{"$f":"StripAccent(C468)","v":""},"Merops orientalis","Asian Green Bee-eater","Coraciiformes","Méropidés","https://www.oiseaux.net/oiseaux/guepier.d.orient.html"]
["Guêpier de Perse",{"$f":"StripAccent(A469)","v":"Guepier de Perse"},null,{"$f":"StripAccent(C469)","v":""},"Merops persicus","Blue-cheeked Bee-eater","Coraciiformes","Méropidés","https://www.oiseaux.net/oiseaux/guepier.de.perse.html"]
["Guifette leucoptère",{"$f":"StripAccent(A470)","v":"Guifette leucoptere"},null,{"$f":"StripAccent(C470)","v":""},"Chlidonias leucopterus","White-winged Tern","Charadriiformes","Laridés","https://www.oiseaux.net/oiseaux/guifette.leucoptere.html"]
["Guifette moustac",{"$f":"StripAccent(A471)","v":"Guifette moustac"},null,{"$f":"StripAccent(C471)","v":""},"Chlidonias hybrida","Whiskered Tern","Charadriiformes","Laridés","https://www.oiseaux.net/oiseaux/guifette.moustac.html"]
["Guifette noire",{"$f":"StripAccent(A472)","v":"Guifette noire"},null,{"$f":"StripAccent(C472)","v":""},"Chlidonias niger","Black Tern","Charadriiformes","Laridés","https://www.oiseaux.net/oiseaux/guifette.noire.html"]
["Guillemot à cou blanc",{"$f":"StripAccent(A473)","v":"Guillemot a cou blanc"},null,{"$f":"StripAccent(C473)","v":""},"Synthliboramphus antiquus","Ancient Murrelet","Charadriiformes","Alcidés","https://www.oiseaux.net/oiseaux/guillemot.a.cou.blanc.html"]
["Guillemot à long bec",{"$f":"StripAccent(A474)","v":"Guillemot a long bec"},null,{"$f":"StripAccent(C474)","v":""},"Brachyramphus perdix","Long-billed Murrelet","Charadriiformes","Alcidés","https://www.oiseaux.net/oiseaux/guillemot.a.long.bec.html"]
["Guillemot à miroir",{"$f":"StripAccent(A475)","v":"Guillemot a miroir"},null,{"$f":"StripAccent(C475)","v":""},"Cepphus grylle","Black Guillemot","Charadriiformes","Alcidés","https://www.oiseaux.net/oiseaux/guillemot.a.miroir.html"]
["Guillemot colombin",{"$f":"StripAccent(A476)","v":"Guillemot colombin"},null,{"$f":"StripAccent(C476)","v":""},"Cepphus columba","Pigeon Guillemot","Charadriiformes","Alcidés","https://www.oiseaux.net/oiseaux/guillemot.colombin.html"]
["Guillemot de Brünnich",{"$f":"StripAccent(A477)","v":"Guillemot de Brunnich"},null,{"$f":"StripAccent(C477)","v":""},"Uria lomvia","Thick-billed Murre","Charadriiformes","Alcidés","https://www.oiseaux.net/oiseaux/guillemot.de.brunnich.html"]
["Guillemot de Troïl",{"$f":"StripAccent(A478)","v":"Guillemot de Troil"},"Guillemot marmette",{"$f":"StripAccent(C478)","v":"Guillemot marmette"},"Uria aalge","Common Murre","Charadriiformes","Alcidés","https://www.oiseaux.net/oiseaux/guillemot.de.troil.html"]
["Guiraca bleu",{"$f":"StripAccent(A479)","v":"Guiraca bleu"},null,{"$f":"StripAccent(C479)","v":""},"Passerina caerulea","Blue Grosbeak","Passériformes","Cardinalidés","https://www.oiseaux.net/oiseaux/guiraca.bleu.html"]
["Gypaète barbu",{"$f":"StripAccent(A480)","v":"Gypaete barbu"},null,{"$f":"StripAccent(C480)","v":""},"Gypaetus barbatus","Bearded Vulture","Accipitriformes","Accipitridés","https://www.oiseaux.net/oiseaux/gypaete.barbu.html"]
["Harelde boréale",{"$f":"StripAccent(A481)","v":"Harelde boreale"},"Harelde kakawi",{"$f":"StripAccent(C481)","v":"Harelde kakawi"},"Clangula hyemalis","Long-tailed Duck","Ansériformes","Anatidés","https://www.oiseaux.net/oiseaux/harelde.boreale.html"]
["Harfang des neiges",{"$f":"StripAccent(A482)","v":"Harfang des neiges"},null,{"$f":"StripAccent(C482)","v":""},"Bubo scandiacus","Snowy Owl","Strigiformes","Strigidés","https://www.oiseaux.net/oiseaux/harfang.des.neiges.html"]
["Harle bièvre",{"$f":"StripAccent(A483)","v":"Harle bievre"},"Grand Harle",{"$f":"StripAccent(C483)","v":"Grand Harle"},"Mergus merganser","Common Merganser","Ansériformes","Anatidés","https://www.oiseaux.net/oiseaux/harle.bievre.html"]
["Harle couronné",{"$f":"StripAccent(A484)","v":"Harle couronne"},null,{"$f":"StripAccent(C484)","v":""},"Lophodytes cucullatus","Hooded Merganser","Ansériformes","Anatidés","https://www.oiseaux.net/oiseaux/harle.couronne.html"]
["Harle huppé",{"$f":"StripAccent(A485)","v":"Harle huppe"},null,{"$f":"StripAccent(C485)","v":""},"Mergus serrator","Red-breasted Merganser","Ansériformes","Anatidés","https://www.oiseaux.net/oiseaux/harle.huppe.html"]
["Harle piette",{"$f":"StripAccent(A486)","v":"Harle piette"},null,{"$f":"StripAccent(C486)","v":""},"Mergellus albellus","Smew","Ansériformes","Anatidés","https://www.oiseaux.net/oiseaux/harle.piette.html"]
["Héron cendré",{"$f":"StripAccent(A487)","v":"Heron cendre"},null,{"$f":"StripAccent(C487)","v":""},"Ardea cinerea","Grey Heron","Pélécaniformes","Ardéidés","https://www.oiseaux.net/oiseaux/heron.cendre.html"]
["Héron garde-boeufs",{"$f":"StripAccent(A488)","v":"Heron garde-boeufs"},null,{"$f":"StripAccent(C488)","v":""},"Bubulcus ibis","Western Cattle Egret","Pélécaniformes","Ardéidés","https://www.oiseaux.net/oiseaux/heron.garde-boeufs.html"]
["Héron intermédiaire",{"$f":"StripAccent(A489)","v":"Heron intermediaire"},null,{"$f":"StripAccent(C489)","v":""},"Ardea intermedia","Medium Egret","Pélécaniformes","Ardéidés","https://www.oiseaux.net/oiseaux/heron.intermediaire.html"]
["Héron mélanocéphale",{"$f":"StripAccent(A490)","v":"Heron melanocephale"},null,{"$f":"StripAccent(C490)","v":""},"Ardea melanocephala","Black-headed Heron","Pélécaniformes","Ardéidés","https://www.oiseaux.net/oiseaux/heron.melanocephale.html"]
["Héron pourpré",{"$f":"StripAccent(A491)","v":"Heron pourpre"},null,{"$f":"StripAccent(C491)","v":""},"Ardea purpurea","Purple Heron","Pélécaniformes","Ardéidés","https://www.oiseaux.net/oiseaux/heron.pourpre.html"]
["Héron strié",{"$f":"StripAccent(A492)","v":"Heron strie"},null,{"$f":"StripAccent(C492)","v":""},"Butorides striata","Striated Heron","Pélécaniformes","Ardéidés","https://www.oiseaux.net/oiseaux/heron.strie.html"]
["Héron vert",{"$f":"StripAccent(A493)","v":"Heron vert"},null,{"$f":"StripAccent(C493)","v":""},"Butorides virescens","Green Heron","Pélécaniformes","Ardéidés","https://www.oiseaux.net/oiseaux/heron.vert.html"]
["Hibou des marais",{"$f":"StripAccent(A494)","v":"Hibou des marais"},null,{"$f":"StripAccent(C494)","v":""},"Asio flammeus","Short-eared Owl","Strigiformes","Strigidés","https://www.oiseaux.net/oiseaux/hibou.des.marais.html"]
["Hibou du Cap",{"$f":"StripAccent(A495)","v":"Hibou du Cap"},null,{"$f":"StripAccent(C495)","v":""},"Asio capensis","Marsh Owl","Strigiformes","Strigidés","https://www.oiseaux.net/oiseaux/hibou.du.cap.html"]
["Hibou moyen-duc",{"$f":"StripAccent(A496)","v":"Hibou moyen-duc"},null,{"$f":"StripAccent(C496)","v":""},"Asio otus","Long-eared Owl","Strigiformes","Strigidés","https://www.oiseaux.net/oiseaux/hibou.moyen-duc.html"]
["Hirondelle à ailes hérissées",{"$f":"StripAccent(A497)","v":"Hirondelle a ailes herissees"},null,{"$f":"StripAccent(C497)","v":""},"Stelgidopteryx serripennis","Northern Rough-winged Swallow","Passériformes","Hirundinidés","https://www.oiseaux.net/oiseaux/hirondelle.a.ailes.herissees.html"]
["Hirondelle à front blanc",{"$f":"StripAccent(A498)","v":"Hirondelle a front blanc"},null,{"$f":"StripAccent(C498)","v":""},"Petrochelidon pyrrhonota","American Cliff Swallow","Passériformes","Hirundinidés","https://www.oiseaux.net/oiseaux/hirondelle.a.front.blanc.html"]
["Hirondelle bicolore",{"$f":"StripAccent(A499)","v":"Hirondelle bicolore"},null,{"$f":"StripAccent(C499)","v":""},"Tachycineta bicolor","Tree Swallow","Passériformes","Hirundinidés","https://www.oiseaux.net/oiseaux/hirondelle.bicolore.html"]
["Hirondelle de Bonaparte",{"$f":"StripAccent(A500)","v":"Hirondelle de Bonaparte"},null,{"$f":"StripAccent(C500)","v":""},"Delichon dasypus","Asian House Martin","Passériformes","Hirundinidés","https://www.oiseaux.net/oiseaux/hirondelle.de.bonaparte.html"]
["Hirondelle de fenêtre",{"$f":"StripAccent(A501)","v":"Hirondelle de fenetre"},null,{"$f":"StripAccent(C501)","v":""},"Delichon urbicum","Western House Martin","Passériformes","Hirundinidés","https://www.oiseaux.net/oiseaux/hirondelle.de.fenetre.html"]
["Hirondelle de Pallas",{"$f":"StripAccent(A502)","v":"Hirondelle de Pallas"},null,{"$f":"StripAccent(C502)","v":""},"Delichon lagopodum","Siberian House Martin","Passériformes","Hirundinidés","https://www.oiseaux.net/oiseaux/hirondelle.de.pallas.html"]
["Hirondelle de rivage",{"$f":"StripAccent(A503)","v":"Hirondelle de rivage"},null,{"$f":"StripAccent(C503)","v":""},"Riparia riparia","Sand Martin","Passériformes","Hirundinidés","https://www.oiseaux.net/oiseaux/hirondelle.de.rivage.html"]
["Hirondelle de rochers",{"$f":"StripAccent(A504)","v":"Hirondelle de rochers"},null,{"$f":"StripAccent(C504)","v":""},"Ptyonoprogne rupestris","Eurasian Crag Martin","Passériformes","Hirundinidés","https://www.oiseaux.net/oiseaux/hirondelle.de.rochers.html"]
["Hirondelle du désert",{"$f":"StripAccent(A505)","v":"Hirondelle du desert"},null,{"$f":"StripAccent(C505)","v":""},"Ptyonoprogne obsoleta","Pale Crag Martin","Passériformes","Hirundinidés","https://www.oiseaux.net/oiseaux/hirondelle.du.desert.html"]
["Hirondelle isabelline",{"$f":"StripAccent(A506)","v":"Hirondelle isabelline"},null,{"$f":"StripAccent(C506)","v":""},"Ptyonoprogne fuligula","Rock Martin","Passériformes","Hirundinidés","https://www.oiseaux.net/oiseaux/hirondelle.isabelline.html"]
["Hirondelle noire",{"$f":"StripAccent(A507)","v":"Hirondelle noire"},null,{"$f":"StripAccent(C507)","v":""},"Progne subis","Purple Martin","Passériformes","Hirundinidés","https://www.oiseaux.net/oiseaux/hirondelle.noire.html"]
["Hirondelle pâle",{"$f":"StripAccent(A508)","v":"Hirondelle pale"},null,{"$f":"StripAccent(C508)","v":""},"Riparia diluta","Pale Martin","Passériformes","Hirundinidés","https://www.oiseaux.net/oiseaux/hirondelle.pale.html"]
["Hirondelle paludicole",{"$f":"StripAccent(A509)","v":"Hirondelle paludicole"},null,{"$f":"StripAccent(C509)","v":""},"Riparia paludicola","Brown-throated Martin","Passériformes","Hirundinidés","https://www.oiseaux.net/oiseaux/hirondelle.paludicole.html"]
["Hirondelle rousseline",{"$f":"StripAccent(A510)","v":"Hirondelle rousseline"},null,{"$f":"StripAccent(C510)","v":""},"Cecropis daurica","Red-rumped Swallow","Passériformes","Hirundinidés","https://www.oiseaux.net/oiseaux/hirondelle.rousseline.html"]
["Hirondelle rustique",{"$f":"StripAccent(A511)","v":"Hirondelle rustique"},"Hirondelle de cheminée",{"$f":"StripAccent(C511)","v":"Hirondelle de cheminee"},"Hirundo rustica","Barn Swallow","Passériformes","Hirundinidés","https://www.oiseaux.net/oiseaux/hirondelle.rustique.html"]
["Huîtrier d'Amérique",{"$f":"StripAccent(A512)","v":"Huitrier d'Amerique"},null,{"$f":"StripAccent(C512)","v":""},"Haematopus palliatus","American Oystercatcher","Charadriiformes","Haematopodidés","https://www.oiseaux.net/oiseaux/huitrier.d.amerique.html"]
["Huîtrier des Canaries",{"$f":"StripAccent(A513)","v":"Huitrier des Canaries"},null,{"$f":"StripAccent(C513)","v":""},"Haematopus meadewaldoi","Canary Islands Oystercatcher","Charadriiformes","Haematopodidés","https://www.oiseaux.net/oiseaux/huitrier.des.canaries.html"]
["Huîtrier pie",{"$f":"StripAccent(A514)","v":"Huitrier pie"},null,{"$f":"StripAccent(C514)","v":""},"Haematopus ostralegus","Eurasian Oystercatcher","Charadriiformes","Haematopodidés","https://www.oiseaux.net/oiseaux/huitrier.pie.html"]
["Huppe d'Afrique",{"$f":"StripAccent(A515)","v":"Huppe d'Afrique"},null,{"$f":"StripAccent(C515)","v":""},"Upupa africana","African Hoopoe","Bucérotiformes","Upupidés","https://www.oiseaux.net/oiseaux/huppe.d.afrique.html"]
["Huppe fasciée",{"$f":"StripAccent(A516)","v":"Huppe fasciee"},null,{"$f":"StripAccent(C516)","v":""},"Upupa epops","Eurasian Hoopoe","Bucérotiformes","Upupidés","https://www.oiseaux.net/oiseaux/huppe.fasciee.html"]
["Hypolaïs bottée",{"$f":"StripAccent(A517)","v":"Hypolais bottee"},null,{"$f":"StripAccent(C517)","v":""},"Iduna caligata","Booted Warbler","Passériformes","Acrocephalidés","https://www.oiseaux.net/oiseaux/hypolais.bottee.html"]
["Hypolaïs d'Upcher",{"$f":"StripAccent(A518)","v":"Hypolais d'Upcher"},null,{"$f":"StripAccent(C518)","v":""},"Hippolais languida","Upcher's Warbler","Passériformes","Acrocephalidés","https://www.oiseaux.net/oiseaux/hypolais.d.upcher.html"]
["Hypolaïs des oliviers",{"$f":"StripAccent(A519)","v":"Hypolais des oliviers"},null,{"$f":"StripAccent(C519)","v":""},"Hippolais olivetorum","Olive-tree Warbler","Passériformes","Acrocephalidés","https://www.oiseaux.net/oiseaux/hypolais.des.oliviers.html"]
["Hypolaïs ictérine",{"$f":"StripAccent(A520)","v":"Hypolais icterine"},null,{"$f":"StripAccent(C520)","v":""},"Hippolais icterina","Icterine Warbler","Passériformes","Acrocephalidés","https://www.oiseaux.net/oiseaux/hypolais.icterine.html"]
["Hypolaïs obscure",{"$f":"StripAccent(A521)","v":"Hypolais obscure"},null,{"$f":"StripAccent(C521)","v":""},"Iduna opaca","Western Olivaceous Warbler","Passériformes","Acrocephalidés","https://www.oiseaux.net/oiseaux/hypolais.obscure.html"]
["Hypolaïs pâle",{"$f":"StripAccent(A522)","v":"Hypolais pale"},null,{"$f":"StripAccent(C522)","v":""},"Iduna pallida","Eastern Olivaceous Warbler","Passériformes","Acrocephalidés","https://www.oiseaux.net/oiseaux/hypolais.pale.html"]
["Hypolaïs polyglotte",{"$f":"StripAccent(A523)","v":"Hypolais polyglotte"},null,{"$f":"StripAccent(C523)","v":""},"Hippolais polyglotta","Melodious Warbler","Passériformes","Acrocephalidés","https://www.oiseaux.net/oiseaux/hypolais.polyglotte.html"]
["Hypolaïs rama",{"$f":"StripAccent(A524)","v":"Hypolais rama"},null,{"$f":"StripAccent(C524)","v":""},"Iduna rama","Sykes's Warbler","Passériformes","Acrocephalidés","https://www.oiseaux.net/oiseaux/hypolais.rama.html"]
["Ibis chauve",{"$f":"StripAccent(A525)","v":"Ibis chauve"},null,{"$f":"StripAccent(C525)","v":""},"Geronticus eremita","Northern Bald Ibis","Pélécaniformes","Threskiornithidés","https://www.oiseaux.net/oiseaux/ibis.chauve.html"]
["Ibis falcinelle",{"$f":"StripAccent(A526)","v":"Ibis falcinelle"},null,{"$f":"StripAccent(C526)","v":""},"Plegadis falcinellus","Glossy Ibis","Pélécaniformes","Threskiornithidés","https://www.oiseaux.net/oiseaux/ibis.falcinelle.html"]
["Ibis sacré",{"$f":"StripAccent(A527)","v":"Ibis sacre"},null,{"$f":"StripAccent(C527)","v":""},"Threskiornis aethiopicus","African Sacred Ibis","Pélécaniformes","Threskiornithidés","https://www.oiseaux.net/oiseaux/ibis.sacre.html"]
["Inséparable de Fischer",{"$f":"StripAccent(A528)","v":"Inseparable de Fischer"},null,{"$f":"StripAccent(C528)","v":""},"Agapornis fischeri","Fischer's Lovebird","Psittaciformes","Psittacidés","https://www.oiseaux.net/oiseaux/inseparable.de.fischer.html"]
["Iranie à gorge blanche",{"$f":"StripAccent(A529)","v":"Iranie a gorge blanche"},null,{"$f":"StripAccent(C529)","v":""},"Irania gutturalis","White-throated Robin","Passériformes","Muscicapidés","https://www.oiseaux.net/oiseaux/iranie.a.gorge.blanche.html"]
["Jacana à poitrine dorée",{"$f":"StripAccent(A530)","v":"Jacana a poitrine doree"},null,{"$f":"StripAccent(C530)","v":""},"Actophilornis africanus","African Jacana","Charadriiformes","Jacanidés","https://www.oiseaux.net/oiseaux/jacana.a.poitrine.doree.html"]
["Jaseur boréal",{"$f":"StripAccent(A531)","v":"Jaseur boreal"},null,{"$f":"StripAccent(C531)","v":""},"Bombycilla garrulus","Bohemian Waxwing","Passériformes","Bombycillidés","https://www.oiseaux.net/oiseaux/jaseur.boreal.html"]
["Jaseur d'Amérique",{"$f":"StripAccent(A532)","v":"Jaseur d'Amerique"},null,{"$f":"StripAccent(C532)","v":""},"Bombycilla cedrorum","Cedar Waxwing","Passériformes","Bombycillidés","https://www.oiseaux.net/oiseaux/jaseur.d.amerique.html"]
["Junco ardoisé",{"$f":"StripAccent(A533)","v":"Junco ardoise"},null,{"$f":"StripAccent(C533)","v":""},"Junco hyemalis","Dark-eyed Junco","Passériformes","Passerellidés","https://www.oiseaux.net/oiseaux/junco.ardoise.html"]
["Labbe à longue queue",{"$f":"StripAccent(A534)","v":"Labbe a longue queue"},null,{"$f":"StripAccent(C534)","v":""},"Stercorarius longicaudus","Long-tailed Jaeger","Charadriiformes","Stercorariidés","https://www.oiseaux.net/oiseaux/labbe.a.longue.queue.html"]
["Labbe de McCormick",{"$f":"StripAccent(A535)","v":"Labbe de McCormick"},null,{"$f":"StripAccent(C535)","v":""},"Stercorarius maccormicki","South Polar Skua","Charadriiformes","Stercorariidés","https://www.oiseaux.net/oiseaux/labbe.de.mccormick.html"]
["Labbe parasite",{"$f":"StripAccent(A536)","v":"Labbe parasite"},null,{"$f":"StripAccent(C536)","v":""},"Stercorarius parasiticus","Parasitic Jaeger","Charadriiformes","Stercorariidés","https://www.oiseaux.net/oiseaux/labbe.parasite.html"]
["Labbe pomarin",{"$f":"StripAccent(A537)","v":"Labbe pomarin"},null,{"$f":"StripAccent(C537)","v":""},"Stercorarius pomarinus","Pomarine Jaeger","Charadriiformes","Stercorariidés","https://www.oiseaux.net/oiseaux/labbe.pomarin.html"]
["Lagopède alpin",{"$f":"StripAccent(A538)","v":"Lagopede alpin"},null,{"$f":"StripAccent(C538)","v":""},"Lagopus muta","Rock Ptarmigan","Galliformes","Phasianidés","https://www.oiseaux.net/oiseaux/lagopede.alpin.html"]
["Lagopède des saules",{"$f":"StripAccent(A539)","v":"Lagopede des saules"},null,{"$f":"StripAccent(C539)","v":""},"Lagopus lagopus","Willow Ptarmigan","Galliformes","Phasianidés","https://www.oiseaux.net/oiseaux/lagopede.des.saules.html"]
["Léiothrix jaune",{"$f":"StripAccent(A540)","v":"Leiothrix jaune"},null,{"$f":"StripAccent(C540)","v":""},"Leiothrix lutea","Red-billed Leiothrix","Passériformes","Léiothrichidés","https://www.oiseaux.net/oiseaux/leiothrix.jaune.html"]
["Linotte à bec jaune",{"$f":"StripAccent(A541)","v":"Linotte a bec jaune"},null,{"$f":"StripAccent(C541)","v":""},"Linaria flavirostris","Twite","Passériformes","Fringillidés","https://www.oiseaux.net/oiseaux/linotte.a.bec.jaune.html"]
["Linotte mélodieuse",{"$f":"StripAccent(A542)","v":"Linotte melodieuse"},null,{"$f":"StripAccent(C542)","v":""},"Linaria cannabina","Common Linnet","Passériformes","Fringillidés","https://www.oiseaux.net/oiseaux/linotte.melodieuse.html"]
["Locustelle de Pallas",{"$f":"StripAccent(A543)","v":"Locustelle de Pallas"},null,{"$f":"StripAccent(C543)","v":""},"Helopsaltes certhiola","Pallas's Grasshopper Warbler","Passériformes","Locustellidés","https://www.oiseaux.net/oiseaux/locustelle.de.pallas.html"]
["Locustelle fasciée",{"$f":"StripAccent(A544)","v":"Locustelle fasciee"},null,{"$f":"StripAccent(C544)","v":""},"Helopsaltes fasciolatus","Gray's Grasshopper Warbler","Passériformes","Locustellidés","https://www.oiseaux.net/oiseaux/locustelle.fasciee.html"]
["Locustelle fluviatile",{"$f":"StripAccent(A545)","v":"Locustelle fluviatile"},null,{"$f":"StripAccent(C545)","v":""},"Locustella fluviatilis","River Warbler","Passériformes","Locustellidés","https://www.oiseaux.net/oiseaux/locustelle.fluviatile.html"]
["Locustelle lancéolée",{"$f":"StripAccent(A546)","v":"Locustelle lanceolee"},null,{"$f":"StripAccent(C546)","v":""},"Locustella lanceolata","Lanceolated Warbler","Passériformes","Locustellidés","https://www.oiseaux.net/oiseaux/locustelle.lanceolee.html"]
["Locustelle luscinioïde",{"$f":"StripAccent(A547)","v":"Locustelle luscinioide"},null,{"$f":"StripAccent(C547)","v":""},"Locustella luscinioides","Savi's Warbler","Passériformes","Locustellidés","https://www.oiseaux.net/oiseaux/locustelle.luscinioide.html"]
["Locustelle tachetée",{"$f":"StripAccent(A548)","v":"Locustelle tachetee"},null,{"$f":"StripAccent(C548)","v":""},"Locustella naevia","Common Grasshopper Warbler","Passériformes","Locustellidés","https://www.oiseaux.net/oiseaux/locustelle.tachetee.html"]
["Loriot d'Europe",{"$f":"StripAccent(A549)","v":"Loriot d'Europe"},"Loriot jaune",{"$f":"StripAccent(C549)","v":"Loriot jaune"},"Oriolus oriolus","Eurasian Golden Oriole","Passériformes","Oriolidés","https://www.oiseaux.net/oiseaux/loriot.d.europe.html"]
["Lusciniole à moustaches",{"$f":"StripAccent(A550)","v":"Lusciniole a moustaches"},null,{"$f":"StripAccent(C550)","v":""},"Acrocephalus melanopogon","Moustached Warbler","Passériformes","Acrocephalidés","https://www.oiseaux.net/oiseaux/lusciniole.a.moustaches.html"]
["Macareux cornu",{"$f":"StripAccent(A551)","v":"Macareux cornu"},null,{"$f":"StripAccent(C551)","v":""},"Fratercula corniculata","Horned Puffin","Charadriiformes","Alcidés","https://www.oiseaux.net/oiseaux/macareux.cornu.html"]
["Macareux huppé",{"$f":"StripAccent(A552)","v":"Macareux huppe"},null,{"$f":"StripAccent(C552)","v":""},"Fratercula cirrhata","Tufted Puffin","Charadriiformes","Alcidés","https://www.oiseaux.net/oiseaux/macareux.huppe.html"]
["Macareux moine",{"$f":"StripAccent(A553)","v":"Macareux moine"},null,{"$f":"StripAccent(C553)","v":""},"Fratercula arctica","Atlantic Puffin","Charadriiformes","Alcidés","https://www.oiseaux.net/oiseaux/macareux.moine.html"]
["Macreuse à ailes blanches",{"$f":"StripAccent(A554)","v":"Macreuse a ailes blanches"},null,{"$f":"StripAccent(C554)","v":""},"Melanitta deglandi","White-winged Scoter","Ansériformes","Anatidés","https://www.oiseaux.net/oiseaux/macreuse.a.ailes.blanches.html"]
["Macreuse à bec jaune",{"$f":"StripAccent(A555)","v":"Macreuse a bec jaune"},null,{"$f":"StripAccent(C555)","v":""},"Melanitta americana","Black Scoter","Ansériformes","Anatidés","https://www.oiseaux.net/oiseaux/macreuse.a.bec.jaune.html"]
["Macreuse à front blanc",{"$f":"StripAccent(A556)","v":"Macreuse a front blanc"},null,{"$f":"StripAccent(C556)","v":""},"Melanitta perspicillata","Surf Scoter","Ansériformes","Anatidés","https://www.oiseaux.net/oiseaux/macreuse.a.front.blanc.html"]
["Macreuse brune",{"$f":"StripAccent(A557)","v":"Macreuse brune"},null,{"$f":"StripAccent(C557)","v":""},"Melanitta fusca","Velvet Scoter","Ansériformes","Anatidés","https://www.oiseaux.net/oiseaux/macreuse.brune.html"]
["Macreuse de Sibérie",{"$f":"StripAccent(A558)","v":"Macreuse de Siberie"},null,{"$f":"StripAccent(C558)","v":""},"Melanitta stejnegeri","Stejneger's Scoter","Ansériformes","Anatidés","https://www.oiseaux.net/oiseaux/macreuse.de.siberie.html"]
["Macreuse noire",{"$f":"StripAccent(A559)","v":"Macreuse noire"},null,{"$f":"StripAccent(C559)","v":""},"Melanitta nigra","Common Scoter","Ansériformes","Anatidés","https://www.oiseaux.net/oiseaux/macreuse.noire.html"]
["Mandarin d'Australie",{"$f":"StripAccent(A560)","v":"Mandarin d'Australie"},null,{"$f":"StripAccent(C560)","v":""},"Taeniopygia castanotis","Australian Zebra Finch","Passériformes","Estrildidés","https://www.oiseaux.net/oiseaux/mandarin.d.australie.html"]
["Marabout d'Afrique",{"$f":"StripAccent(A561)","v":"Marabout d'Afrique"},null,{"$f":"StripAccent(C561)","v":""},"Leptoptilos crumenifer","Marabou Stork","Ciconiiformes","Ciconiidés","https://www.oiseaux.net/oiseaux/marabout.d.afrique.html"]
["Marouette de Baillon",{"$f":"StripAccent(A562)","v":"Marouette de Baillon"},null,{"$f":"StripAccent(C562)","v":""},"Zapornia pusilla","Baillon's Crake","Gruiformes","Rallidés","https://www.oiseaux.net/oiseaux/marouette.de.baillon.html"]
["Marouette de Caroline",{"$f":"StripAccent(A563)","v":"Marouette de Caroline"},null,{"$f":"StripAccent(C563)","v":""},"Porzana carolina","Sora","Gruiformes","Rallidés","https://www.oiseaux.net/oiseaux/marouette.de.caroline.html"]
["Marouette ponctuée",{"$f":"StripAccent(A564)","v":"Marouette ponctuee"},null,{"$f":"StripAccent(C564)","v":""},"Porzana porzana","Spotted Crake","Gruiformes","Rallidés","https://www.oiseaux.net/oiseaux/marouette.ponctuee.html"]
["Marouette poussin",{"$f":"StripAccent(A565)","v":"Marouette poussin"},null,{"$f":"StripAccent(C565)","v":""},"Zapornia parva","Little Crake","Gruiformes","Rallidés","https://www.oiseaux.net/oiseaux/marouette.poussin.html"]
["Marouette rayée",{"$f":"StripAccent(A566)","v":"Marouette rayee"},"Râle rayé",{"$f":"StripAccent(C566)","v":"Rale raye"},"Aenigmatolimnas marginalis","Striped Crake","Gruiformes","Rallidés","https://www.oiseaux.net/oiseaux/marouette.rayee.html"]
["Martin-chasseur de Smyrne",{"$f":"StripAccent(A567)","v":"Martin-chasseur de Smyrne"},null,{"$f":"StripAccent(C567)","v":""},"Halcyon smyrnensis","White-throated Kingfisher","Coraciiformes","Alcédinidés","https://www.oiseaux.net/oiseaux/martin-chasseur.de.smyrne.html"]
["Martin-pêcheur d'Amérique",{"$f":"StripAccent(A568)","v":"Martin-pecheur d'Amerique"},null,{"$f":"StripAccent(C568)","v":""},"Megaceryle alcyon","Belted Kingfisher","Coraciiformes","Alcédinidés","https://www.oiseaux.net/oiseaux/martin-pecheur.d.amerique.html"]
["Martin-pêcheur d'Europe",{"$f":"StripAccent(A569)","v":"Martin-pecheur d'Europe"},null,{"$f":"StripAccent(C569)","v":""},"Alcedo atthis","Common Kingfisher","Coraciiformes","Alcédinidés","https://www.oiseaux.net/oiseaux/martin-pecheur.d.europe.html"]
["Martin-pêcheur pie",{"$f":"StripAccent(A570)","v":"Martin-pecheur pie"},"Alcyon pie",{"$f":"StripAccent(C570)","v":"Alcyon pie"},"Ceryle rudis","Pied Kingfisher","Coraciiformes","Alcédinidés","https://www.oiseaux.net/oiseaux/martin-pecheur.pie.html"]
["Martin huppé",{"$f":"StripAccent(A571)","v":"Martin huppe"},null,{"$f":"StripAccent(C571)","v":""},"Acridotheres cristatellus","Crested Myna","Passériformes","Sturnidés","https://www.oiseaux.net/oiseaux/martin.huppe.html"]
["Martin triste",{"$f":"StripAccent(A572)","v":"Martin triste"},null,{"$f":"StripAccent(C572)","v":""},"Acridotheres tristis","Common Myna","Passériformes","Sturnidés","https://www.oiseaux.net/oiseaux/martin.triste.html"]
["Martinet à ventre blanc",{"$f":"StripAccent(A573)","v":"Martinet a ventre blanc"},null,{"$f":"StripAccent(C573)","v":""},"Tachymarptis melba","Alpine Swift","Apodiformes","Apodidés","https://www.oiseaux.net/oiseaux/martinet.a.ventre.blanc.html"]
["Martinet cafre",{"$f":"StripAccent(A574)","v":"Martinet cafre"},null,{"$f":"StripAccent(C574)","v":""},"Apus caffer","White-rumped Swift","Apodiformes","Apodidés","https://www.oiseaux.net/oiseaux/martinet.cafre.html"]
["Martinet de Sabine",{"$f":"StripAccent(A575)","v":"Martinet de Sabine"},null,{"$f":"StripAccent(C575)","v":""},"Rhaphidura sabini","Sabine's Spinetail","Apodiformes","Apodidés","https://www.oiseaux.net/oiseaux/martinet.de.sabine.html"]
["Martinet de Sibérie",{"$f":"StripAccent(A576)","v":"Martinet de Siberie"},null,{"$f":"StripAccent(C576)","v":""},"Apus pacificus","Pacific Swift","Apodiformes","Apodidés","https://www.oiseaux.net/oiseaux/martinet.de.siberie.html"]
["Martinet des maisons",{"$f":"StripAccent(A577)","v":"Martinet des maisons"},null,{"$f":"StripAccent(C577)","v":""},"Apus affinis","Little Swift","Apodiformes","Apodidés","https://www.oiseaux.net/oiseaux/martinet.des.maisons.html"]
["Martinet épineux",{"$f":"StripAccent(A578)","v":"Martinet epineux"},null,{"$f":"StripAccent(C578)","v":""},"Hirundapus caudacutus","White-throated Needletail","Apodiformes","Apodidés","https://www.oiseaux.net/oiseaux/martinet.epineux.html"]
["Martinet horus",{"$f":"StripAccent(A579)","v":"Martinet horus"},null,{"$f":"StripAccent(C579)","v":""},"Apus horus","Horus Swift","Apodiformes","Apodidés","https://www.oiseaux.net/oiseaux/martinet.horus.html"]
["Martinet noir",{"$f":"StripAccent(A580)","v":"Martinet noir"},null,{"$f":"StripAccent(C580)","v":""},"Apus apus","Common Swift","Apodiformes","Apodidés","https://www.oiseaux.net/oiseaux/martinet.noir.html"]
["Martinet pâle",{"$f":"StripAccent(A581)","v":"Martinet pale"},null,{"$f":"StripAccent(C581)","v":""},"Apus pallidus","Pallid Swift","Apodiformes","Apodidés","https://www.oiseaux.net/oiseaux/martinet.pale.html"]
["Martinet ramoneur",{"$f":"StripAccent(A582)","v":"Martinet ramoneur"},null,{"$f":"StripAccent(C582)","v":""},"Chaetura pelagica","Chimney Swift","Apodiformes","Apodidés","https://www.oiseaux.net/oiseaux/martinet.ramoneur.html"]
["Martinet unicolore",{"$f":"StripAccent(A583)","v":"Martinet unicolore"},null,{"$f":"StripAccent(C583)","v":""},"Apus unicolor","Plain Swift","Apodiformes","Apodidés","https://www.oiseaux.net/oiseaux/martinet.unicolore.html"]
["Mergule nain",{"$f":"StripAccent(A584)","v":"Mergule nain"},null,{"$f":"StripAccent(C584)","v":""},"Alle alle","Little Auk","Charadriiformes","Alcidés","https://www.oiseaux.net/oiseaux/mergule.nain.html"]
["Merle à plastron",{"$f":"StripAccent(A585)","v":"Merle a plastron"},null,{"$f":"StripAccent(C585)","v":""},"Turdus torquatus","Ring Ouzel","Passériformes","Turdidés","https://www.oiseaux.net/oiseaux/merle.a.plastron.html"]
["Merle austral",{"$f":"StripAccent(A586)","v":"Merle austral"},null,{"$f":"StripAccent(C586)","v":""},"Turdus falcklandii","Austral Thrush","Passériformes","Turdidés","https://www.oiseaux.net/oiseaux/merle.austral.html"]
["Merle d'Amérique",{"$f":"StripAccent(A587)","v":"Merle d'Amerique"},null,{"$f":"StripAccent(C587)","v":""},"Turdus migratorius","American Robin","Passériformes","Turdidés","https://www.oiseaux.net/oiseaux/merle.d.amerique.html"]
["Merle noir",{"$f":"StripAccent(A588)","v":"Merle noir"},null,{"$f":"StripAccent(C588)","v":""},"Turdus merula","Common Blackbird","Passériformes","Turdidés","https://www.oiseaux.net/oiseaux/merle.noir.html"]
["Merle pâle",{"$f":"StripAccent(A589)","v":"Merle pale"},null,{"$f":"StripAccent(C589)","v":""},"Turdus pallidus","Pale Thrush","Passériformes","Turdidés","https://www.oiseaux.net/oiseaux/merle.pale.html"]
["Merle unicolore",{"$f":"StripAccent(A590)","v":"Merle unicolore"},null,{"$f":"StripAccent(C590)","v":""},"Turdus unicolor","Tickell's Thrush","Passériformes","Turdidés","https://www.oiseaux.net/oiseaux/merle.unicolore.html"]
["Mésange azurée",{"$f":"StripAccent(A591)","v":"Mesange azuree"},null,{"$f":"StripAccent(C591)","v":""},"Cyanistes cyanus","Azure Tit","Passériformes","Paridés","https://www.oiseaux.net/oiseaux/mesange.azuree.html"]
["Mésange bleue",{"$f":"StripAccent(A592)","v":"Mesange bleue"},null,{"$f":"StripAccent(C592)","v":""},"Cyanistes caeruleus","Eurasian Blue Tit","Passériformes","Paridés","https://www.oiseaux.net/oiseaux/mesange.bleue.html"]
["Mésange boréale",{"$f":"StripAccent(A593)","v":"Mesange boreale"},null,{"$f":"StripAccent(C593)","v":""},"Poecile montanus","Willow Tit","Passériformes","Paridés","https://www.oiseaux.net/oiseaux/mesange.boreale.html"]
["Mésange charbonnière",{"$f":"StripAccent(A594)","v":"Mesange charbonniere"},null,{"$f":"StripAccent(C594)","v":""},"Parus major","Great Tit","Passériformes","Paridés","https://www.oiseaux.net/oiseaux/mesange.charbonniere.html"]
["Mésange huppée",{"$f":"StripAccent(A595)","v":"Mesange huppee"},null,{"$f":"StripAccent(C595)","v":""},"Lophophanes cristatus","Crested Tit","Passériformes","Paridés","https://www.oiseaux.net/oiseaux/mesange.huppee.html"]
["Mésange lapone",{"$f":"StripAccent(A596)","v":"Mesange lapone"},null,{"$f":"StripAccent(C596)","v":""},"Poecile cinctus","Grey-headed Chickadee","Passériformes","Paridés","https://www.oiseaux.net/oiseaux/mesange.lapone.html"]
["Mésange lugubre",{"$f":"StripAccent(A597)","v":"Mesange lugubre"},null,{"$f":"StripAccent(C597)","v":""},"Poecile lugubris","Sombre Tit","Passériformes","Paridés","https://www.oiseaux.net/oiseaux/mesange.lugubre.html"]
["Mésange noire",{"$f":"StripAccent(A598)","v":"Mesange noire"},null,{"$f":"StripAccent(C598)","v":""},"Periparus ater","Coal Tit","Passériformes","Paridés","https://www.oiseaux.net/oiseaux/mesange.noire.html"]
["Mésange nonnette",{"$f":"StripAccent(A599)","v":"Mesange nonnette"},null,{"$f":"StripAccent(C599)","v":""},"Poecile palustris","Marsh Tit","Passériformes","Paridés","https://www.oiseaux.net/oiseaux/mesange.nonnette.html"]
["Mésange nord-africaine",{"$f":"StripAccent(A600)","v":"Mesange nord-africaine"},null,{"$f":"StripAccent(C600)","v":""},"Cyanistes teneriffae","African Blue Tit","Passériformes","Paridés","https://www.oiseaux.net/oiseaux/mesange.nord-africaine.html"]
["Mésangeai imitateur",{"$f":"StripAccent(A601)","v":"Mesangeai imitateur"},null,{"$f":"StripAccent(C601)","v":""},"Perisoreus infaustus","Siberian Jay","Passériformes","Corvidés","https://www.oiseaux.net/oiseaux/mesangeai.imitateur.html"]
["Milan à bec jaune",{"$f":"StripAccent(A602)","v":"Milan a bec jaune"},"Milan d'Afrique",{"$f":"StripAccent(C602)","v":"Milan d'Afrique"},"Milvus aegyptius","Yellow-billed Kite","Accipitriformes","Accipitridés","https://www.oiseaux.net/oiseaux/milan.a.bec.jaune.html"]
["Milan à queue fourchue",{"$f":"StripAccent(A603)","v":"Milan a queue fourchue"},"Naucler à queue fourchue",{"$f":"StripAccent(C603)","v":"Naucler a queue fourchue"},"Elanoides forficatus","Swallow-tailed Kite","Accipitriformes","Accipitridés","https://www.oiseaux.net/oiseaux/milan.a.queue.fourchue.html"]
["Milan noir",{"$f":"StripAccent(A604)","v":"Milan noir"},null,{"$f":"StripAccent(C604)","v":""},"Milvus migrans","Black Kite","Accipitriformes","Accipitridés","https://www.oiseaux.net/oiseaux/milan.noir.html"]
["Milan royal",{"$f":"StripAccent(A605)","v":"Milan royal"},null,{"$f":"StripAccent(C605)","v":""},"Milvus milvus","Red Kite","Accipitriformes","Accipitridés","https://www.oiseaux.net/oiseaux/milan.royal.html"]
["Moineau à dos roux",{"$f":"StripAccent(A606)","v":"Moineau a dos roux"},"Moineau du Cap-Vert",{"$f":"StripAccent(C606)","v":"Moineau du Cap-Vert"},"Passer iagoensis","Iago Sparrow","Passériformes","Passéridés","https://www.oiseaux.net/oiseaux/moineau.a.dos.roux.html"]
["Moineau blanc",{"$f":"StripAccent(A607)","v":"Moineau blanc"},null,{"$f":"StripAccent(C607)","v":""},"Passer simplex","Desert Sparrow","Passériformes","Passéridés","https://www.oiseaux.net/oiseaux/moineau.blanc.html"]
["Moineau cisalpin",{"$f":"StripAccent(A608)","v":"Moineau cisalpin"},null,{"$f":"StripAccent(C608)","v":""},"Passer italiae","Italian Sparrow","Passériformes","Passéridés","https://www.oiseaux.net/oiseaux/moineau.cisalpin.html"]
["Moineau de la mer Morte",{"$f":"StripAccent(A609)","v":"Moineau de la mer Morte"},null,{"$f":"StripAccent(C609)","v":""},"Passer moabiticus","Dead Sea Sparrow","Passériformes","Passéridés","https://www.oiseaux.net/oiseaux/moineau.de.la.mer.morte.html"]
["Moineau domestique",{"$f":"StripAccent(A610)","v":"Moineau domestique"},null,{"$f":"StripAccent(C610)","v":""},"Passer domesticus","House Sparrow","Passériformes","Passéridés","https://www.oiseaux.net/oiseaux/moineau.domestique.html"]
["Moineau doré",{"$f":"StripAccent(A611)","v":"Moineau dore"},null,{"$f":"StripAccent(C611)","v":""},"Passer luteus","Sudan Golden Sparrow","Passériformes","Passéridés","https://www.oiseaux.net/oiseaux/moineau.dore.html"]
["Moineau espagnol",{"$f":"StripAccent(A612)","v":"Moineau espagnol"},null,{"$f":"StripAccent(C612)","v":""},"Passer hispaniolensis","Spanish Sparrow","Passériformes","Passéridés","https://www.oiseaux.net/oiseaux/moineau.espagnol.html"]
["Moineau friquet",{"$f":"StripAccent(A613)","v":"Moineau friquet"},null,{"$f":"StripAccent(C613)","v":""},"Passer montanus","Eurasian Tree Sparrow","Passériformes","Passéridés","https://www.oiseaux.net/oiseaux/moineau.friquet.html"]
["Moineau pâle",{"$f":"StripAccent(A614)","v":"Moineau pale"},null,{"$f":"StripAccent(C614)","v":""},"Carpospiza brachydactyla","Pale Rockfinch","Passériformes","Passéridés","https://www.oiseaux.net/oiseaux/moineau.pale.html"]
["Moineau soulcie",{"$f":"StripAccent(A615)","v":"Moineau soulcie"},null,{"$f":"StripAccent(C615)","v":""},"Petronia petronia","Rock Sparrow","Passériformes","Passéridés","https://www.oiseaux.net/oiseaux/moineau.soulcie.html"]
["Monticole bleu",{"$f":"StripAccent(A616)","v":"Monticole bleu"},null,{"$f":"StripAccent(C616)","v":""},"Monticola solitarius","Blue Rock Thrush","Passériformes","Muscicapidés","https://www.oiseaux.net/oiseaux/monticole.bleu.html"]
["Monticole de roche",{"$f":"StripAccent(A617)","v":"Monticole de roche"},null,{"$f":"StripAccent(C617)","v":""},"Monticola saxatilis","Common Rock Thrush","Passériformes","Muscicapidés","https://www.oiseaux.net/oiseaux/monticole.de.roche.html"]
["Moqueur chat",{"$f":"StripAccent(A618)","v":"Moqueur chat"},null,{"$f":"StripAccent(C618)","v":""},"Dumetella carolinensis","Grey Catbird","Passériformes","Mimidés","https://www.oiseaux.net/oiseaux/moqueur.chat.html"]
["Moqueur des savanes",{"$f":"StripAccent(A619)","v":"Moqueur des savanes"},null,{"$f":"StripAccent(C619)","v":""},"Mimus gilvus","Tropical Mockingbird","Passériformes","Mimidés","https://www.oiseaux.net/oiseaux/moqueur.des.savanes.html"]
["Moqueur polyglotte",{"$f":"StripAccent(A620)","v":"Moqueur polyglotte"},null,{"$f":"StripAccent(C620)","v":""},"Mimus polyglottos","Northern Mockingbird","Passériformes","Mimidés","https://www.oiseaux.net/oiseaux/moqueur.polyglotte.html"]
["Moqueur roux",{"$f":"StripAccent(A621)","v":"Moqueur roux"},null,{"$f":"StripAccent(C621)","v":""},"Toxostoma rufum","Brown Thrasher","Passériformes","Mimidés","https://www.oiseaux.net/oiseaux/moqueur.roux.html"]
["Moucherolle à côtés olive",{"$f":"StripAccent(A622)","v":"Moucherolle a cotes olive"},null,{"$f":"StripAccent(C622)","v":""},"Contopus cooperi","Olive-sided Flycatcher","Passériformes","Tyrannidés","https://www.oiseaux.net/oiseaux/moucherolle.a.cotes.olive.html"]
["Moucherolle à ventre jaune",{"$f":"StripAccent(A623)","v":"Moucherolle a ventre jaune"},null,{"$f":"StripAccent(C623)","v":""},"Empidonax flaviventris","Yellow-bellied Flycatcher","Passériformes","Tyrannidés","https://www.oiseaux.net/oiseaux/moucherolle.a.ventre.jaune.html"]
["Moucherolle des aulnes",{"$f":"StripAccent(A624)","v":"Moucherolle des aulnes"},null,{"$f":"StripAccent(C624)","v":""},"Empidonax alnorum","Alder Flycatcher","Passériformes","Tyrannidés","https://www.oiseaux.net/oiseaux/moucherolle.des.aulnes.html"]
["Moucherolle des saules",{"$f":"StripAccent(A625)","v":"Moucherolle des saules"},null,{"$f":"StripAccent(C625)","v":""},"Empidonax traillii","Willow Flycatcher","Passériformes","Tyrannidés","https://www.oiseaux.net/oiseaux/moucherolle.des.saules.html"]
["Moucherolle phébi",{"$f":"StripAccent(A626)","v":"Moucherolle phebi"},null,{"$f":"StripAccent(C626)","v":""},"Sayornis phoebe","Eastern Phoebe","Passériformes","Tyrannidés","https://www.oiseaux.net/oiseaux/moucherolle.phebi.html"]
["Moucherolle tchébec",{"$f":"StripAccent(A627)","v":"Moucherolle tchebec"},null,{"$f":"StripAccent(C627)","v":""},"Empidonax minimus","Least Flycatcher","Passériformes","Tyrannidés","https://www.oiseaux.net/oiseaux/moucherolle.tchebec.html"]
["Moucherolle vert",{"$f":"StripAccent(A628)","v":"Moucherolle vert"},null,{"$f":"StripAccent(C628)","v":""},"Empidonax virescens","Acadian Flycatcher","Passériformes","Tyrannidés","https://www.oiseaux.net/oiseaux/moucherolle.vert.html"]
["Mouette à tête grise",{"$f":"StripAccent(A629)","v":"Mouette a tete grise"},null,{"$f":"StripAccent(C629)","v":""},"Chroicocephalus cirrocephalus","Grey-headed Gull","Charadriiformes","Laridés","https://www.oiseaux.net/oiseaux/mouette.a.tete.grise.html"]
["Mouette atricille",{"$f":"StripAccent(A630)","v":"Mouette atricille"},null,{"$f":"StripAccent(C630)","v":""},"Leucophaeus atricilla","Laughing Gull","Charadriiformes","Laridés","https://www.oiseaux.net/oiseaux/mouette.atricille.html"]
["Mouette blanche",{"$f":"StripAccent(A631)","v":"Mouette blanche"},null,{"$f":"StripAccent(C631)","v":""},"Pagophila eburnea","Ivory Gull","Charadriiformes","Laridés","https://www.oiseaux.net/oiseaux/mouette.blanche.html"]
["Mouette de Bonaparte",{"$f":"StripAccent(A632)","v":"Mouette de Bonaparte"},null,{"$f":"StripAccent(C632)","v":""},"Chroicocephalus philadelphia","Bonaparte's Gull","Charadriiformes","Laridés","https://www.oiseaux.net/oiseaux/mouette.de.bonaparte.html"]
["Mouette de Franklin",{"$f":"StripAccent(A633)","v":"Mouette de Franklin"},null,{"$f":"StripAccent(C633)","v":""},"Leucophaeus pipixcan","Franklin's Gull","Charadriiformes","Laridés","https://www.oiseaux.net/oiseaux/mouette.de.franklin.html"]
["Mouette de Ross",{"$f":"StripAccent(A634)","v":"Mouette de Ross"},"Mouette rosée",{"$f":"StripAccent(C634)","v":"Mouette rosee"},"Rhodostethia rosea","Ross's Gull","Charadriiformes","Laridés","https://www.oiseaux.net/oiseaux/mouette.de.ross.html"]
["Mouette de Sabine",{"$f":"StripAccent(A635)","v":"Mouette de Sabine"},null,{"$f":"StripAccent(C635)","v":""},"Xema sabini","Sabine's Gull","Charadriiformes","Laridés","https://www.oiseaux.net/oiseaux/mouette.de.sabine.html"]
["Mouette mélanocéphale",{"$f":"StripAccent(A636)","v":"Mouette melanocephale"},null,{"$f":"StripAccent(C636)","v":""},"Ichthyaetus melanocephalus","Mediterranean Gull","Charadriiformes","Laridés","https://www.oiseaux.net/oiseaux/mouette.melanocephale.html"]
["Mouette pygmée",{"$f":"StripAccent(A637)","v":"Mouette pygmee"},null,{"$f":"StripAccent(C637)","v":""},"Hydrocoloeus minutus","Little Gull","Charadriiformes","Laridés","https://www.oiseaux.net/oiseaux/mouette.pygmee.html"]
["Mouette relique",{"$f":"StripAccent(A638)","v":"Mouette relique"},null,{"$f":"StripAccent(C638)","v":""},"Ichthyaetus relictus","Relict Gull","Charadriiformes","Laridés","https://www.oiseaux.net/oiseaux/mouette.relique.html"]
["Mouette rieuse",{"$f":"StripAccent(A639)","v":"Mouette rieuse"},null,{"$f":"StripAccent(C639)","v":""},"Chroicocephalus ridibundus","Black-headed Gull","Charadriiformes","Laridés","https://www.oiseaux.net/oiseaux/mouette.rieuse.html"]
["Mouette tridactyle",{"$f":"StripAccent(A640)","v":"Mouette tridactyle"},null,{"$f":"StripAccent(C640)","v":""},"Rissa tridactyla","Black-legged Kittiwake","Charadriiformes","Laridés","https://www.oiseaux.net/oiseaux/mouette.tridactyle.html"]
["Nette rousse",{"$f":"StripAccent(A641)","v":"Nette rousse"},null,{"$f":"StripAccent(C641)","v":""},"Netta rufina","Red-crested Pochard","Ansériformes","Anatidés","https://www.oiseaux.net/oiseaux/nette.rousse.html"]
["Ninoxe hirsute",{"$f":"StripAccent(A642)","v":"Ninoxe hirsute"},null,{"$f":"StripAccent(C642)","v":""},"Ninox scutulata","Brown Boobook","Strigiformes","Strigidés","https://www.oiseaux.net/oiseaux/ninoxe.hirsute.html"]
["Niverolle alpine",{"$f":"StripAccent(A643)","v":"Niverolle alpine"},null,{"$f":"StripAccent(C643)","v":""},"Montifringilla nivalis","White-winged Snowfinch","Passériformes","Passéridés","https://www.oiseaux.net/oiseaux/niverolle.alpine.html"]
["Noddi brun",{"$f":"StripAccent(A644)","v":"Noddi brun"},null,{"$f":"StripAccent(C644)","v":""},"Anous stolidus","Brown Noddy","Charadriiformes","Laridés","https://www.oiseaux.net/oiseaux/noddi.brun.html"]
["Nymphée fuligineuse",{"$f":"StripAccent(A645)","v":"Nymphee fuligineuse"},"Rougequeue fuligineux",{"$f":"StripAccent(C645)","v":"Rougequeue fuligineux"},"Phoenicurus fuliginosus","Plumbeous Water Redstart","Passériformes","Muscicapidés","https://www.oiseaux.net/oiseaux/nymphee.fuligineuse.html"]
["Océanite à ventre noir",{"$f":"StripAccent(A646)","v":"Oceanite a ventre noir"},null,{"$f":"StripAccent(C646)","v":""},"Fregetta tropica","Black-bellied Storm Petrel","Procellariiformes","Oceanitidés","https://www.oiseaux.net/oiseaux/oceanite.a.ventre.noir.html"]
["Océanite culblanc",{"$f":"StripAccent(A647)","v":"Oceanite culblanc"},"Océanite cul-blanc",{"$f":"StripAccent(C647)","v":"Oceanite cul-blanc"},"Hydrobates leucorhous","Leach's Storm Petrel","Procellariiformes","Oceanitidés","https://www.oiseaux.net/oiseaux/oceanite.culblanc.html"]
["Océanite de Castro",{"$f":"StripAccent(A648)","v":"Oceanite de Castro"},null,{"$f":"StripAccent(C648)","v":""},"Hydrobates castro","Band-rumped Storm Petrel","Procellariiformes","Oceanitidés","https://www.oiseaux.net/oiseaux/oceanite.de.castro.html"]
["Océanite de Monteiro",{"$f":"StripAccent(A649)","v":"Oceanite de Monteiro"},null,{"$f":"StripAccent(C649)","v":""},"Hydrobates monteiroi","Monteiro's Storm Petrel","Procellariiformes","Oceanitidés","https://www.oiseaux.net/oiseaux/oceanite.de.monteiro.html"]
["Océanite de Swinhoe",{"$f":"StripAccent(A650)","v":"Oceanite de Swinhoe"},null,{"$f":"StripAccent(C650)","v":""},"Hydrobates monorhis","Swinhoe's Storm Petrel","Procellariiformes","Oceanitidés","https://www.oiseaux.net/oiseaux/oceanite.de.swinhoe.html"]
["Océanite de Wilson",{"$f":"StripAccent(A651)","v":"Oceanite de Wilson"},null,{"$f":"StripAccent(C651)","v":""},"Oceanites oceanicus","Wilson's Storm Petrel","Procellariiformes","Oceanitidés","https://www.oiseaux.net/oiseaux/oceanite.de.wilson.html"]
["Océanite frégate",{"$f":"StripAccent(A652)","v":"Oceanite fregate"},null,{"$f":"StripAccent(C652)","v":""},"Pelagodroma marina","White-faced Storm Petrel","Procellariiformes","Oceanitidés","https://www.oiseaux.net/oiseaux/oceanite.fregate.html"]
["Océanite tempête",{"$f":"StripAccent(A653)","v":"Oceanite tempete"},null,{"$f":"StripAccent(C653)","v":""},"Hydrobates pelagicus","European Storm Petrel","Procellariiformes","Oceanitidés","https://www.oiseaux.net/oiseaux/oceanite.tempete.html"]
["Oedicnème criard",{"$f":"StripAccent(A654)","v":"Oedicneme criard"},null,{"$f":"StripAccent(C654)","v":""},"Burhinus oedicnemus","Eurasian Stone-curlew","Charadriiformes","Burhinidés","https://www.oiseaux.net/oiseaux/oedicneme.criard.html"]
["Oie à bec court",{"$f":"StripAccent(A655)","v":"Oie a bec court"},null,{"$f":"StripAccent(C655)","v":""},"Anser brachyrhynchus","Pink-footed Goose","Ansériformes","Anatidés","https://www.oiseaux.net/oiseaux/oie.a.bec.court.html"]
["Oie à tête barrée",{"$f":"StripAccent(A656)","v":"Oie a tete barree"},null,{"$f":"StripAccent(C656)","v":""},"Anser indicus","Bar-headed Goose","Ansériformes","Anatidés","https://www.oiseaux.net/oiseaux/oie.a.tete.barree.html"]
["Oie cendrée",{"$f":"StripAccent(A657)","v":"Oie cendree"},null,{"$f":"StripAccent(C657)","v":""},"Anser anser","Greylag Goose","Ansériformes","Anatidés","https://www.oiseaux.net/oiseaux/oie.cendree.html"]
["Oie de la toundra",{"$f":"StripAccent(A658)","v":"Oie de la toundra"},null,{"$f":"StripAccent(C658)","v":""},"Anser serrirostris","Tundra Bean Goose","Ansériformes","Anatidés","https://www.oiseaux.net/oiseaux/oie.de.la.toundra.html"]
["Oie de Ross",{"$f":"StripAccent(A659)","v":"Oie de Ross"},null,{"$f":"StripAccent(C659)","v":""},"Anser rossii","Ross's Goose","Ansériformes","Anatidés","https://www.oiseaux.net/oiseaux/oie.de.ross.html"]
["Oie des moissons",{"$f":"StripAccent(A660)","v":"Oie des moissons"},null,{"$f":"StripAccent(C660)","v":""},"Anser fabalis","Taiga Bean Goose","Ansériformes","Anatidés","https://www.oiseaux.net/oiseaux/oie.des.moissons.html"]
["Oie des neiges",{"$f":"StripAccent(A661)","v":"Oie des neiges"},null,{"$f":"StripAccent(C661)","v":""},"Anser caerulescens","Snow Goose","Ansériformes","Anatidés","https://www.oiseaux.net/oiseaux/oie.des.neiges.html"]
["Oie empereur",{"$f":"StripAccent(A662)","v":"Oie empereur"},null,{"$f":"StripAccent(C662)","v":""},"Anser canagicus","Emperor Goose","Ansériformes","Anatidés","https://www.oiseaux.net/oiseaux/oie.empereur.html"]
["Oie naine",{"$f":"StripAccent(A663)","v":"Oie naine"},null,{"$f":"StripAccent(C663)","v":""},"Anser erythropus","Lesser White-fronted Goose","Ansériformes","Anatidés","https://www.oiseaux.net/oiseaux/oie.naine.html"]
["Oie rieuse",{"$f":"StripAccent(A664)","v":"Oie rieuse"},null,{"$f":"StripAccent(C664)","v":""},"Anser albifrons","Greater White-fronted Goose","Ansériformes","Anatidés","https://www.oiseaux.net/oiseaux/oie.rieuse.html"]
["Oriole du Nord",{"$f":"StripAccent(A665)","v":"Oriole du Nord"},"Oriole de Baltimore",{"$f":"StripAccent(C665)","v":"Oriole de Baltimore"},"Icterus galbula","Baltimore Oriole","Passériformes","Ictéridés","https://www.oiseaux.net/oiseaux/oriole.du.nord.html"]
["Orite à longue queue",{"$f":"StripAccent(A666)","v":"Orite a longue queue"},"Mésange à longue queue",{"$f":"StripAccent(C666)","v":"Mesange a longue queue"},"Aegithalos caudatus","Long-tailed Tit","Passériformes","Aegithalidés","https://www.oiseaux.net/oiseaux/orite.a.longue.queue.html"]
["Ouette d'Égypte",{"$f":"StripAccent(A667)","v":"Ouette d'Egypte"},null,{"$f":"StripAccent(C667)","v":""},"Alopochen aegyptiaca","Egyptian Goose","Ansériformes","Anatidés","https://www.oiseaux.net/oiseaux/ouette.d.egypte.html"]
["Outarde barbue",{"$f":"StripAccent(A668)","v":"Outarde barbue"},"Grande Outarde",{"$f":"StripAccent(C668)","v":"Grande Outarde"},"Otis tarda","Great Bustard","Otidiformes","Otididés","https://www.oiseaux.net/oiseaux/outarde.barbue.html"]
["Outarde canepetière",{"$f":"StripAccent(A669)","v":"Outarde canepetiere"},null,{"$f":"StripAccent(C669)","v":""},"Tetrax tetrax","Little Bustard","Otidiformes","Otididés","https://www.oiseaux.net/oiseaux/outarde.canepetiere.html"]
["Outarde de Macqueen",{"$f":"StripAccent(A670)","v":"Outarde de Macqueen"},null,{"$f":"StripAccent(C670)","v":""},"Chlamydotis macqueenii","Macqueen's Bustard","Otidiformes","Otididés","https://www.oiseaux.net/oiseaux/outarde.de.macqueen.html"]
["Outarde houbara",{"$f":"StripAccent(A671)","v":"Outarde houbara"},null,{"$f":"StripAccent(C671)","v":""},"Chlamydotis undulata","Houbara Bustard","Otidiformes","Otididés","https://www.oiseaux.net/oiseaux/outarde.houbara.html"]
["Panure à moustaches",{"$f":"StripAccent(A672)","v":"Panure a moustaches"},null,{"$f":"StripAccent(C672)","v":""},"Panurus biarmicus","Bearded Reedling","Passériformes","Panuridés","https://www.oiseaux.net/oiseaux/panure.a.moustaches.html"]
["Paon bleu",{"$f":"StripAccent(A673)","v":"Paon bleu"},null,{"$f":"StripAccent(C673)","v":""},"Pavo cristatus","Indian Peafowl","Galliformes","Phasianidés","https://www.oiseaux.net/oiseaux/paon.bleu.html"]
["Paradoxornis à gorge cendrée",{"$f":"StripAccent(A674)","v":"Paradoxornis a gorge cendree"},null,{"$f":"StripAccent(C674)","v":""},"Suthora alphonsiana","Ashy-throated Parrotbill","Passériformes","Paradoxornithidés","https://www.oiseaux.net/oiseaux/paradoxornis.a.gorge.cendree.html"]
["Paradoxornis de Webb",{"$f":"StripAccent(A675)","v":"Paradoxornis de Webb"},null,{"$f":"StripAccent(C675)","v":""},"Suthora webbiana","Vinous-throated Parrotbill","Passériformes","Paradoxornithidés","https://www.oiseaux.net/oiseaux/paradoxornis.de.webb.html"]
["Paruline à ailes bleues",{"$f":"StripAccent(A676)","v":"Paruline a ailes bleues"},null,{"$f":"StripAccent(C676)","v":""},"Vermivora cyanoptera","Blue-winged Warbler","Passériformes","Parulidés","https://www.oiseaux.net/oiseaux/paruline.a.ailes.bleues.html"]
["Paruline à ailes dorées",{"$f":"StripAccent(A677)","v":"Paruline a ailes dorees"},null,{"$f":"StripAccent(C677)","v":""},"Vermivora chrysoptera","Golden-winged Warbler","Passériformes","Parulidés","https://www.oiseaux.net/oiseaux/paruline.a.ailes.dorees.html"]
["Paruline à calotte noire",{"$f":"StripAccent(A678)","v":"Paruline a calotte noire"},null,{"$f":"StripAccent(C678)","v":""},"Cardellina pusilla","Wilson's Warbler","Passériformes","Parulidés","https://www.oiseaux.net/oiseaux/paruline.a.calotte.noire.html"]
["Paruline à capuchon",{"$f":"StripAccent(A679)","v":"Paruline a capuchon"},null,{"$f":"StripAccent(C679)","v":""},"Setophaga citrina","Hooded Warbler","Passériformes","Parulidés","https://www.oiseaux.net/oiseaux/paruline.a.capuchon.html"]
["Paruline à collier",{"$f":"StripAccent(A680)","v":"Paruline a collier"},null,{"$f":"StripAccent(C680)","v":""},"Setophaga americana","Northern Parula","Passériformes","Parulidés","https://www.oiseaux.net/oiseaux/paruline.a.collier.html"]
["Paruline à couronne rousse",{"$f":"StripAccent(A681)","v":"Paruline a couronne rousse"},null,{"$f":"StripAccent(C681)","v":""},"Setophaga palmarum","Palm Warbler","Passériformes","Parulidés","https://www.oiseaux.net/oiseaux/paruline.a.couronne.rousse.html"]
["Paruline à croupion jaune",{"$f":"StripAccent(A682)","v":"Paruline a croupion jaune"},null,{"$f":"StripAccent(C682)","v":""},"Setophaga coronata","Myrtle Warbler","Passériformes","Parulidés","https://www.oiseaux.net/oiseaux/paruline.a.croupion.jaune.html"]
["Paruline à flancs marron",{"$f":"StripAccent(A683)","v":"Paruline a flancs marron"},null,{"$f":"StripAccent(C683)","v":""},"Setophaga pensylvanica","Chestnut-sided Warbler","Passériformes","Parulidés","https://www.oiseaux.net/oiseaux/paruline.a.flancs.marron.html"]
["Paruline à gorge grise",{"$f":"StripAccent(A684)","v":"Paruline a gorge grise"},null,{"$f":"StripAccent(C684)","v":""},"Oporornis agilis","Connecticut Warbler","Passériformes","Parulidés","https://www.oiseaux.net/oiseaux/paruline.a.gorge.grise.html"]
["Paruline à gorge jaune",{"$f":"StripAccent(A685)","v":"Paruline a gorge jaune"},null,{"$f":"StripAccent(C685)","v":""},"Setophaga dominica","Yellow-throated Warbler","Passériformes","Parulidés","https://www.oiseaux.net/oiseaux/paruline.a.gorge.jaune.html"]
["Paruline à gorge noire",{"$f":"StripAccent(A686)","v":"Paruline a gorge noire"},null,{"$f":"StripAccent(C686)","v":""},"Setophaga virens","Black-throated Green Warbler","Passériformes","Parulidés","https://www.oiseaux.net/oiseaux/paruline.a.gorge.noire.html"]
["Paruline à gorge orangée",{"$f":"StripAccent(A687)","v":"Paruline a gorge orangee"},null,{"$f":"StripAccent(C687)","v":""},"Setophaga fusca","Blackburnian Warbler","Passériformes","Parulidés","https://www.oiseaux.net/oiseaux/paruline.a.gorge.orangee.html"]
["Paruline à joues grises",{"$f":"StripAccent(A688)","v":"Paruline a joues grises"},null,{"$f":"StripAccent(C688)","v":""},"Leiothlypis ruficapilla","Nashville Warbler","Passériformes","Parulidés","https://www.oiseaux.net/oiseaux/paruline.a.joues.grises.html"]
["Paruline à poitrine baie",{"$f":"StripAccent(A689)","v":"Paruline a poitrine baie"},null,{"$f":"StripAccent(C689)","v":""},"Setophaga castanea","Bay-breasted Warbler","Passériformes","Parulidés","https://www.oiseaux.net/oiseaux/paruline.a.poitrine.baie.html"]
["Paruline à tête cendrée",{"$f":"StripAccent(A690)","v":"Paruline a tete cendree"},null,{"$f":"StripAccent(C690)","v":""},"Setophaga magnolia","Magnolia Warbler","Passériformes","Parulidés","https://www.oiseaux.net/oiseaux/paruline.a.tete.cendree.html"]
["Paruline azurée",{"$f":"StripAccent(A691)","v":"Paruline azuree"},null,{"$f":"StripAccent(C691)","v":""},"Setophaga cerulea","Cerulean Warbler","Passériformes","Parulidés","https://www.oiseaux.net/oiseaux/paruline.azuree.html"]
["Paruline bleue",{"$f":"StripAccent(A692)","v":"Paruline bleue"},null,{"$f":"StripAccent(C692)","v":""},"Setophaga caerulescens","Black-throated Blue Warbler","Passériformes","Parulidés","https://www.oiseaux.net/oiseaux/paruline.bleue.html"]
["Paruline couronnée",{"$f":"StripAccent(A693)","v":"Paruline couronnee"},null,{"$f":"StripAccent(C693)","v":""},"Seiurus aurocapilla","Ovenbird","Passériformes","Parulidés","https://www.oiseaux.net/oiseaux/paruline.couronnee.html"]
["Paruline d'Audubon",{"$f":"StripAccent(A694)","v":"Paruline d'Audubon"},null,{"$f":"StripAccent(C694)","v":""},"Setophaga auduboni","Audubon's Warbler","Passériformes","Parulidés","https://www.oiseaux.net/oiseaux/paruline.d.audubon.html"]
["Paruline des mangroves",{"$f":"StripAccent(A695)","v":"Paruline des mangroves"},null,{"$f":"StripAccent(C695)","v":""},"Setophaga petechia","Mangrove Warbler","Passériformes","Parulidés","https://www.oiseaux.net/oiseaux/paruline.des.mangroves.html"]
["Paruline des pins",{"$f":"StripAccent(A696)","v":"Paruline des pins"},null,{"$f":"StripAccent(C696)","v":""},"Setophaga pinus","Pine Warbler","Passériformes","Parulidés","https://www.oiseaux.net/oiseaux/paruline.des.pins.html"]
["Paruline des prés",{"$f":"StripAccent(A697)","v":"Paruline des pres"},null,{"$f":"StripAccent(C697)","v":""},"Setophaga discolor","Prairie Warbler","Passériformes","Parulidés","https://www.oiseaux.net/oiseaux/paruline.des.pres.html"]
["Paruline des ruisseaux",{"$f":"StripAccent(A698)","v":"Paruline des ruisseaux"},null,{"$f":"StripAccent(C698)","v":""},"Parkesia noveboracensis","Northern Waterthrush","Passériformes","Parulidés","https://www.oiseaux.net/oiseaux/paruline.des.ruisseaux.html"]
["Paruline du Canada",{"$f":"StripAccent(A699)","v":"Paruline du Canada"},null,{"$f":"StripAccent(C699)","v":""},"Cardellina canadensis","Canada Warbler","Passériformes","Parulidés","https://www.oiseaux.net/oiseaux/paruline.du.canada.html"]
["Paruline flamboyante",{"$f":"StripAccent(A700)","v":"Paruline flamboyante"},null,{"$f":"StripAccent(C700)","v":""},"Setophaga ruticilla","American Redstart","Passériformes","Parulidés","https://www.oiseaux.net/oiseaux/paruline.flamboyante.html"]
["Paruline hochequeue",{"$f":"StripAccent(A701)","v":"Paruline hochequeue"},null,{"$f":"StripAccent(C701)","v":""},"Parkesia motacilla","Louisiana Waterthrush","Passériformes","Parulidés","https://www.oiseaux.net/oiseaux/paruline.hochequeue.html"]
["Paruline jaune",{"$f":"StripAccent(A702)","v":"Paruline jaune"},null,{"$f":"StripAccent(C702)","v":""},"Setophaga aestiva","American Yellow Warbler","Passériformes","Parulidés","https://www.oiseaux.net/oiseaux/paruline.jaune.html"]
["Paruline masquée",{"$f":"StripAccent(A703)","v":"Paruline masquee"},null,{"$f":"StripAccent(C703)","v":""},"Geothlypis trichas","Common Yellowthroat","Passériformes","Parulidés","https://www.oiseaux.net/oiseaux/paruline.masquee.html"]
["Paruline noir et blanc",{"$f":"StripAccent(A704)","v":"Paruline noir et blanc"},null,{"$f":"StripAccent(C704)","v":""},"Mniotilta varia","Black-and-white Warbler","Passériformes","Parulidés","https://www.oiseaux.net/oiseaux/paruline.noir.et.blanc.html"]
["Paruline obscure",{"$f":"StripAccent(A705)","v":"Paruline obscure"},null,{"$f":"StripAccent(C705)","v":""},"Leiothlypis peregrina","Tennessee Warbler","Passériformes","Parulidés","https://www.oiseaux.net/oiseaux/paruline.obscure.html"]
["Paruline orangée",{"$f":"StripAccent(A706)","v":"Paruline orangee"},null,{"$f":"StripAccent(C706)","v":""},"Protonotaria citrea","Prothonotary Warbler","Passériformes","Parulidés","https://www.oiseaux.net/oiseaux/paruline.orangee.html"]
["Paruline polyglotte",{"$f":"StripAccent(A707)","v":"Paruline polyglotte"},"Ictérie polyglotte",{"$f":"StripAccent(C707)","v":"Icterie polyglotte"},"Icteria virens","Yellow-breasted Chat","Passériformes","Parulidés","https://www.oiseaux.net/oiseaux/paruline.polyglotte.html"]
["Paruline rayée",{"$f":"StripAccent(A708)","v":"Paruline rayee"},null,{"$f":"StripAccent(C708)","v":""},"Setophaga striata","Blackpoll Warbler","Passériformes","Parulidés","https://www.oiseaux.net/oiseaux/paruline.rayee.html"]
["Paruline tigrée",{"$f":"StripAccent(A709)","v":"Paruline tigree"},null,{"$f":"StripAccent(C709)","v":""},"Setophaga tigrina","Cape May Warbler","Passériformes","Parulidés","https://www.oiseaux.net/oiseaux/paruline.tigree.html"]
["Paruline triste",{"$f":"StripAccent(A710)","v":"Paruline triste"},null,{"$f":"StripAccent(C710)","v":""},"Geothlypis philadelphia","Mourning Warbler","Passériformes","Parulidés","https://www.oiseaux.net/oiseaux/paruline.triste.html"]
["Paruline verdâtre",{"$f":"StripAccent(A711)","v":"Paruline verdatre"},null,{"$f":"StripAccent(C711)","v":""},"Leiothlypis celata","Orange-crowned Warbler","Passériformes","Parulidés","https://www.oiseaux.net/oiseaux/paruline.verdatre.html"]
["Passerin azuré",{"$f":"StripAccent(A712)","v":"Passerin azure"},null,{"$f":"StripAccent(C712)","v":""},"Passerina amoena","Lazuli Bunting","Passériformes","Cardinalidés","https://www.oiseaux.net/oiseaux/passerin.azure.html"]
["Passerin indigo",{"$f":"StripAccent(A713)","v":"Passerin indigo"},null,{"$f":"StripAccent(C713)","v":""},"Passerina cyanea","Indigo Bunting","Passériformes","Cardinalidés","https://www.oiseaux.net/oiseaux/passerin.indigo.html"]
["Pélican blanc",{"$f":"StripAccent(A714)","v":"Pelican blanc"},null,{"$f":"StripAccent(C714)","v":""},"Pelecanus onocrotalus","Great White Pelican","Pélécaniformes","Pélécanidés","https://www.oiseaux.net/oiseaux/pelican.blanc.html"]
["Pélican frisé",{"$f":"StripAccent(A715)","v":"Pelican frise"},null,{"$f":"StripAccent(C715)","v":""},"Pelecanus crispus","Dalmatian Pelican","Pélécaniformes","Pélécanidés","https://www.oiseaux.net/oiseaux/pelican.frise.html"]
["Pélican gris",{"$f":"StripAccent(A716)","v":"Pelican gris"},null,{"$f":"StripAccent(C716)","v":""},"Pelecanus rufescens","Pink-backed Pelican","Pélécaniformes","Pélécanidés","https://www.oiseaux.net/oiseaux/pelican.gris.html"]
["Percnoptère d'Égypte",{"$f":"StripAccent(A717)","v":"Percnoptere d'Egypte"},"Vautour percnoptère",{"$f":"StripAccent(C717)","v":"Vautour percnoptere"},"Neophron percnopterus","Egyptian Vulture","Accipitriformes","Accipitridés","https://www.oiseaux.net/oiseaux/percnoptere.d.egypte.html"]
["Perdrix bartavelle",{"$f":"StripAccent(A718)","v":"Perdrix bartavelle"},null,{"$f":"StripAccent(C718)","v":""},"Alectoris graeca","Rock Partridge","Galliformes","Phasianidés","https://www.oiseaux.net/oiseaux/perdrix.bartavelle.html"]
["Perdrix choukar",{"$f":"StripAccent(A719)","v":"Perdrix choukar"},null,{"$f":"StripAccent(C719)","v":""},"Alectoris chukar","Chukar Partridge","Galliformes","Phasianidés","https://www.oiseaux.net/oiseaux/perdrix.choukar.html"]
["Perdrix de Daourie",{"$f":"StripAccent(A720)","v":"Perdrix de Daourie"},null,{"$f":"StripAccent(C720)","v":""},"Perdix dauurica","Daurian Partridge","Galliformes","Phasianidés","https://www.oiseaux.net/oiseaux/perdrix.de.daourie.html"]
["Perdrix gambra",{"$f":"StripAccent(A721)","v":"Perdrix gambra"},null,{"$f":"StripAccent(C721)","v":""},"Alectoris barbara","Barbary Partridge","Galliformes","Phasianidés","https://www.oiseaux.net/oiseaux/perdrix.gambra.html"]
["Perdrix grise",{"$f":"StripAccent(A722)","v":"Perdrix grise"},null,{"$f":"StripAccent(C722)","v":""},"Perdix perdix","Grey Partridge","Galliformes","Phasianidés","https://www.oiseaux.net/oiseaux/perdrix.grise.html"]
["Perdrix rouge",{"$f":"StripAccent(A723)","v":"Perdrix rouge"},null,{"$f":"StripAccent(C723)","v":""},"Alectoris rufa","Red-legged Partridge","Galliformes","Phasianidés","https://www.oiseaux.net/oiseaux/perdrix.rouge.html"]
["Perriche veuve",{"$f":"StripAccent(A724)","v":"Perriche veuve"},"Conure veuve",{"$f":"StripAccent(C724)","v":"Conure veuve"},"Myiopsitta monachus","Monk Parakeet","Psittaciformes","Psittacidés","https://www.oiseaux.net/oiseaux/perriche.veuve.html"]
["Perruche à collier",{"$f":"StripAccent(A725)","v":"Perruche a collier"},null,{"$f":"StripAccent(C725)","v":""},"Psittacula krameri","Rose-ringed Parakeet","Psittaciformes","Psittacidés","https://www.oiseaux.net/oiseaux/perruche.a.collier.html"]
["Perruche alexandre",{"$f":"StripAccent(A726)","v":"Perruche alexandre"},null,{"$f":"StripAccent(C726)","v":""},"Psittacula eupatria","Alexandrine Parakeet","Psittaciformes","Psittacidés","https://www.oiseaux.net/oiseaux/perruche.alexandre.html"]
["Petit-duc scops",{"$f":"StripAccent(A727)","v":"Petit-duc scops"},null,{"$f":"StripAccent(C727)","v":""},"Otus scops","Eurasian Scops Owl","Strigiformes","Strigidés","https://www.oiseaux.net/oiseaux/petit-duc.scops.html"]
["Petit Blongios",{"$f":"StripAccent(A728)","v":"Petit Blongios"},null,{"$f":"StripAccent(C728)","v":""},"Ixobrychus exilis","Least Bittern","Pélécaniformes","Ardéidés","https://www.oiseaux.net/oiseaux/petit.blongios.html"]
["Petit Gravelot",{"$f":"StripAccent(A729)","v":"Petit Gravelot"},"Pluvier petit-gravelot",{"$f":"StripAccent(C729)","v":"Pluvier petit-gravelot"},"Charadrius dubius","Little Ringed Plover","Charadriiformes","Charadriidés","https://www.oiseaux.net/oiseaux/petit.gravelot.html"]
["Petit Puffin du Cap-Vert",{"$f":"StripAccent(A730)","v":"Petit Puffin du Cap-Vert"},"Puffin de Boyd",{"$f":"StripAccent(C730)","v":"Puffin de Boyd"},"Puffinus boydi","Boyd's Shearwater","Procellariiformes","Procellariidés","https://www.oiseaux.net/oiseaux/petit.puffin.du.cap-vert.html"]
["Petite Sterne",{"$f":"StripAccent(A731)","v":"Petite Sterne"},null,{"$f":"StripAccent(C731)","v":""},"Sternula antillarum","Least Tern","Charadriiformes","Laridés","https://www.oiseaux.net/oiseaux/petite.sterne.html"]
["Pétrel de Bulwer",{"$f":"StripAccent(A732)","v":"Petrel de Bulwer"},null,{"$f":"StripAccent(C732)","v":""},"Bulweria bulwerii","Bulwer's Petrel","Procellariiformes","Procellariidés","https://www.oiseaux.net/oiseaux/petrel.de.bulwer.html"]
["Pétrel de la Trinité",{"$f":"StripAccent(A733)","v":"Petrel de la Trinite"},"Pétrel de Trindade",{"$f":"StripAccent(C733)","v":"Petrel de Trindade"},"Pterodroma arminjoniana","Trindade Petrel","Procellariiformes","Procellariidés","https://www.oiseaux.net/oiseaux/petrel.de.la.trinite.html"]
["Pétrel de Madère",{"$f":"StripAccent(A734)","v":"Petrel de Madere"},null,{"$f":"StripAccent(C734)","v":""},"Pterodroma madeira","Zino's Petrel","Procellariiformes","Procellariidés","https://www.oiseaux.net/oiseaux/petrel.de.madere.html"]
["Pétrel de Schlegel",{"$f":"StripAccent(A735)","v":"Petrel de Schlegel"},null,{"$f":"StripAccent(C735)","v":""},"Pterodroma incerta","Atlantic Petrel","Procellariiformes","Procellariidés","https://www.oiseaux.net/oiseaux/petrel.de.schlegel.html"]
["Pétrel des Bermudes",{"$f":"StripAccent(A736)","v":"Petrel des Bermudes"},null,{"$f":"StripAccent(C736)","v":""},"Pterodroma cahow","Bermuda Petrel","Procellariiformes","Procellariidés","https://www.oiseaux.net/oiseaux/petrel.des.bermudes.html"]
["Pétrel des Kermadec",{"$f":"StripAccent(A737)","v":"Petrel des Kermadec"},null,{"$f":"StripAccent(C737)","v":""},"Pterodroma neglecta","Kermadec Petrel","Procellariiformes","Procellariidés","https://www.oiseaux.net/oiseaux/petrel.des.kermadec.html"]
["Pétrel diablotin",{"$f":"StripAccent(A738)","v":"Petrel diablotin"},null,{"$f":"StripAccent(C738)","v":""},"Pterodroma hasitata","Black-capped Petrel","Procellariiformes","Procellariidés","https://www.oiseaux.net/oiseaux/petrel.diablotin.html"]
["Pétrel du désert",{"$f":"StripAccent(A739)","v":"Petrel du desert"},"Pétrel des Desertas",{"$f":"StripAccent(C739)","v":"Petrel des Desertas"},"Pterodroma deserta","Desertas Petrel","Procellariiformes","Procellariidés","https://www.oiseaux.net/oiseaux/petrel.du.desert.html"]
["Pétrel géant",{"$f":"StripAccent(A740)","v":"Petrel geant"},null,{"$f":"StripAccent(C740)","v":""},"Macronectes giganteus","Southern Giant Petrel","Procellariiformes","Procellariidés","https://www.oiseaux.net/oiseaux/petrel.geant.html"]
["Pétrel gongon",{"$f":"StripAccent(A741)","v":"Petrel gongon"},null,{"$f":"StripAccent(C741)","v":""},"Pterodroma feae","Fea's Petrel","Procellariiformes","Procellariidés","https://www.oiseaux.net/oiseaux/petrel.gongon.html"]
["Pétrel hérault",{"$f":"StripAccent(A742)","v":"Petrel herault"},"Pétrel du Herald",{"$f":"StripAccent(C742)","v":"Petrel du Herald"},"Pterodroma heraldica","Herald Petrel","Procellariiformes","Procellariidés","https://www.oiseaux.net/oiseaux/petrel.herault.html"]
["Pétrel noir",{"$f":"StripAccent(A743)","v":"Petrel noir"},null,{"$f":"StripAccent(C743)","v":""},"Pterodroma macroptera","Great-winged Petrel","Procellariiformes","Procellariidés","https://www.oiseaux.net/oiseaux/petrel.noir.html"]
["Pétrel soyeux",{"$f":"StripAccent(A744)","v":"Petrel soyeux"},null,{"$f":"StripAccent(C744)","v":""},"Pterodroma mollis","Soft-plumaged Petrel","Procellariiformes","Procellariidés","https://www.oiseaux.net/oiseaux/petrel.soyeux.html"]
["Phaéton à bec jaune",{"$f":"StripAccent(A745)","v":"Phaeton a bec jaune"},null,{"$f":"StripAccent(C745)","v":""},"Phaethon lepturus","White-tailed Tropicbird","Phaethontiformes","Phaethontidés","https://www.oiseaux.net/oiseaux/phaeton.a.bec.jaune.html"]
["Phaéton à bec rouge",{"$f":"StripAccent(A746)","v":"Phaeton a bec rouge"},null,{"$f":"StripAccent(C746)","v":""},"Phaethon aethereus","Red-billed Tropicbird","Phaethontiformes","Phaethontidés","https://www.oiseaux.net/oiseaux/phaeton.a.bec.rouge.html"]
["Phalarope à bec étroit",{"$f":"StripAccent(A747)","v":"Phalarope a bec etroit"},null,{"$f":"StripAccent(C747)","v":""},"Phalaropus lobatus","Red-necked Phalarope","Charadriiformes","Scolopacidés","https://www.oiseaux.net/oiseaux/phalarope.a.bec.etroit.html"]
["Phalarope à bec large",{"$f":"StripAccent(A748)","v":"Phalarope a bec large"},null,{"$f":"StripAccent(C748)","v":""},"Phalaropus fulicarius","Red Phalarope","Charadriiformes","Scolopacidés","https://www.oiseaux.net/oiseaux/phalarope.a.bec.large.html"]
["Phalarope de Wilson",{"$f":"StripAccent(A749)","v":"Phalarope de Wilson"},null,{"$f":"StripAccent(C749)","v":""},"Phalaropus tricolor","Wilson's Phalarope","Charadriiformes","Scolopacidés","https://www.oiseaux.net/oiseaux/phalarope.de.wilson.html"]
["Phragmite aquatique",{"$f":"StripAccent(A750)","v":"Phragmite aquatique"},null,{"$f":"StripAccent(C750)","v":""},"Acrocephalus paludicola","Aquatic Warbler","Passériformes","Acrocephalidés","https://www.oiseaux.net/oiseaux/phragmite.aquatique.html"]
["Phragmite des joncs",{"$f":"StripAccent(A751)","v":"Phragmite des joncs"},null,{"$f":"StripAccent(C751)","v":""},"Acrocephalus schoenobaenus","Sedge Warbler","Passériformes","Acrocephalidés","https://www.oiseaux.net/oiseaux/phragmite.des.joncs.html"]
["Pic à dos blanc",{"$f":"StripAccent(A752)","v":"Pic a dos blanc"},null,{"$f":"StripAccent(C752)","v":""},"Dendrocopos leucotos","White-backed Woodpecker","Piciformes","Picidés","https://www.oiseaux.net/oiseaux/pic.a.dos.blanc.html"]
["Pic cendré",{"$f":"StripAccent(A753)","v":"Pic cendre"},null,{"$f":"StripAccent(C753)","v":""},"Picus canus","Grey-headed Woodpecker","Piciformes","Picidés","https://www.oiseaux.net/oiseaux/pic.cendre.html"]
["Pic de Levaillant",{"$f":"StripAccent(A754)","v":"Pic de Levaillant"},null,{"$f":"StripAccent(C754)","v":""},"Picus vaillantii","Levaillant's Woodpecker","Piciformes","Picidés","https://www.oiseaux.net/oiseaux/pic.de.levaillant.html"]
["Pic de Sharpe",{"$f":"StripAccent(A755)","v":"Pic de Sharpe"},null,{"$f":"StripAccent(C755)","v":""},"Picus sharpei","Iberian Green Woodpecker","Piciformes","Picidés","https://www.oiseaux.net/oiseaux/pic.de.sharpe.html"]
["Pic épeiche",{"$f":"StripAccent(A756)","v":"Pic epeiche"},null,{"$f":"StripAccent(C756)","v":""},"Dendrocopos major","Great Spotted Woodpecker","Piciformes","Picidés","https://www.oiseaux.net/oiseaux/pic.epeiche.html"]
["Pic épeichette",{"$f":"StripAccent(A757)","v":"Pic epeichette"},null,{"$f":"StripAccent(C757)","v":""},"Dryobates minor","Lesser Spotted Woodpecker","Piciformes","Picidés","https://www.oiseaux.net/oiseaux/pic.epeichette.html"]
["Pic flamboyant",{"$f":"StripAccent(A758)","v":"Pic flamboyant"},null,{"$f":"StripAccent(C758)","v":""},"Colaptes auratus","Northern Flicker","Piciformes","Picidés","https://www.oiseaux.net/oiseaux/pic.flamboyant.html"]
["Pic maculé",{"$f":"StripAccent(A759)","v":"Pic macule"},null,{"$f":"StripAccent(C759)","v":""},"Sphyrapicus varius","Yellow-bellied Sapsucker","Piciformes","Picidés","https://www.oiseaux.net/oiseaux/pic.macule.html"]
["Pic mar",{"$f":"StripAccent(A760)","v":"Pic mar"},null,{"$f":"StripAccent(C760)","v":""},"Dendrocoptes medius","Middle Spotted Woodpecker","Piciformes","Picidés","https://www.oiseaux.net/oiseaux/pic.mar.html"]
["Pic noir",{"$f":"StripAccent(A761)","v":"Pic noir"},null,{"$f":"StripAccent(C761)","v":""},"Dryocopus martius","Black Woodpecker","Piciformes","Picidés","https://www.oiseaux.net/oiseaux/pic.noir.html"]
["Pic syriaque",{"$f":"StripAccent(A762)","v":"Pic syriaque"},null,{"$f":"StripAccent(C762)","v":""},"Dendrocopos syriacus","Syrian Woodpecker","Piciformes","Picidés","https://www.oiseaux.net/oiseaux/pic.syriaque.html"]
["Pic tridactyle",{"$f":"StripAccent(A763)","v":"Pic tridactyle"},null,{"$f":"StripAccent(C763)","v":""},"Picoides tridactylus","Eurasian Three-toed Woodpecker","Piciformes","Picidés","https://www.oiseaux.net/oiseaux/pic.tridactyle.html"]
["Pic vert",{"$f":"StripAccent(A764)","v":"Pic vert"},null,{"$f":"StripAccent(C764)","v":""},"Picus viridis","European Green Woodpecker","Piciformes","Picidés","https://www.oiseaux.net/oiseaux/pic.vert.html"]
["Pie-grièche à poitrine rose",{"$f":"StripAccent(A765)","v":"Pie-grieche a poitrine rose"},null,{"$f":"StripAccent(C765)","v":""},"Lanius minor","Lesser Grey Shrike","Passériformes","Laniidés","https://www.oiseaux.net/oiseaux/pie-grieche.a.poitrine.rose.html"]
["Pie-grièche à tête rousse",{"$f":"StripAccent(A766)","v":"Pie-grieche a tete rousse"},null,{"$f":"StripAccent(C766)","v":""},"Lanius senator","Woodchat Shrike","Passériformes","Laniidés","https://www.oiseaux.net/oiseaux/pie-grieche.a.tete.rousse.html"]
["Pie-grièche boréale",{"$f":"StripAccent(A767)","v":"Pie-grieche boreale"},null,{"$f":"StripAccent(C767)","v":""},"Lanius borealis","Northern Shrike","Passériformes","Laniidés","https://www.oiseaux.net/oiseaux/pie-grieche.boreale.html"]
["Pie-grièche brune",{"$f":"StripAccent(A768)","v":"Pie-grieche brune"},null,{"$f":"StripAccent(C768)","v":""},"Lanius cristatus","Brown Shrike","Passériformes","Laniidés","https://www.oiseaux.net/oiseaux/pie-grieche.brune.html"]
["Pie-grièche du Turkestan",{"$f":"StripAccent(A769)","v":"Pie-grieche du Turkestan"},null,{"$f":"StripAccent(C769)","v":""},"Lanius phoenicuroides","Red-tailed Shrike","Passériformes","Laniidés","https://www.oiseaux.net/oiseaux/pie-grieche.du.turkestan.html"]
["Pie-grièche écorcheur",{"$f":"StripAccent(A770)","v":"Pie-grieche ecorcheur"},null,{"$f":"StripAccent(C770)","v":""},"Lanius collurio","Red-backed Shrike","Passériformes","Laniidés","https://www.oiseaux.net/oiseaux/pie-grieche.ecorcheur.html"]
["Pie-grièche grise",{"$f":"StripAccent(A771)","v":"Pie-grieche grise"},null,{"$f":"StripAccent(C771)","v":""},"Lanius excubitor","Great Grey Shrike","Passériformes","Laniidés","https://www.oiseaux.net/oiseaux/pie-grieche.grise.html"]
["Pie-grièche isabelle",{"$f":"StripAccent(A772)","v":"Pie-grieche isabelle"},null,{"$f":"StripAccent(C772)","v":""},"Lanius isabellinus","Isabelline Shrike","Passériformes","Laniidés","https://www.oiseaux.net/oiseaux/pie-grieche.isabelle.html"]
["Pie-grièche masquée",{"$f":"StripAccent(A773)","v":"Pie-grieche masquee"},null,{"$f":"StripAccent(C773)","v":""},"Lanius nubicus","Masked Shrike","Passériformes","Laniidés","https://www.oiseaux.net/oiseaux/pie-grieche.masquee.html"]
["Pie-grièche méridionale",{"$f":"StripAccent(A774)","v":"Pie-grieche meridionale"},null,{"$f":"StripAccent(C774)","v":""},"Lanius meridionalis","Iberian Grey Shrike","Passériformes","Laniidés","https://www.oiseaux.net/oiseaux/pie-grieche.meridionale.html"]
["Pie-grièche schach",{"$f":"StripAccent(A775)","v":"Pie-grieche schach"},null,{"$f":"StripAccent(C775)","v":""},"Lanius schach","Long-tailed Shrike","Passériformes","Laniidés","https://www.oiseaux.net/oiseaux/pie-grieche.schach.html"]
["Pie bavarde",{"$f":"StripAccent(A776)","v":"Pie bavarde"},null,{"$f":"StripAccent(C776)","v":""},"Pica pica","Eurasian Magpie","Passériformes","Corvidés","https://www.oiseaux.net/oiseaux/pie.bavarde.html"]
["Pie du Maghreb",{"$f":"StripAccent(A777)","v":"Pie du Maghreb"},null,{"$f":"StripAccent(C777)","v":""},"Pica mauritanica","Maghreb Magpie","Passériformes","Corvidés","https://www.oiseaux.net/oiseaux/pie.du.maghreb.html"]
["Pie ibérique",{"$f":"StripAccent(A778)","v":"Pie iberique"},"Pie-bleue ibérique",{"$f":"StripAccent(C778)","v":"Pie-bleue iberique"},"Cyanopica cooki","Iberian Magpie","Passériformes","Corvidés","https://www.oiseaux.net/oiseaux/pie.iberique.html"]
["Pigeon biset",{"$f":"StripAccent(A779)","v":"Pigeon biset"},null,{"$f":"StripAccent(C779)","v":""},"Columba livia","Rock Dove","Columbiformes","Columbidés","https://www.oiseaux.net/oiseaux/pigeon.biset.html"]
["Pigeon colombin",{"$f":"StripAccent(A780)","v":"Pigeon colombin"},null,{"$f":"StripAccent(C780)","v":""},"Columba oenas","Stock Dove","Columbiformes","Columbidés","https://www.oiseaux.net/oiseaux/pigeon.colombin.html"]
["Pigeon de Bolle",{"$f":"StripAccent(A781)","v":"Pigeon de Bolle"},null,{"$f":"StripAccent(C781)","v":""},"Columba bollii","Bolle's Pigeon","Columbiformes","Columbidés","https://www.oiseaux.net/oiseaux/pigeon.de.bolle.html"]
["Pigeon des lauriers",{"$f":"StripAccent(A782)","v":"Pigeon des lauriers"},null,{"$f":"StripAccent(C782)","v":""},"Columba junoniae","Laurel Pigeon","Columbiformes","Columbidés","https://www.oiseaux.net/oiseaux/pigeon.des.lauriers.html"]
["Pigeon ramier",{"$f":"StripAccent(A783)","v":"Pigeon ramier"},null,{"$f":"StripAccent(C783)","v":""},"Columba palumbus","Common Wood Pigeon","Columbiformes","Columbidés","https://www.oiseaux.net/oiseaux/pigeon.ramier.html"]
["Pigeon trocaz",{"$f":"StripAccent(A784)","v":"Pigeon trocaz"},null,{"$f":"StripAccent(C784)","v":""},"Columba trocaz","Trocaz Pigeon","Columbiformes","Columbidés","https://www.oiseaux.net/oiseaux/pigeon.trocaz.html"]
["Pingouin torda",{"$f":"StripAccent(A785)","v":"Pingouin torda"},"Petit Pingouin",{"$f":"StripAccent(C785)","v":"Petit Pingouin"},"Alca torda","Razorbill","Charadriiformes","Alcidés","https://www.oiseaux.net/oiseaux/pingouin.torda.html"]
["Pinson bleu",{"$f":"StripAccent(A786)","v":"Pinson bleu"},null,{"$f":"StripAccent(C786)","v":""},"Fringilla teydea","Tenerife Blue Chaffinch","Passériformes","Fringillidés","https://www.oiseaux.net/oiseaux/pinson.bleu.html"]
["Pinson bleu de Grande Canarie",{"$f":"StripAccent(A787)","v":"Pinson bleu de Grande Canarie"},"Pinson de Grande Canarie",{"$f":"StripAccent(C787)","v":"Pinson de Grande Canarie"},"Fringilla polatzeki","Gran Canaria Blue Chaffinch","Passériformes","Fringillidés","https://www.oiseaux.net/oiseaux/pinson.bleu.de.grande.canarie.html"]
["Pinson des arbres",{"$f":"StripAccent(A788)","v":"Pinson des arbres"},null,{"$f":"StripAccent(C788)","v":""},"Fringilla coelebs","Eurasian Chaffinch","Passériformes","Fringillidés","https://www.oiseaux.net/oiseaux/pinson.des.arbres.html"]
["Pinson des Canaries",{"$f":"StripAccent(A789)","v":"Pinson des Canaries"},null,{"$f":"StripAccent(C789)","v":""},"Fringilla canariensis","Canary Islands Chaffinch","Passériformes","Fringillidés","https://www.oiseaux.net/oiseaux/pinson.des.canaries.html"]
["Pinson du Nord",{"$f":"StripAccent(A790)","v":"Pinson du Nord"},null,{"$f":"StripAccent(C790)","v":""},"Fringilla montifringilla","Brambling","Passériformes","Fringillidés","https://www.oiseaux.net/oiseaux/pinson.du.nord.html"]
["Pintade de Numidie",{"$f":"StripAccent(A791)","v":"Pintade de Numidie"},null,{"$f":"StripAccent(C791)","v":""},"Numida meleagris","Helmeted Guineafowl","Galliformes","Numididés","https://www.oiseaux.net/oiseaux/pintade.de.numidie.html"]
["Pioui de l'Est",{"$f":"StripAccent(A792)","v":"Pioui de l'Est"},null,{"$f":"StripAccent(C792)","v":""},"Contopus virens","Eastern Wood Pewee","Passériformes","Tyrannidés","https://www.oiseaux.net/oiseaux/pioui.de.l.est.html"]
["Pipit à dos olive",{"$f":"StripAccent(A793)","v":"Pipit a dos olive"},null,{"$f":"StripAccent(C793)","v":""},"Anthus hodgsoni","Olive-backed Pipit","Passériformes","Motacillidés","https://www.oiseaux.net/oiseaux/pipit.a.dos.olive.html"]
["Pipit à gorge rousse",{"$f":"StripAccent(A794)","v":"Pipit a gorge rousse"},null,{"$f":"StripAccent(C794)","v":""},"Anthus cervinus","Red-throated Pipit","Passériformes","Motacillidés","https://www.oiseaux.net/oiseaux/pipit.a.gorge.rousse.html"]
["Pipit à long bec",{"$f":"StripAccent(A795)","v":"Pipit a long bec"},null,{"$f":"StripAccent(C795)","v":""},"Anthus similis","Long-billed Pipit","Passériformes","Motacillidés","https://www.oiseaux.net/oiseaux/pipit.a.long.bec.html"]
["Pipit de Berthelot",{"$f":"StripAccent(A796)","v":"Pipit de Berthelot"},null,{"$f":"StripAccent(C796)","v":""},"Anthus berthelotii","Berthelot's Pipit","Passériformes","Motacillidés","https://www.oiseaux.net/oiseaux/pipit.de.berthelot.html"]
["Pipit de Godlewski",{"$f":"StripAccent(A797)","v":"Pipit de Godlewski"},null,{"$f":"StripAccent(C797)","v":""},"Anthus godlewskii","Blyth's Pipit","Passériformes","Motacillidés","https://www.oiseaux.net/oiseaux/pipit.de.godlewski.html"]
["Pipit de la Petchora",{"$f":"StripAccent(A798)","v":"Pipit de la Petchora"},null,{"$f":"StripAccent(C798)","v":""},"Anthus gustavi","Pechora Pipit","Passériformes","Motacillidés","https://www.oiseaux.net/oiseaux/pipit.de.la.petchora.html"]
["Pipit de Richard",{"$f":"StripAccent(A799)","v":"Pipit de Richard"},null,{"$f":"StripAccent(C799)","v":""},"Anthus richardi","Richard's Pipit","Passériformes","Motacillidés","https://www.oiseaux.net/oiseaux/pipit.de.richard.html"]
["Pipit des arbres",{"$f":"StripAccent(A800)","v":"Pipit des arbres"},null,{"$f":"StripAccent(C800)","v":""},"Anthus trivialis","Tree Pipit","Passériformes","Motacillidés","https://www.oiseaux.net/oiseaux/pipit.des.arbres.html"]
["Pipit farlousane",{"$f":"StripAccent(A801)","v":"Pipit farlousane"},"Pipit d'Amérique",{"$f":"StripAccent(C801)","v":"Pipit d'Amerique"},"Anthus rubescens","Buff-bellied Pipit","Passériformes","Motacillidés","https://www.oiseaux.net/oiseaux/pipit.farlousane.html"]
["Pipit farlouse",{"$f":"StripAccent(A802)","v":"Pipit farlouse"},null,{"$f":"StripAccent(C802)","v":""},"Anthus pratensis","Meadow Pipit","Passériformes","Motacillidés","https://www.oiseaux.net/oiseaux/pipit.farlouse.html"]
["Pipit maritime",{"$f":"StripAccent(A803)","v":"Pipit maritime"},null,{"$f":"StripAccent(C803)","v":""},"Anthus petrosus","European Rock Pipit","Passériformes","Motacillidés","https://www.oiseaux.net/oiseaux/pipit.maritime.html"]
["Pipit rousseline",{"$f":"StripAccent(A804)","v":"Pipit rousseline"},null,{"$f":"StripAccent(C804)","v":""},"Anthus campestris","Tawny Pipit","Passériformes","Motacillidés","https://www.oiseaux.net/oiseaux/pipit.rousseline.html"]
["Pipit rousset",{"$f":"StripAccent(A805)","v":"Pipit rousset"},null,{"$f":"StripAccent(C805)","v":""},"Anthus rufulus","Paddyfield Pipit","Passériformes","Motacillidés","https://www.oiseaux.net/oiseaux/pipit.rousset.html"]
["Pipit spioncelle",{"$f":"StripAccent(A806)","v":"Pipit spioncelle"},null,{"$f":"StripAccent(C806)","v":""},"Anthus spinoletta","Water Pipit","Passériformes","Motacillidés","https://www.oiseaux.net/oiseaux/pipit.spioncelle.html"]
["Plongeon à bec blanc",{"$f":"StripAccent(A807)","v":"Plongeon a bec blanc"},null,{"$f":"StripAccent(C807)","v":""},"Gavia adamsii","Yellow-billed Loon","Gaviiformes","Gaviidés","https://www.oiseaux.net/oiseaux/plongeon.a.bec.blanc.html"]
["Plongeon arctique",{"$f":"StripAccent(A808)","v":"Plongeon arctique"},null,{"$f":"StripAccent(C808)","v":""},"Gavia arctica","Black-throated Loon","Gaviiformes","Gaviidés","https://www.oiseaux.net/oiseaux/plongeon.arctique.html"]
["Plongeon catmarin",{"$f":"StripAccent(A809)","v":"Plongeon catmarin"},null,{"$f":"StripAccent(C809)","v":""},"Gavia stellata","Red-throated Loon","Gaviiformes","Gaviidés","https://www.oiseaux.net/oiseaux/plongeon.catmarin.html"]
["Plongeon du Pacifique",{"$f":"StripAccent(A810)","v":"Plongeon du Pacifique"},null,{"$f":"StripAccent(C810)","v":""},"Gavia pacifica","Pacific Loon","Gaviiformes","Gaviidés","https://www.oiseaux.net/oiseaux/plongeon.du.pacifique.html"]
["Plongeon imbrin",{"$f":"StripAccent(A811)","v":"Plongeon imbrin"},"Plongeon huard",{"$f":"StripAccent(C811)","v":"Plongeon huard"},"Gavia immer","Common Loon","Gaviiformes","Gaviidés","https://www.oiseaux.net/oiseaux/plongeon.imbrin.html"]
["Pluvian fluviatile",{"$f":"StripAccent(A812)","v":"Pluvian fluviatile"},null,{"$f":"StripAccent(C812)","v":""},"Pluvianus aegyptius","Egyptian Plover","Charadriiformes","Pluvianidés","https://www.oiseaux.net/oiseaux/pluvian.fluviatile.html"]
["Pluvier argenté",{"$f":"StripAccent(A813)","v":"Pluvier argente"},null,{"$f":"StripAccent(C813)","v":""},"Pluvialis squatarola","Grey Plover","Charadriiformes","Charadriidés","https://www.oiseaux.net/oiseaux/pluvier.argente.html"]
["Pluvier asiatique",{"$f":"StripAccent(A814)","v":"Pluvier asiatique"},null,{"$f":"StripAccent(C814)","v":""},"Anarhynchus asiaticus","Caspian Plover","Charadriiformes","Charadriidés","https://www.oiseaux.net/oiseaux/pluvier.asiatique.html"]
["Pluvier bronzé",{"$f":"StripAccent(A815)","v":"Pluvier bronze"},null,{"$f":"StripAccent(C815)","v":""},"Pluvialis dominica","American Golden Plover","Charadriiformes","Charadriidés","https://www.oiseaux.net/oiseaux/pluvier.bronze.html"]
["Pluvier doré",{"$f":"StripAccent(A816)","v":"Pluvier dore"},null,{"$f":"StripAccent(C816)","v":""},"Pluvialis apricaria","European Golden Plover","Charadriiformes","Charadriidés","https://www.oiseaux.net/oiseaux/pluvier.dore.html"]
["Pluvier du Tibet",{"$f":"StripAccent(A817)","v":"Pluvier du Tibet"},null,{"$f":"StripAccent(C817)","v":""},"Anarhynchus atrifrons","Tibetan Sand Plover","Charadriiformes","Charadriidés","https://www.oiseaux.net/oiseaux/pluvier.du.tibet.html"]
["Pluvier fauve",{"$f":"StripAccent(A818)","v":"Pluvier fauve"},null,{"$f":"StripAccent(C818)","v":""},"Pluvialis fulva","Pacific Golden Plover","Charadriiformes","Charadriidés","https://www.oiseaux.net/oiseaux/pluvier.fauve.html"]
["Pluvier guignard",{"$f":"StripAccent(A819)","v":"Pluvier guignard"},null,{"$f":"StripAccent(C819)","v":""},"Eudromias morinellus","Eurasian Dotterel","Charadriiformes","Charadriidés","https://www.oiseaux.net/oiseaux/pluvier.guignard.html"]
["Pouillot à deux barres",{"$f":"StripAccent(A820)","v":"Pouillot a deux barres"},null,{"$f":"StripAccent(C820)","v":""},"Phylloscopus plumbeitarsus","Two-barred Warbler","Passériformes","Phylloscopidés","https://www.oiseaux.net/oiseaux/pouillot.a.deux.barres.html"]
["Pouillot à grands sourcils",{"$f":"StripAccent(A821)","v":"Pouillot a grands sourcils"},null,{"$f":"StripAccent(C821)","v":""},"Phylloscopus inornatus","Yellow-browed Warbler","Passériformes","Phylloscopidés","https://www.oiseaux.net/oiseaux/pouillot.a.grands.sourcils.html"]
["Pouillot à gros bec",{"$f":"StripAccent(A822)","v":"Pouillot a gros bec"},null,{"$f":"StripAccent(C822)","v":""},"Phylloscopus magnirostris","Large-billed Leaf Warbler","Passériformes","Phylloscopidés","https://www.oiseaux.net/oiseaux/pouillot.a.gros.bec.html"]
["Pouillot à pattes claires",{"$f":"StripAccent(A823)","v":"Pouillot a pattes claires"},null,{"$f":"StripAccent(C823)","v":""},"Phylloscopus tenellipes","Pale-legged Leaf Warbler","Passériformes","Phylloscopidés","https://www.oiseaux.net/oiseaux/pouillot.a.pattes.claires.html"]
["Pouillot boréal",{"$f":"StripAccent(A824)","v":"Pouillot boreal"},null,{"$f":"StripAccent(C824)","v":""},"Phylloscopus borealis","Arctic Warbler","Passériformes","Phylloscopidés","https://www.oiseaux.net/oiseaux/pouillot.boreal.html"]
["Pouillot brun",{"$f":"StripAccent(A825)","v":"Pouillot brun"},null,{"$f":"StripAccent(C825)","v":""},"Phylloscopus fuscatus","Dusky Warbler","Passériformes","Phylloscopidés","https://www.oiseaux.net/oiseaux/pouillot.brun.html"]
["Pouillot de Bonelli",{"$f":"StripAccent(A826)","v":"Pouillot de Bonelli"},null,{"$f":"StripAccent(C826)","v":""},"Phylloscopus bonelli","Western Bonelli's Warbler","Passériformes","Phylloscopidés","https://www.oiseaux.net/oiseaux/pouillot.de.bonelli.html"]
["Pouillot de Hume",{"$f":"StripAccent(A827)","v":"Pouillot de Hume"},null,{"$f":"StripAccent(C827)","v":""},"Phylloscopus humei","Hume's Leaf Warbler","Passériformes","Phylloscopidés","https://www.oiseaux.net/oiseaux/pouillot.de.hume.html"]
["Pouillot de Pallas",{"$f":"StripAccent(A828)","v":"Pouillot de Pallas"},null,{"$f":"StripAccent(C828)","v":""},"Phylloscopus proregulus","Pallas's Leaf Warbler","Passériformes","Phylloscopidés","https://www.oiseaux.net/oiseaux/pouillot.de.pallas.html"]
["Pouillot de Schwarz",{"$f":"StripAccent(A829)","v":"Pouillot de Schwarz"},null,{"$f":"StripAccent(C829)","v":""},"Phylloscopus schwarzi","Radde's Warbler","Passériformes","Phylloscopidés","https://www.oiseaux.net/oiseaux/pouillot.de.schwarz.html"]
["Pouillot de Temminck",{"$f":"StripAccent(A830)","v":"Pouillot de Temminck"},null,{"$f":"StripAccent(C830)","v":""},"Phylloscopus coronatus","Eastern Crowned Warbler","Passériformes","Phylloscopidés","https://www.oiseaux.net/oiseaux/pouillot.de.temminck.html"]
["Pouillot des Canaries",{"$f":"StripAccent(A831)","v":"Pouillot des Canaries"},null,{"$f":"StripAccent(C831)","v":""},"Phylloscopus canariensis","Canary Islands Chiffchaff","Passériformes","Phylloscopidés","https://www.oiseaux.net/oiseaux/pouillot.des.canaries.html"]
["Pouillot du Caucase",{"$f":"StripAccent(A832)","v":"Pouillot du Caucase"},null,{"$f":"StripAccent(C832)","v":""},"Phylloscopus nitidus","Green Warbler","Passériformes","Phylloscopidés","https://www.oiseaux.net/oiseaux/pouillot.du.caucase.html"]
["Pouillot du Kamtchatka",{"$f":"StripAccent(A833)","v":"Pouillot du Kamtchatka"},null,{"$f":"StripAccent(C833)","v":""},"Phylloscopus examinandus","Kamchatka Leaf Warbler","Passériformes","Phylloscopidés","https://www.oiseaux.net/oiseaux/pouillot.du.kamtchatka.html"]
["Pouillot fitis",{"$f":"StripAccent(A834)","v":"Pouillot fitis"},null,{"$f":"StripAccent(C834)","v":""},"Phylloscopus trochilus","Willow Warbler","Passériformes","Phylloscopidés","https://www.oiseaux.net/oiseaux/pouillot.fitis.html"]
["Pouillot griséole",{"$f":"StripAccent(A835)","v":"Pouillot griseole"},null,{"$f":"StripAccent(C835)","v":""},"Phylloscopus griseolus","Sulphur-bellied Warbler","Passériformes","Phylloscopidés","https://www.oiseaux.net/oiseaux/pouillot.griseole.html"]
["Pouillot ibérique",{"$f":"StripAccent(A836)","v":"Pouillot iberique"},null,{"$f":"StripAccent(C836)","v":""},"Phylloscopus ibericus","Iberian Chiffchaff","Passériformes","Phylloscopidés","https://www.oiseaux.net/oiseaux/pouillot.iberique.html"]
["Pouillot modeste",{"$f":"StripAccent(A837)","v":"Pouillot modeste"},null,{"$f":"StripAccent(C837)","v":""},"Phylloscopus neglectus","Plain Leaf Warbler","Passériformes","Phylloscopidés","https://www.oiseaux.net/oiseaux/pouillot.modeste.html"]
["Pouillot montagnard",{"$f":"StripAccent(A838)","v":"Pouillot montagnard"},null,{"$f":"StripAccent(C838)","v":""},"Phylloscopus sindianus","Mountain Chiffchaff","Passériformes","Phylloscopidés","https://www.oiseaux.net/oiseaux/pouillot.montagnard.html"]
["Pouillot oriental",{"$f":"StripAccent(A839)","v":"Pouillot oriental"},null,{"$f":"StripAccent(C839)","v":""},"Phylloscopus orientalis","Eastern Bonelli's Warbler","Passériformes","Phylloscopidés","https://www.oiseaux.net/oiseaux/pouillot.oriental.html"]
["Pouillot siffleur",{"$f":"StripAccent(A840)","v":"Pouillot siffleur"},null,{"$f":"StripAccent(C840)","v":""},"Phylloscopus sibilatrix","Wood Warbler","Passériformes","Phylloscopidés","https://www.oiseaux.net/oiseaux/pouillot.siffleur.html"]
["Pouillot véloce",{"$f":"StripAccent(A841)","v":"Pouillot veloce"},null,{"$f":"StripAccent(C841)","v":""},"Phylloscopus collybita","Common Chiffchaff","Passériformes","Phylloscopidés","https://www.oiseaux.net/oiseaux/pouillot.veloce.html"]
["Pouillot verdâtre",{"$f":"StripAccent(A842)","v":"Pouillot verdatre"},null,{"$f":"StripAccent(C842)","v":""},"Phylloscopus trochiloides","Greenish Warbler","Passériformes","Phylloscopidés","https://www.oiseaux.net/oiseaux/pouillot.verdatre.html"]
["Prinia gracile",{"$f":"StripAccent(A843)","v":"Prinia gracile"},null,{"$f":"StripAccent(C843)","v":""},"Prinia gracilis","Graceful Prinia","Passériformes","Cisticolidés","https://www.oiseaux.net/oiseaux/prinia.gracile.html"]
["Puffin à bec grêle",{"$f":"StripAccent(A844)","v":"Puffin a bec grele"},null,{"$f":"StripAccent(C844)","v":""},"Ardenna tenuirostris","Short-tailed Shearwater","Procellariiformes","Procellariidés","https://www.oiseaux.net/oiseaux/puffin.a.bec.grele.html"]
["Puffin à menton blanc",{"$f":"StripAccent(A845)","v":"Puffin a menton blanc"},null,{"$f":"StripAccent(C845)","v":""},"Procellaria aequinoctialis","White-chinned Petrel","Procellariiformes","Procellariidés","https://www.oiseaux.net/oiseaux/puffin.a.menton.blanc.html"]
["Puffin à pieds pâles",{"$f":"StripAccent(A846)","v":"Puffin a pieds pales"},null,{"$f":"StripAccent(C846)","v":""},"Ardenna carneipes","Flesh-footed Shearwater","Procellariiformes","Procellariidés","https://www.oiseaux.net/oiseaux/puffin.a.pieds.pales.html"]
["Puffin boréal",{"$f":"StripAccent(A847)","v":"Puffin boreal"},"Puffin cendré",{"$f":"StripAccent(C847)","v":"Puffin cendre"},"Calonectris borealis","Cory's Shearwater","Procellariiformes","Procellariidés","https://www.oiseaux.net/oiseaux/puffin.boreal.html"]
["Puffin d'Audubon",{"$f":"StripAccent(A848)","v":"Puffin d'Audubon"},null,{"$f":"StripAccent(C848)","v":""},"Puffinus lherminieri","Audubon's Shearwater","Procellariiformes","Procellariidés","https://www.oiseaux.net/oiseaux/puffin.d.audubon.html"]
["Puffin de Baillon",{"$f":"StripAccent(A849)","v":"Puffin de Baillon"},null,{"$f":"StripAccent(C849)","v":""},"Puffinus bailloni","Tropical Shearwater","Procellariiformes","Procellariidés","https://www.oiseaux.net/oiseaux/puffin.de.baillon.html"]
["Puffin de Buller",{"$f":"StripAccent(A850)","v":"Puffin de Buller"},null,{"$f":"StripAccent(C850)","v":""},"Ardenna bulleri","Buller's Shearwater","Procellariiformes","Procellariidés","https://www.oiseaux.net/oiseaux/puffin.de.buller.html"]
["Puffin de Macaronésie",{"$f":"StripAccent(A851)","v":"Puffin de Macaronesie"},null,{"$f":"StripAccent(C851)","v":""},"Puffinus baroli","Barolo Shearwater","Procellariiformes","Procellariidés","https://www.oiseaux.net/oiseaux/puffin.de.macaronesie.html"]
["Puffin de Scopoli",{"$f":"StripAccent(A852)","v":"Puffin de Scopoli"},null,{"$f":"StripAccent(C852)","v":""},"Calonectris diomedea","Scopoli's Shearwater","Procellariiformes","Procellariidés","https://www.oiseaux.net/oiseaux/puffin.de.scopoli.html"]
["Puffin des Anglais",{"$f":"StripAccent(A853)","v":"Puffin des Anglais"},null,{"$f":"StripAccent(C853)","v":""},"Puffinus puffinus","Manx Shearwater","Procellariiformes","Procellariidés","https://www.oiseaux.net/oiseaux/puffin.des.anglais.html"]
["Puffin des Baléares",{"$f":"StripAccent(A854)","v":"Puffin des Baleares"},null,{"$f":"StripAccent(C854)","v":""},"Puffinus mauretanicus","Balearic Shearwater","Procellariiformes","Procellariidés","https://www.oiseaux.net/oiseaux/puffin.des.baleares.html"]
["Puffin du Cap-Vert",{"$f":"StripAccent(A855)","v":"Puffin du Cap-Vert"},null,{"$f":"StripAccent(C855)","v":""},"Calonectris edwardsii","Cape Verde Shearwater","Procellariiformes","Procellariidés","https://www.oiseaux.net/oiseaux/puffin.du.cap-vert.html"]
["Puffin fuligineux",{"$f":"StripAccent(A856)","v":"Puffin fuligineux"},null,{"$f":"StripAccent(C856)","v":""},"Ardenna grisea","Sooty Shearwater","Procellariiformes","Procellariidés","https://www.oiseaux.net/oiseaux/puffin.fuligineux.html"]
["Puffin majeur",{"$f":"StripAccent(A857)","v":"Puffin majeur"},null,{"$f":"StripAccent(C857)","v":""},"Ardenna gravis","Great Shearwater","Procellariiformes","Procellariidés","https://www.oiseaux.net/oiseaux/puffin.majeur.html"]
["Puffin yelkouan",{"$f":"StripAccent(A858)","v":"Puffin yelkouan"},null,{"$f":"StripAccent(C858)","v":""},"Puffinus yelkouan","Yelkouan Shearwater","Procellariiformes","Procellariidés","https://www.oiseaux.net/oiseaux/puffin.yelkouan.html"]
["Pygargue à queue blanche",{"$f":"StripAccent(A859)","v":"Pygargue a queue blanche"},null,{"$f":"StripAccent(C859)","v":""},"Haliaeetus albicilla","White-tailed Eagle","Accipitriformes","Accipitridés","https://www.oiseaux.net/oiseaux/pygargue.a.queue.blanche.html"]
["Pygargue à tête blanche",{"$f":"StripAccent(A860)","v":"Pygargue a tete blanche"},null,{"$f":"StripAccent(C860)","v":""},"Haliaeetus leucocephalus","Bald Eagle","Accipitriformes","Accipitridés","https://www.oiseaux.net/oiseaux/pygargue.a.tete.blanche.html"]
["Pygargue de Pallas",{"$f":"StripAccent(A861)","v":"Pygargue de Pallas"},null,{"$f":"StripAccent(C861)","v":""},"Haliaeetus leucoryphus","Pallas's Fish Eagle","Accipitriformes","Accipitridés","https://www.oiseaux.net/oiseaux/pygargue.de.pallas.html"]
["Pygargue de Steller",{"$f":"StripAccent(A862)","v":"Pygargue de Steller"},"Pygargue empereur",{"$f":"StripAccent(C862)","v":"Pygargue empereur"},"Haliaeetus pelagicus","Steller's Sea Eagle","Accipitriformes","Accipitridés","https://www.oiseaux.net/oiseaux/pygargue.de.steller.html"]
["Quiscale bronzé",{"$f":"StripAccent(A863)","v":"Quiscale bronze"},null,{"$f":"StripAccent(C863)","v":""},"Quiscalus quiscula","Common Grackle","Passériformes","Ictéridés","https://www.oiseaux.net/oiseaux/quiscale.bronze.html"]
["Quiscale de Brewer",{"$f":"StripAccent(A864)","v":"Quiscale de Brewer"},null,{"$f":"StripAccent(C864)","v":""},"Euphagus cyanocephalus","Brewer's Blackbird","Passériformes","Ictéridés","https://www.oiseaux.net/oiseaux/quiscale.de.brewer.html"]
["Quiscale des marais",{"$f":"StripAccent(A865)","v":"Quiscale des marais"},null,{"$f":"StripAccent(C865)","v":""},"Quiscalus major","Boat-tailed Grackle","Passériformes","Ictéridés","https://www.oiseaux.net/oiseaux/quiscale.des.marais.html"]
["Quiscale rouilleux",{"$f":"StripAccent(A866)","v":"Quiscale rouilleux"},null,{"$f":"StripAccent(C866)","v":""},"Euphagus carolinus","Rusty Blackbird","Passériformes","Ictéridés","https://www.oiseaux.net/oiseaux/quiscale.rouilleux.html"]
["Râle à bec jaune",{"$f":"StripAccent(A867)","v":"Rale a bec jaune"},"Marouette à bec jaune",{"$f":"StripAccent(C867)","v":"Marouette a bec jaune"},"Zapornia flavirostra","Black Crake","Gruiformes","Rallidés","https://www.oiseaux.net/oiseaux/rale.a.bec.jaune.html"]
["Râle à crête",{"$f":"StripAccent(A868)","v":"Rale a crete"},null,{"$f":"StripAccent(C868)","v":""},"Gallicrex cinerea","Watercock","Gruiformes","Rallidés","https://www.oiseaux.net/oiseaux/rale.a.crete.html"]
["Râle d'eau",{"$f":"StripAccent(A869)","v":"Rale d'eau"},null,{"$f":"StripAccent(C869)","v":""},"Rallus aquaticus","Water Rail","Gruiformes","Rallidés","https://www.oiseaux.net/oiseaux/rale.d.eau.html"]
["Râle de Virginie",{"$f":"StripAccent(A870)","v":"Rale de Virginie"},null,{"$f":"StripAccent(C870)","v":""},"Rallus limicola","Virginia Rail","Gruiformes","Rallidés","https://www.oiseaux.net/oiseaux/rale.de.virginie.html"]
["Râle des genêts",{"$f":"StripAccent(A871)","v":"Rale des genets"},null,{"$f":"StripAccent(C871)","v":""},"Crex crex","Corn Crake","Gruiformes","Rallidés","https://www.oiseaux.net/oiseaux/rale.des.genets.html"]
["Râle des prés",{"$f":"StripAccent(A872)","v":"Rale des pres"},null,{"$f":"StripAccent(C872)","v":""},"Crecopsis egregia","African Crake","Gruiformes","Rallidés","https://www.oiseaux.net/oiseaux/rale.des.pres.html"]
["Rémiz penduline",{"$f":"StripAccent(A873)","v":"Remiz penduline"},null,{"$f":"StripAccent(C873)","v":""},"Remiz pendulinus","Eurasian Penduline Tit","Passériformes","Rémizidés","https://www.oiseaux.net/oiseaux/remiz.penduline.html"]
["Rhynchée peinte",{"$f":"StripAccent(A874)","v":"Rhynchee peinte"},null,{"$f":"StripAccent(C874)","v":""},"Rostratula benghalensis","Greater Painted-snipe","Charadriiformes","Rostratulidés","https://www.oiseaux.net/oiseaux/rhynchee.peinte.html"]
["Robin à flancs roux",{"$f":"StripAccent(A875)","v":"Robin a flancs roux"},null,{"$f":"StripAccent(C875)","v":""},"Tarsiger cyanurus","Red-flanked Bluetail","Passériformes","Muscicapidés","https://www.oiseaux.net/oiseaux/robin.a.flancs.roux.html"]
["Roitelet à couronne rubis",{"$f":"StripAccent(A876)","v":"Roitelet a couronne rubis"},null,{"$f":"StripAccent(C876)","v":""},"Corthylio calendula","Ruby-crowned Kinglet","Passériformes","Régulidés","https://www.oiseaux.net/oiseaux/roitelet.a.couronne.rubis.html"]
["Roitelet de Madère",{"$f":"StripAccent(A877)","v":"Roitelet de Madere"},null,{"$f":"StripAccent(C877)","v":""},"Regulus madeirensis","Madeira Firecrest","Passériformes","Régulidés","https://www.oiseaux.net/oiseaux/roitelet.de.madere.html"]
["Roitelet huppé",{"$f":"StripAccent(A878)","v":"Roitelet huppe"},null,{"$f":"StripAccent(C878)","v":""},"Regulus regulus","Goldcrest","Passériformes","Régulidés","https://www.oiseaux.net/oiseaux/roitelet.huppe.html"]
["Roitelet triple-bandeau",{"$f":"StripAccent(A879)","v":"Roitelet triple-bandeau"},null,{"$f":"StripAccent(C879)","v":""},"Regulus ignicapilla","Common Firecrest","Passériformes","Régulidés","https://www.oiseaux.net/oiseaux/roitelet.triple-bandeau.html"]
["Rollier d'Abyssinie",{"$f":"StripAccent(A880)","v":"Rollier d'Abyssinie"},null,{"$f":"StripAccent(C880)","v":""},"Coracias abyssinicus","Abyssinian Roller","Coraciiformes","Coraciidés","https://www.oiseaux.net/oiseaux/rollier.d.abyssinie.html"]
["Rollier d'Europe",{"$f":"StripAccent(A881)","v":"Rollier d'Europe"},null,{"$f":"StripAccent(C881)","v":""},"Coracias garrulus","European Roller","Coraciiformes","Coraciidés","https://www.oiseaux.net/oiseaux/rollier.d.europe.html"]
["Roselin à ailes roses",{"$f":"StripAccent(A882)","v":"Roselin a ailes roses"},null,{"$f":"StripAccent(C882)","v":""},"Rhodopechys sanguineus","Asian Crimson-winged Finch","Passériformes","Fringillidés","https://www.oiseaux.net/oiseaux/roselin.a.ailes.roses.html"]
["Roselin à longue queue",{"$f":"StripAccent(A883)","v":"Roselin a longue queue"},null,{"$f":"StripAccent(C883)","v":""},"Carpodacus sibiricus","Siberian Long-tailed Rosefinch","Passériformes","Fringillidés","https://www.oiseaux.net/oiseaux/roselin.a.longue.queue.html"]
["Roselin à tête grise",{"$f":"StripAccent(A884)","v":"Roselin a tete grise"},null,{"$f":"StripAccent(C884)","v":""},"Leucosticte tephrocotis","Grey-crowned Rosy Finch","Passériformes","Fringillidés","https://www.oiseaux.net/oiseaux/roselin.a.tete.grise.html"]
["Roselin cramoisi",{"$f":"StripAccent(A885)","v":"Roselin cramoisi"},null,{"$f":"StripAccent(C885)","v":""},"Carpodacus erythrinus","Common Rosefinch","Passériformes","Fringillidés","https://www.oiseaux.net/oiseaux/roselin.cramoisi.html"]
["Roselin de Lichtenstein",{"$f":"StripAccent(A886)","v":"Roselin de Lichtenstein"},null,{"$f":"StripAccent(C886)","v":""},"Rhodospiza obsoleta","Desert Finch","Passériformes","Fringillidés","https://www.oiseaux.net/oiseaux/roselin.de.lichtenstein.html"]
["Roselin de Mongolie",{"$f":"StripAccent(A887)","v":"Roselin de Mongolie"},null,{"$f":"StripAccent(C887)","v":""},"Bucanetes mongolicus","Mongolian Finch","Passériformes","Fringillidés","https://www.oiseaux.net/oiseaux/roselin.de.mongolie.html"]
["Roselin familier",{"$f":"StripAccent(A888)","v":"Roselin familier"},null,{"$f":"StripAccent(C888)","v":""},"Haemorhous mexicanus","House Finch","Passériformes","Fringillidés","https://www.oiseaux.net/oiseaux/roselin.familier.html"]
["Roselin githagine",{"$f":"StripAccent(A889)","v":"Roselin githagine"},null,{"$f":"StripAccent(C889)","v":""},"Bucanetes githagineus","Trumpeter Finch","Passériformes","Fringillidés","https://www.oiseaux.net/oiseaux/roselin.githagine.html"]
["Roselin rose",{"$f":"StripAccent(A890)","v":"Roselin rose"},null,{"$f":"StripAccent(C890)","v":""},"Carpodacus roseus","Pallas's Rosefinch","Passériformes","Fringillidés","https://www.oiseaux.net/oiseaux/roselin.rose.html"]
["Roselin tacheté",{"$f":"StripAccent(A891)","v":"Roselin tachete"},null,{"$f":"StripAccent(C891)","v":""},"Carpodacus rubicilla","Great Rosefinch","Passériformes","Fringillidés","https://www.oiseaux.net/oiseaux/roselin.tachete.html"]
["Rossignol bleu",{"$f":"StripAccent(A892)","v":"Rossignol bleu"},null,{"$f":"StripAccent(C892)","v":""},"Larvivora cyane","Siberian Blue Robin","Passériformes","Muscicapidés","https://www.oiseaux.net/oiseaux/rossignol.bleu.html"]
["Rossignol calliope",{"$f":"StripAccent(A893)","v":"Rossignol calliope"},null,{"$f":"StripAccent(C893)","v":""},"Calliope calliope","Siberian Rubythroat","Passériformes","Muscicapidés","https://www.oiseaux.net/oiseaux/rossignol.calliope.html"]
["Rossignol philomèle",{"$f":"StripAccent(A894)","v":"Rossignol philomele"},null,{"$f":"StripAccent(C894)","v":""},"Luscinia megarhynchos","Common Nightingale","Passériformes","Muscicapidés","https://www.oiseaux.net/oiseaux/rossignol.philomele.html"]
["Rossignol progné",{"$f":"StripAccent(A895)","v":"Rossignol progne"},null,{"$f":"StripAccent(C895)","v":""},"Luscinia luscinia","Thrush Nightingale","Passériformes","Muscicapidés","https://www.oiseaux.net/oiseaux/rossignol.progne.html"]
["Rossignol siffleur",{"$f":"StripAccent(A896)","v":"Rossignol siffleur"},null,{"$f":"StripAccent(C896)","v":""},"Larvivora sibilans","Rufous-tailed Robin","Passériformes","Muscicapidés","https://www.oiseaux.net/oiseaux/rossignol.siffleur.html"]
["Rougegorge familier",{"$f":"StripAccent(A897)","v":"Rougegorge familier"},null,{"$f":"StripAccent(C897)","v":""},"Erithacus rubecula","European Robin","Passériformes","Muscicapidés","https://www.oiseaux.net/oiseaux/rougegorge.familier.html"]
["Rougequeue à front blanc",{"$f":"StripAccent(A898)","v":"Rougequeue a front blanc"},null,{"$f":"StripAccent(C898)","v":""},"Phoenicurus phoenicurus","Common Redstart","Passériformes","Muscicapidés","https://www.oiseaux.net/oiseaux/rougequeue.a.front.blanc.html"]
["Rougequeue aurore",{"$f":"StripAccent(A899)","v":"Rougequeue aurore"},null,{"$f":"StripAccent(C899)","v":""},"Phoenicurus auroreus","Daurian Redstart","Passériformes","Muscicapidés","https://www.oiseaux.net/oiseaux/rougequeue.aurore.html"]
["Rougequeue d'Eversmann",{"$f":"StripAccent(A900)","v":"Rougequeue d'Eversmann"},null,{"$f":"StripAccent(C900)","v":""},"Phoenicurus erythronotus","Eversmann's Redstart","Passériformes","Muscicapidés","https://www.oiseaux.net/oiseaux/rougequeue.d.eversmann.html"]
["Rougequeue de Güldenstädt",{"$f":"StripAccent(A901)","v":"Rougequeue de Guldenstadt"},null,{"$f":"StripAccent(C901)","v":""},"Phoenicurus erythrogastrus","Güldenstädt's Redstart","Passériformes","Muscicapidés","https://www.oiseaux.net/oiseaux/rougequeue.de.guldenstadt.html"]
["Rougequeue de Moussier",{"$f":"StripAccent(A902)","v":"Rougequeue de Moussier"},null,{"$f":"StripAccent(C902)","v":""},"Phoenicurus moussieri","Moussier's Redstart","Passériformes","Muscicapidés","https://www.oiseaux.net/oiseaux/rougequeue.de.moussier.html"]
["Rougequeue noir",{"$f":"StripAccent(A903)","v":"Rougequeue noir"},null,{"$f":"StripAccent(C903)","v":""},"Phoenicurus ochruros","Black Redstart","Passériformes","Muscicapidés","https://www.oiseaux.net/oiseaux/rougequeue.noir.html"]
["Rousserolle à gros bec",{"$f":"StripAccent(A904)","v":"Rousserolle a gros bec"},null,{"$f":"StripAccent(C904)","v":""},"Arundinax aedon","Thick-billed Warbler","Passériformes","Acrocephalidés","https://www.oiseaux.net/oiseaux/rousserolle.a.gros.bec.html"]
["Rousserolle des buissons",{"$f":"StripAccent(A905)","v":"Rousserolle des buissons"},null,{"$f":"StripAccent(C905)","v":""},"Acrocephalus dumetorum","Blyth's Reed Warbler","Passériformes","Acrocephalidés","https://www.oiseaux.net/oiseaux/rousserolle.des.buissons.html"]
["Rousserolle effarvatte",{"$f":"StripAccent(A906)","v":"Rousserolle effarvatte"},null,{"$f":"StripAccent(C906)","v":""},"Acrocephalus scirpaceus","Common Reed Warbler","Passériformes","Acrocephalidés","https://www.oiseaux.net/oiseaux/rousserolle.effarvatte.html"]
["Rousserolle isabelle",{"$f":"StripAccent(A907)","v":"Rousserolle isabelle"},null,{"$f":"StripAccent(C907)","v":""},"Acrocephalus agricola","Paddyfield Warbler","Passériformes","Acrocephalidés","https://www.oiseaux.net/oiseaux/rousserolle.isabelle.html"]
["Rousserolle stentor",{"$f":"StripAccent(A908)","v":"Rousserolle stentor"},null,{"$f":"StripAccent(C908)","v":""},"Acrocephalus stentoreus","Clamorous Reed Warbler","Passériformes","Acrocephalidés","https://www.oiseaux.net/oiseaux/rousserolle.stentor.html"]
["Rousserolle turdoïde",{"$f":"StripAccent(A909)","v":"Rousserolle turdoide"},null,{"$f":"StripAccent(C909)","v":""},"Acrocephalus arundinaceus","Great Reed Warbler","Passériformes","Acrocephalidés","https://www.oiseaux.net/oiseaux/rousserolle.turdoide.html"]
["Rousserolle verderolle",{"$f":"StripAccent(A910)","v":"Rousserolle verderolle"},null,{"$f":"StripAccent(C910)","v":""},"Acrocephalus palustris","Marsh Warbler","Passériformes","Acrocephalidés","https://www.oiseaux.net/oiseaux/rousserolle.verderolle.html"]
["Sarcelle à ailes bleues",{"$f":"StripAccent(A911)","v":"Sarcelle a ailes bleues"},null,{"$f":"StripAccent(C911)","v":""},"Spatula discors","Blue-winged Teal","Ansériformes","Anatidés","https://www.oiseaux.net/oiseaux/sarcelle.a.ailes.bleues.html"]
["Sarcelle à ailes vertes",{"$f":"StripAccent(A912)","v":"Sarcelle a ailes vertes"},null,{"$f":"StripAccent(C912)","v":""},"Anas carolinensis","Green-winged Teal","Ansériformes","Anatidés","https://www.oiseaux.net/oiseaux/sarcelle.a.ailes.vertes.html"]
["Sarcelle cannelle",{"$f":"StripAccent(A913)","v":"Sarcelle cannelle"},null,{"$f":"StripAccent(C913)","v":""},"Spatula cyanoptera","Cinnamon Teal","Ansériformes","Anatidés","https://www.oiseaux.net/oiseaux/sarcelle.cannelle.html"]
["Sarcelle d'été",{"$f":"StripAccent(A914)","v":"Sarcelle d'ete"},null,{"$f":"StripAccent(C914)","v":""},"Spatula querquedula","Garganey","Ansériformes","Anatidés","https://www.oiseaux.net/oiseaux/sarcelle.d.ete.html"]
["Sarcelle d'hiver",{"$f":"StripAccent(A915)","v":"Sarcelle d'hiver"},null,{"$f":"StripAccent(C915)","v":""},"Anas crecca","Eurasian Teal","Ansériformes","Anatidés","https://www.oiseaux.net/oiseaux/sarcelle.d.hiver.html"]
["Sarcelle élégante",{"$f":"StripAccent(A916)","v":"Sarcelle elegante"},null,{"$f":"StripAccent(C916)","v":""},"Sibirionetta formosa","Baikal Teal","Ansériformes","Anatidés","https://www.oiseaux.net/oiseaux/sarcelle.elegante.html"]
["Sarcelle marbrée",{"$f":"StripAccent(A917)","v":"Sarcelle marbree"},"Marmaronette marbrée",{"$f":"StripAccent(C917)","v":"Marmaronette marbree"},"Marmaronetta angustirostris","Marbled Duck","Ansériformes","Anatidés","https://www.oiseaux.net/oiseaux/sarcelle.marbree.html"]
["Serin à front rouge",{"$f":"StripAccent(A918)","v":"Serin a front rouge"},"Serin à front d'or",{"$f":"StripAccent(C918)","v":"Serin a front d'or"},"Serinus pusillus","Red-fronted Serin","Passériformes","Fringillidés","https://www.oiseaux.net/oiseaux/serin.a.front.rouge.html"]
["Serin cini",{"$f":"StripAccent(A919)","v":"Serin cini"},null,{"$f":"StripAccent(C919)","v":""},"Serinus serinus","European Serin","Passériformes","Fringillidés","https://www.oiseaux.net/oiseaux/serin.cini.html"]
["Serin des Canaries",{"$f":"StripAccent(A920)","v":"Serin des Canaries"},null,{"$f":"StripAccent(C920)","v":""},"Serinus canaria","Atlantic Canary","Passériformes","Fringillidés","https://www.oiseaux.net/oiseaux/serin.des.canaries.html"]
["Serin du Cap",{"$f":"StripAccent(A921)","v":"Serin du Cap"},null,{"$f":"StripAccent(C921)","v":""},"Serinus canicollis","Cape Canary","Passériformes","Fringillidés","https://www.oiseaux.net/oiseaux/serin.du.cap.html"]
["Sirli de Dupont",{"$f":"StripAccent(A922)","v":"Sirli de Dupont"},"Alouette de Dupont",{"$f":"StripAccent(C922)","v":"Alouette de Dupont"},"Chersophilus duponti","Dupont's Lark","Passériformes","Alaudidés","https://www.oiseaux.net/oiseaux/sirli.de.dupont.html"]
["Sirli du désert",{"$f":"StripAccent(A923)","v":"Sirli du desert"},null,{"$f":"StripAccent(C923)","v":""},"Alaemon alaudipes","Greater Hoopoe-Lark","Passériformes","Alaudidés","https://www.oiseaux.net/oiseaux/sirli.du.desert.html"]
["Sittelle à poitrine rousse",{"$f":"StripAccent(A924)","v":"Sittelle a poitrine rousse"},null,{"$f":"StripAccent(C924)","v":""},"Sitta canadensis","Red-breasted Nuthatch","Passériformes","Sittidés","https://www.oiseaux.net/oiseaux/sittelle.a.poitrine.rousse.html"]
["Sittelle corse",{"$f":"StripAccent(A925)","v":"Sittelle corse"},null,{"$f":"StripAccent(C925)","v":""},"Sitta whiteheadi","Corsican Nuthatch","Passériformes","Sittidés","https://www.oiseaux.net/oiseaux/sittelle.corse.html"]
["Sittelle de Krüper",{"$f":"StripAccent(A926)","v":"Sittelle de Kruper"},null,{"$f":"StripAccent(C926)","v":""},"Sitta krueperi","Krüper's Nuthatch","Passériformes","Sittidés","https://www.oiseaux.net/oiseaux/sittelle.de.kruper.html"]
["Sittelle de Neumayer",{"$f":"StripAccent(A927)","v":"Sittelle de Neumayer"},null,{"$f":"StripAccent(C927)","v":""},"Sitta neumayer","Western Rock Nuthatch","Passériformes","Sittidés","https://www.oiseaux.net/oiseaux/sittelle.de.neumayer.html"]
["Sittelle torchepot",{"$f":"StripAccent(A928)","v":"Sittelle torchepot"},null,{"$f":"StripAccent(C928)","v":""},"Sitta europaea","Eurasian Nuthatch","Passériformes","Sittidés","https://www.oiseaux.net/oiseaux/sittelle.torchepot.html"]
["Sizerin blanchâtre",{"$f":"StripAccent(A929)","v":"Sizerin blanchatre"},null,{"$f":"StripAccent(C929)","v":""},"Acanthis hornemanni","Arctic Redpoll","Passériformes","Fringillidés","https://www.oiseaux.net/oiseaux/sizerin.blanchatre.html"]
["Sizerin cabaret",{"$f":"StripAccent(A930)","v":"Sizerin cabaret"},null,{"$f":"StripAccent(C930)","v":""},"Acanthis cabaret","Lesser Redpoll","Passériformes","Fringillidés","https://www.oiseaux.net/oiseaux/sizerin.cabaret.html"]
["Sizerin flammé",{"$f":"StripAccent(A931)","v":"Sizerin flamme"},null,{"$f":"StripAccent(C931)","v":""},"Acanthis flammea","Common Redpoll","Passériformes","Fringillidés","https://www.oiseaux.net/oiseaux/sizerin.flamme.html"]
["Spatule blanche",{"$f":"StripAccent(A932)","v":"Spatule blanche"},null,{"$f":"StripAccent(C932)","v":""},"Platalea leucorodia","Eurasian Spoonbill","Pélécaniformes","Threskiornithidés","https://www.oiseaux.net/oiseaux/spatule.blanche.html"]
["Spatule d'Afrique",{"$f":"StripAccent(A933)","v":"Spatule d'Afrique"},null,{"$f":"StripAccent(C933)","v":""},"Platalea alba","African Spoonbill","Pélécaniformes","Threskiornithidés","https://www.oiseaux.net/oiseaux/spatule.d.afrique.html"]
["Starique cristatelle",{"$f":"StripAccent(A934)","v":"Starique cristatelle"},null,{"$f":"StripAccent(C934)","v":""},"Aethia cristatella","Crested Auklet","Charadriiformes","Alcidés","https://www.oiseaux.net/oiseaux/starique.cristatelle.html"]
["Starique perroquet",{"$f":"StripAccent(A935)","v":"Starique perroquet"},null,{"$f":"StripAccent(C935)","v":""},"Aethia psittacula","Parakeet Auklet","Charadriiformes","Alcidés","https://www.oiseaux.net/oiseaux/starique.perroquet.html"]
["Sterne à dos pâle",{"$f":"StripAccent(A936)","v":"Sterne a dos pale"},"Sterne royale (Afrique)",{"$f":"StripAccent(C936)","v":"Sterne royale (Afrique)"},"Thalasseus albididorsalis","West African Crested Tern","Charadriiformes","Laridés","https://www.oiseaux.net/oiseaux/sterne.a.dos.pale.html"]
["Sterne à joues blanches",{"$f":"StripAccent(A937)","v":"Sterne a joues blanches"},null,{"$f":"StripAccent(C937)","v":""},"Sterna repressa","White-cheeked Tern","Charadriiformes","Laridés","https://www.oiseaux.net/oiseaux/sterne.a.joues.blanches.html"]
["Sterne arctique",{"$f":"StripAccent(A938)","v":"Sterne arctique"},null,{"$f":"StripAccent(C938)","v":""},"Sterna paradisaea","Arctic Tern","Charadriiformes","Laridés","https://www.oiseaux.net/oiseaux/sterne.arctique.html"]
["Sterne bridée",{"$f":"StripAccent(A939)","v":"Sterne bridee"},null,{"$f":"StripAccent(C939)","v":""},"Onychoprion anaethetus","Bridled Tern","Charadriiformes","Laridés","https://www.oiseaux.net/oiseaux/sterne.bridee.html"]
["Sterne caspienne",{"$f":"StripAccent(A940)","v":"Sterne caspienne"},null,{"$f":"StripAccent(C940)","v":""},"Hydroprogne caspia","Caspian Tern","Charadriiformes","Laridés","https://www.oiseaux.net/oiseaux/sterne.caspienne.html"]
["Sterne caugek",{"$f":"StripAccent(A941)","v":"Sterne caugek"},null,{"$f":"StripAccent(C941)","v":""},"Thalasseus sandvicensis","Sandwich Tern","Charadriiformes","Laridés","https://www.oiseaux.net/oiseaux/sterne.caugek.html"]
["Sterne de Cabot",{"$f":"StripAccent(A942)","v":"Sterne de Cabot"},null,{"$f":"StripAccent(C942)","v":""},"Thalasseus acuflavidus","Cabot's Tern","Charadriiformes","Laridés","https://www.oiseaux.net/oiseaux/sterne.de.cabot.html"]
["Sterne de Dougall",{"$f":"StripAccent(A943)","v":"Sterne de Dougall"},null,{"$f":"StripAccent(C943)","v":""},"Sterna dougallii","Roseate Tern","Charadriiformes","Laridés","https://www.oiseaux.net/oiseaux/sterne.de.dougall.html"]
["Sterne de Forster",{"$f":"StripAccent(A944)","v":"Sterne de Forster"},null,{"$f":"StripAccent(C944)","v":""},"Sterna forsteri","Forster's Tern","Charadriiformes","Laridés","https://www.oiseaux.net/oiseaux/sterne.de.forster.html"]
["Sterne de Saunders",{"$f":"StripAccent(A945)","v":"Sterne de Saunders"},null,{"$f":"StripAccent(C945)","v":""},"Sternula saundersi","Saunders's Tern","Charadriiformes","Laridés","https://www.oiseaux.net/oiseaux/sterne.de.saunders.html"]
["Sterne des Aléoutiennes",{"$f":"StripAccent(A946)","v":"Sterne des Aleoutiennes"},null,{"$f":"StripAccent(C946)","v":""},"Onychoprion aleuticus","Aleutian Tern","Charadriiformes","Laridés","https://www.oiseaux.net/oiseaux/sterne.des.aleoutiennes.html"]
["Sterne élégante",{"$f":"StripAccent(A947)","v":"Sterne elegante"},null,{"$f":"StripAccent(C947)","v":""},"Thalasseus elegans","Elegant Tern","Charadriiformes","Laridés","https://www.oiseaux.net/oiseaux/sterne.elegante.html"]
["Sterne fuligineuse",{"$f":"StripAccent(A948)","v":"Sterne fuligineuse"},null,{"$f":"StripAccent(C948)","v":""},"Onychoprion fuscatus","Sooty Tern","Charadriiformes","Laridés","https://www.oiseaux.net/oiseaux/sterne.fuligineuse.html"]
["Sterne hansel",{"$f":"StripAccent(A949)","v":"Sterne hansel"},null,{"$f":"StripAccent(C949)","v":""},"Gelochelidon nilotica","Gull-billed Tern","Charadriiformes","Laridés","https://www.oiseaux.net/oiseaux/sterne.hansel.html"]
["Sterne naine",{"$f":"StripAccent(A950)","v":"Sterne naine"},null,{"$f":"StripAccent(C950)","v":""},"Sternula albifrons","Little Tern","Charadriiformes","Laridés","https://www.oiseaux.net/oiseaux/sterne.naine.html"]
["Sterne pierregarin",{"$f":"StripAccent(A951)","v":"Sterne pierregarin"},null,{"$f":"StripAccent(C951)","v":""},"Sterna hirundo","Common Tern","Charadriiformes","Laridés","https://www.oiseaux.net/oiseaux/sterne.pierregarin.html"]
["Sterne royale",{"$f":"StripAccent(A952)","v":"Sterne royale"},null,{"$f":"StripAccent(C952)","v":""},"Thalasseus maximus","Royal Tern","Charadriiformes","Laridés","https://www.oiseaux.net/oiseaux/sterne.royale.html"]
["Sterne voyageuse",{"$f":"StripAccent(A953)","v":"Sterne voyageuse"},null,{"$f":"StripAccent(C953)","v":""},"Thalasseus bengalensis","Lesser Crested Tern","Charadriiformes","Laridés","https://www.oiseaux.net/oiseaux/sterne.voyageuse.html"]
["Syrrhapte paradoxal",{"$f":"StripAccent(A954)","v":"Syrrhapte paradoxal"},null,{"$f":"StripAccent(C954)","v":""},"Syrrhaptes paradoxus","Pallas's Sandgrouse","Pterocliformes","Pteroclidés","https://www.oiseaux.net/oiseaux/syrrhapte.paradoxal.html"]
["Tadorne à tête grise",{"$f":"StripAccent(A955)","v":"Tadorne a tete grise"},null,{"$f":"StripAccent(C955)","v":""},"Tadorna cana","South African Shelduck","Pterocliformes","Pteroclidés","https://www.oiseaux.net/oiseaux/tadorne.a.tete.grise.html"]
["Tadorne casarca",{"$f":"StripAccent(A956)","v":"Tadorne casarca"},null,{"$f":"StripAccent(C956)","v":""},"Tadorna ferruginea","Ruddy Shelduck","Ansériformes","Anatidés","https://www.oiseaux.net/oiseaux/tadorne.casarca.html"]
["Tadorne de Belon",{"$f":"StripAccent(A957)","v":"Tadorne de Belon"},null,{"$f":"StripAccent(C957)","v":""},"Tadorna tadorna","Common Shelduck","Ansériformes","Anatidés","https://www.oiseaux.net/oiseaux/tadorne.de.belon.html"]
["Tadorne radjah",{"$f":"StripAccent(A958)","v":"Tadorne radjah"},null,{"$f":"StripAccent(C958)","v":""},"Radjah radjah","Radjah Shelduck","Ansériformes","Anatidés","https://www.oiseaux.net/oiseaux/tadorne.radjah.html"]
["Talève à tête grise",{"$f":"StripAccent(A959)","v":"Taleve a tete grise"},null,{"$f":"StripAccent(C959)","v":""},"Porphyrio poliocephalus","Grey-headed Swamphen","Gruiformes","Rallidés","https://www.oiseaux.net/oiseaux/taleve.a.tete.grise.html"]
["Talève d'Afrique",{"$f":"StripAccent(A960)","v":"Taleve d'Afrique"},null,{"$f":"StripAccent(C960)","v":""},"Porphyrio madagascariensis","African Swamphen","Gruiformes","Rallidés","https://www.oiseaux.net/oiseaux/taleve.d.afrique.html"]
["Talève d'Allen",{"$f":"StripAccent(A961)","v":"Taleve d'Allen"},null,{"$f":"StripAccent(C961)","v":""},"Porphyrio alleni","Allen's Gallinule","Gruiformes","Rallidés","https://www.oiseaux.net/oiseaux/taleve.d.allen.html"]
["Talève sultane",{"$f":"StripAccent(A962)","v":"Taleve sultane"},null,{"$f":"StripAccent(C962)","v":""},"Porphyrio porphyrio","Western Swamphen","Gruiformes","Rallidés","https://www.oiseaux.net/oiseaux/taleve.sultane.html"]
["Talève violacée",{"$f":"StripAccent(A963)","v":"Taleve violacee"},null,{"$f":"StripAccent(C963)","v":""},"Porphyrio martinica","Purple Gallinule","Gruiformes","Rallidés","https://www.oiseaux.net/oiseaux/taleve.violacee.html"]
["Tangara écarlate",{"$f":"StripAccent(A964)","v":"Tangara ecarlate"},"Piranga écarlate",{"$f":"StripAccent(C964)","v":"Piranga ecarlate"},"Piranga olivacea","Scarlet Tanager","Passériformes","Cardinalidés","https://www.oiseaux.net/oiseaux/tangara.ecarlate.html"]
["Tangara vermillon",{"$f":"StripAccent(A965)","v":"Tangara vermillon"},"Piranga vermillon",{"$f":"StripAccent(C965)","v":"Piranga vermillon"},"Piranga rubra","Summer Tanager","Passériformes","Cardinalidés","https://www.oiseaux.net/oiseaux/tangara.vermillon.html"]
["Tantale ibis",{"$f":"StripAccent(A966)","v":"Tantale ibis"},null,{"$f":"StripAccent(C966)","v":""},"Mycteria ibis","Yellow-billed Stork","Ciconiiformes","Ciconiidés","https://www.oiseaux.net/oiseaux/tantale.ibis.html"]
["Tarier africain",{"$f":"StripAccent(A967)","v":"Tarier africain"},"Tarier d'Afrique",{"$f":"StripAccent(C967)","v":"Tarier d'Afrique"},"Saxicola torquatus","African Stonechat","Passériformes","Muscicapidés","https://www.oiseaux.net/oiseaux/tarier.africain.html"]
["Tarier de Sibérie",{"$f":"StripAccent(A968)","v":"Tarier de Siberie"},null,{"$f":"StripAccent(C968)","v":""},"Saxicola maurus","Siberian Stonechat","Passériformes","Muscicapidés","https://www.oiseaux.net/oiseaux/tarier.de.siberie.html"]
["Tarier de Stejneger",{"$f":"StripAccent(A969)","v":"Tarier de Stejneger"},null,{"$f":"StripAccent(C969)","v":""},"Saxicola stejnegeri","Amur Stonechat","Passériformes","Muscicapidés","https://www.oiseaux.net/oiseaux/tarier.de.stejneger.html"]
["Tarier des Canaries",{"$f":"StripAccent(A970)","v":"Tarier des Canaries"},null,{"$f":"StripAccent(C970)","v":""},"Saxicola dacotiae","Canary Islands Stonechat","Passériformes","Muscicapidés","https://www.oiseaux.net/oiseaux/tarier.des.canaries.html"]
["Tarier des prés",{"$f":"StripAccent(A971)","v":"Tarier des pres"},null,{"$f":"StripAccent(C971)","v":""},"Saxicola rubetra","Whinchat","Passériformes","Muscicapidés","https://www.oiseaux.net/oiseaux/tarier.des.pres.html"]
["Tarier pâtre",{"$f":"StripAccent(A972)","v":"Tarier patre"},null,{"$f":"StripAccent(C972)","v":""},"Saxicola rubicola","European Stonechat","Passériformes","Muscicapidés","https://www.oiseaux.net/oiseaux/tarier.patre.html"]
["Tarier pie",{"$f":"StripAccent(A973)","v":"Tarier pie"},null,{"$f":"StripAccent(C973)","v":""},"Saxicola caprata","Pied Bush Chat","Passériformes","Muscicapidés","https://www.oiseaux.net/oiseaux/tarier.pie.html"]
["Tarin des aulnes",{"$f":"StripAccent(A974)","v":"Tarin des aulnes"},null,{"$f":"StripAccent(C974)","v":""},"Spinus spinus","Eurasian Siskin","Passériformes","Muscicapidés","https://www.oiseaux.net/oiseaux/tarin.des.aulnes.html"]
["Tarin des pins",{"$f":"StripAccent(A975)","v":"Tarin des pins"},null,{"$f":"StripAccent(C975)","v":""},"Spinus pinus","Pine Siskin","Passériformes","Muscicapidés","https://www.oiseaux.net/oiseaux/tarin.des.pins.html"]
["Tchagra à tête noire",{"$f":"StripAccent(A976)","v":"Tchagra a tete noire"},null,{"$f":"StripAccent(C976)","v":""},"Tchagra senegalus","Black-crowned Tchagra","Passériformes","Malaconotidés","https://www.oiseaux.net/oiseaux/tchagra.a.tete.noire.html"]
["Tétras lyre",{"$f":"StripAccent(A977)","v":"Tetras lyre"},null,{"$f":"StripAccent(C977)","v":""},"Lyrurus tetrix","Black Grouse","Galliformes","Phasianidés","https://www.oiseaux.net/oiseaux/tetras.lyre.html"]
["Tichodrome échelette",{"$f":"StripAccent(A978)","v":"Tichodrome echelette"},null,{"$f":"StripAccent(C978)","v":""},"Tichodroma muraria","Wallcreeper","Passériformes","Tichodromidés","https://www.oiseaux.net/oiseaux/tichodrome.echelette.html"]
["Tisserin à tête noire",{"$f":"StripAccent(A979)","v":"Tisserin a tete noire"},null,{"$f":"StripAccent(C979)","v":""},"Ploceus melanocephalus","Black-headed Weaver","Passériformes","Plocéidés","https://www.oiseaux.net/oiseaux/tisserin.a.tete.noire.html"]
["Tisserin gendarme",{"$f":"StripAccent(A980)","v":"Tisserin gendarme"},null,{"$f":"StripAccent(C980)","v":""},"Ploceus cucullatus","Village Weaver","Passériformes","Plocéidés","https://www.oiseaux.net/oiseaux/tisserin.gendarme.html"]
["Tohi à flancs roux",{"$f":"StripAccent(A981)","v":"Tohi a flancs roux"},null,{"$f":"StripAccent(C981)","v":""},"Pipilo erythrophthalmus","Eastern Towhee","Passériformes","Passerellidés","https://www.oiseaux.net/oiseaux/tohi.a.flancs.roux.html"]
["Torcol fourmilier",{"$f":"StripAccent(A982)","v":"Torcol fourmilier"},null,{"$f":"StripAccent(C982)","v":""},"Jynx torquilla","Eurasian Wryneck","Piciformes","Picidés","https://www.oiseaux.net/oiseaux/torcol.fourmilier.html"]
["Torrentaire à calotte blanche",{"$f":"StripAccent(A983)","v":"Torrentaire a calotte blanche"},"Rougequeue à calotte blanche",{"$f":"StripAccent(C983)","v":"Rougequeue a calotte blanche"},"Phoenicurus leucocephalus","White-capped Redstart","Passériformes","Muscicapidés","https://www.oiseaux.net/oiseaux/torrentaire.a.calotte.blanche.html"]
["Tournepierre à collier",{"$f":"StripAccent(A984)","v":"Tournepierre a collier"},null,{"$f":"StripAccent(C984)","v":""},"Arenaria interpres","Ruddy Turnstone","Charadriiformes","Scolopacidés","https://www.oiseaux.net/oiseaux/tournepierre.a.collier.html"]
["Tourte voyageuse",{"$f":"StripAccent(A985)","v":"Tourte voyageuse"},null,{"$f":"StripAccent(C985)","v":""},"Ectopistes migratorius","Passenger Pigeon","Columbiformes","Columbidés","https://www.oiseaux.net/oiseaux/tourte.voyageuse.html"]
["Tourterelle à queue carrée",{"$f":"StripAccent(A986)","v":"Tourterelle a queue carree"},null,{"$f":"StripAccent(C986)","v":""},"Zenaida aurita","Zenaida Dove","Columbiformes","Columbidés","https://www.oiseaux.net/oiseaux/tourterelle.a.queue.carree.html"]
["Tourterelle des bois",{"$f":"StripAccent(A987)","v":"Tourterelle des bois"},null,{"$f":"StripAccent(C987)","v":""},"Streptopelia turtur","European Turtle Dove","Columbiformes","Columbidés","https://www.oiseaux.net/oiseaux/tourterelle.des.bois.html"]
["Tourterelle maillée",{"$f":"StripAccent(A988)","v":"Tourterelle maillee"},null,{"$f":"StripAccent(C988)","v":""},"Spilopelia senegalensis","Laughing Dove","Columbiformes","Columbidés","https://www.oiseaux.net/oiseaux/tourterelle.maillee.html"]
["Tourterelle masquée",{"$f":"StripAccent(A989)","v":"Tourterelle masquee"},"Tourtelette masquée",{"$f":"StripAccent(C989)","v":"Tourtelette masquee"},"Oena capensis","Namaqua Dove","Columbiformes","Columbidés","https://www.oiseaux.net/oiseaux/tourterelle.masquee.html"]
["Tourterelle orientale",{"$f":"StripAccent(A990)","v":"Tourterelle orientale"},null,{"$f":"StripAccent(C990)","v":""},"Streptopelia orientalis","Oriental Turtle Dove","Columbiformes","Columbidés","https://www.oiseaux.net/oiseaux/tourterelle.orientale.html"]
["Tourterelle rieuse",{"$f":"StripAccent(A991)","v":"Tourterelle rieuse"},null,{"$f":"StripAccent(C991)","v":""},"Streptopelia roseogrisea","African Collared Dove","Columbiformes","Columbidés","https://www.oiseaux.net/oiseaux/tourterelle.rieuse.html"]
["Tourterelle triste",{"$f":"StripAccent(A992)","v":"Tourterelle triste"},null,{"$f":"StripAccent(C992)","v":""},"Zenaida macroura","Mourning Dove","Columbiformes","Columbidés","https://www.oiseaux.net/oiseaux/tourterelle.triste.html"]
["Tourterelle turque",{"$f":"StripAccent(A993)","v":"Tourterelle turque"},null,{"$f":"StripAccent(C993)","v":""},"Streptopelia decaocto","Eurasian Collared Dove","Columbiformes","Columbidés","https://www.oiseaux.net/oiseaux/tourterelle.turque.html"]
["Traquet à capuchon",{"$f":"StripAccent(A994)","v":"Traquet a capuchon"},null,{"$f":"StripAccent(C994)","v":""},"Oenanthe monacha","Hooded Wheatear","Passériformes","Muscicapidés","https://www.oiseaux.net/oiseaux/traquet.a.capuchon.html"]
["Traquet à tête blanche",{"$f":"StripAccent(A995)","v":"Traquet a tete blanche"},null,{"$f":"StripAccent(C995)","v":""},"Oenanthe leucopyga","White-crowned Wheatear","Passériformes","Muscicapidés","https://www.oiseaux.net/oiseaux/traquet.a.tete.blanche.html"]
["Traquet à tête grise",{"$f":"StripAccent(A996)","v":"Traquet a tete grise"},null,{"$f":"StripAccent(C996)","v":""},"Oenanthe moesta","Red-rumped Wheatear","Passériformes","Muscicapidés","https://www.oiseaux.net/oiseaux/traquet.a.tete.grise.html"]
["Traquet de Chypre",{"$f":"StripAccent(A997)","v":"Traquet de Chypre"},null,{"$f":"StripAccent(C997)","v":""},"Oenanthe cypriaca","Cyprus Wheatear","Passériformes","Muscicapidés","https://www.oiseaux.net/oiseaux/traquet.de.chypre.html"]
["Traquet de Finsch",{"$f":"StripAccent(A998)","v":"Traquet de Finsch"},null,{"$f":"StripAccent(C998)","v":""},"Oenanthe finschii","Finsch's Wheatear","Passériformes","Muscicapidés","https://www.oiseaux.net/oiseaux/traquet.de.finsch.html"]
["Traquet de Seebohm",{"$f":"StripAccent(A999)","v":"Traquet de Seebohm"},null,{"$f":"StripAccent(C999)","v":""},"Oenanthe seebohmi","Atlas Wheatear","Passériformes","Muscicapidés","https://www.oiseaux.net/oiseaux/traquet.de.seebohm.html"]
["Traquet deuil",{"$f":"StripAccent(A1000)","v":"Traquet deuil"},null,{"$f":"StripAccent(C1000)","v":""},"Oenanthe lugens","Mourning Wheatear","Passériformes","Muscicapidés","https://www.oiseaux.net/oiseaux/traquet.deuil.html"]
["Traquet du désert",{"$f":"StripAccent(A1001)","v":"Traquet du desert"},null,{"$f":"StripAccent(C1001)","v":""},"Oenanthe deserti","Desert Wheatear","Passériformes","Muscicapidés","https://www.oiseaux.net/oiseaux/traquet.du.desert.html"]
["Traquet isabelle",{"$f":"StripAccent(A1002)","v":"Traquet isabelle"},null,{"$f":"StripAccent(C1002)","v":""},"Oenanthe isabellina","Isabelline Wheatear","Passériformes","Muscicapidés","https://www.oiseaux.net/oiseaux/traquet.isabelle.html"]
["Traquet kurde",{"$f":"StripAccent(A1003)","v":"Traquet kurde"},null,{"$f":"StripAccent(C1003)","v":""},"Oenanthe xanthoprymna","Kurdish Wheatear","Passériformes","Muscicapidés","https://www.oiseaux.net/oiseaux/traquet.kurde.html"]
["Traquet motteux",{"$f":"StripAccent(A1004)","v":"Traquet motteux"},null,{"$f":"StripAccent(C1004)","v":""},"Oenanthe oenanthe","Northern Wheatear","Passériformes","Muscicapidés","https://www.oiseaux.net/oiseaux/traquet.motteux.html"]
["Traquet noir et blanc",{"$f":"StripAccent(A1005)","v":"Traquet noir et blanc"},null,{"$f":"StripAccent(C1005)","v":""},"Oenanthe melanoleuca","Eastern Black-eared Wheatear","Passériformes","Muscicapidés","https://www.oiseaux.net/oiseaux/traquet.noir.et.blanc.html"]
["Traquet oreillard",{"$f":"StripAccent(A1006)","v":"Traquet oreillard"},null,{"$f":"StripAccent(C1006)","v":""},"Oenanthe hispanica","Western Black-eared Wheatear","Passériformes","Muscicapidés","https://www.oiseaux.net/oiseaux/traquet.oreillard.html"]
["Traquet pie",{"$f":"StripAccent(A1007)","v":"Traquet pie"},null,{"$f":"StripAccent(C1007)","v":""},"Oenanthe pleschanka","Pied Wheatear","Passériformes","Muscicapidés","https://www.oiseaux.net/oiseaux/traquet.pie.html"]
["Traquet rieur",{"$f":"StripAccent(A1008)","v":"Traquet rieur"},null,{"$f":"StripAccent(C1008)","v":""},"Oenanthe leucura","Black Wheatear","Passériformes","Muscicapidés","https://www.oiseaux.net/oiseaux/traquet.rieur.html"]
["Traquet variable",{"$f":"StripAccent(A1009)","v":"Traquet variable"},null,{"$f":"StripAccent(C1009)","v":""},"Oenanthe picata","Variable Wheatear","Passériformes","Muscicapidés","https://www.oiseaux.net/oiseaux/traquet.variable.html"]
["Troglodyte des marais",{"$f":"StripAccent(A1010)","v":"Troglodyte des marais"},null,{"$f":"StripAccent(C1010)","v":""},"Cistothorus palustris","Marsh Wren","Passériformes","Troglodytidés","https://www.oiseaux.net/oiseaux/troglodyte.des.marais.html"]
["Troglodyte mignon",{"$f":"StripAccent(A1011)","v":"Troglodyte mignon"},null,{"$f":"StripAccent(C1011)","v":""},"Troglodytes troglodytes","Eurasian Wren","Passériformes","Troglodytidés","https://www.oiseaux.net/oiseaux/troglodyte.mignon.html"]
["Turnix mugissant",{"$f":"StripAccent(A1012)","v":"Turnix mugissant"},"Turnix d'Andalousie",{"$f":"StripAccent(C1012)","v":"Turnix d'Andalousie"},"Turnix sylvaticus","Common Buttonquail","Charadriiformes","Turnicidés","https://www.oiseaux.net/oiseaux/turnix.mugissant.html"]
["Tyran de l'Ouest",{"$f":"StripAccent(A1013)","v":"Tyran de l'Ouest"},null,{"$f":"StripAccent(C1013)","v":""},"Tyrannus verticalis","Western Kingbird","Passériformes","Tyrannidés","https://www.oiseaux.net/oiseaux/tyran.de.l.ouest.html"]
["Tyran des savanes",{"$f":"StripAccent(A1014)","v":"Tyran des savanes"},null,{"$f":"StripAccent(C1014)","v":""},"Tyrannus savana","Fork-tailed Flycatcher","Passériformes","Tyrannidés","https://www.oiseaux.net/oiseaux/tyran.des.savanes.html"]
["Tyran tritri",{"$f":"StripAccent(A1015)","v":"Tyran tritri"},null,{"$f":"StripAccent(C1015)","v":""},"Tyrannus tyrannus","Eastern Kingbird","Passériformes","Tyrannidés","https://www.oiseaux.net/oiseaux/tyran.tritri.html"]
["Vacher à tête brune",{"$f":"StripAccent(A1016)","v":"Vacher a tete brune"},null,{"$f":"StripAccent(C1016)","v":""},"Molothrus ater","Brown-headed Cowbird","Passériformes","Ictéridés","https://www.oiseaux.net/oiseaux/vacher.a.tete.brune.html"]
["Vanneau à queue blanche",{"$f":"StripAccent(A1017)","v":"Vanneau a queue blanche"},null,{"$f":"StripAccent(C1017)","v":""},"Vanellus leucurus","White-tailed Lapwing","Charadriiformes","Charadriidés","https://www.oiseaux.net/oiseaux/vanneau.a.queue.blanche.html"]
["Vanneau à tête grise",{"$f":"StripAccent(A1018)","v":"Vanneau a tete grise"},null,{"$f":"StripAccent(C1018)","v":""},"Vanellus cinereus","Grey-headed Lapwing","Charadriiformes","Charadriidés","https://www.oiseaux.net/oiseaux/vanneau.a.tete.grise.html"]
["Vanneau armé",{"$f":"StripAccent(A1019)","v":"Vanneau arme"},null,{"$f":"StripAccent(C1019)","v":""},"Vanellus armatus","Blacksmith Lapwing","Charadriiformes","Charadriidés","https://www.oiseaux.net/oiseaux/vanneau.arme.html"]
["Vanneau éperonné",{"$f":"StripAccent(A1020)","v":"Vanneau eperonne"},"Vanneau à éperons",{"$f":"StripAccent(C1020)","v":"Vanneau a eperons"},"Vanellus spinosus","Spur-winged Lapwing","Charadriiformes","Charadriidés","https://www.oiseaux.net/oiseaux/vanneau.eperonne.html"]
["Vanneau huppé",{"$f":"StripAccent(A1021)","v":"Vanneau huppe"},null,{"$f":"StripAccent(C1021)","v":""},"Vanellus vanellus","Northern Lapwing","Charadriiformes","Charadriidés","https://www.oiseaux.net/oiseaux/vanneau.huppe.html"]
["Vanneau indien",{"$f":"StripAccent(A1022)","v":"Vanneau indien"},null,{"$f":"StripAccent(C1022)","v":""},"Vanellus indicus","Red-wattled Lapwing","Charadriiformes","Charadriidés","https://www.oiseaux.net/oiseaux/vanneau.indien.html"]
["Vanneau sociable",{"$f":"StripAccent(A1023)","v":"Vanneau sociable"},null,{"$f":"StripAccent(C1023)","v":""},"Vanellus gregarius","Sociable Lapwing","Charadriiformes","Charadriidés","https://www.oiseaux.net/oiseaux/vanneau.sociable.html"]
["Vautour africain",{"$f":"StripAccent(A1024)","v":"Vautour africain"},null,{"$f":"StripAccent(C1024)","v":""},"Gyps africanus","White-backed Vulture","Accipitriformes","Accipitridés","https://www.oiseaux.net/oiseaux/vautour.africain.html"]
["Vautour charognard",{"$f":"StripAccent(A1025)","v":"Vautour charognard"},null,{"$f":"StripAccent(C1025)","v":""},"Necrosyrtes monachus","Hooded Vulture","Accipitriformes","Accipitridés","https://www.oiseaux.net/oiseaux/vautour.charognard.html"]
["Vautour de Rüppell",{"$f":"StripAccent(A1026)","v":"Vautour de Ruppell"},null,{"$f":"StripAccent(C1026)","v":""},"Gyps rueppelli","Rüppell's Vulture","Accipitriformes","Accipitridés","https://www.oiseaux.net/oiseaux/vautour.de.ruppell.html"]
["Vautour fauve",{"$f":"StripAccent(A1027)","v":"Vautour fauve"},null,{"$f":"StripAccent(C1027)","v":""},"Gyps fulvus","Griffon Vulture","Accipitriformes","Accipitridés","https://www.oiseaux.net/oiseaux/vautour.fauve.html"]
["Vautour moine",{"$f":"StripAccent(A1028)","v":"Vautour moine"},null,{"$f":"StripAccent(C1028)","v":""},"Aegypius monachus","Cinereous Vulture","Accipitriformes","Accipitridés","https://www.oiseaux.net/oiseaux/vautour.moine.html"]
["Vautour oricou",{"$f":"StripAccent(A1029)","v":"Vautour oricou"},null,{"$f":"StripAccent(C1029)","v":""},"Torgos tracheliotos","Lappet-faced Vulture","Accipitriformes","Accipitridés","https://www.oiseaux.net/oiseaux/vautour.oricou.html"]
["Venturon corse",{"$f":"StripAccent(A1030)","v":"Venturon corse"},null,{"$f":"StripAccent(C1030)","v":""},"Carduelis corsicana","Corsican Finch","Passériformes","Fringillidés","https://www.oiseaux.net/oiseaux/venturon.corse.html"]
["Venturon montagnard",{"$f":"StripAccent(A1031)","v":"Venturon montagnard"},null,{"$f":"StripAccent(C1031)","v":""},"Carduelis citrinella","Citril Finch","Passériformes","Fringillidés","https://www.oiseaux.net/oiseaux/venturon.montagnard.html"]
["Verdier d'Europe",{"$f":"StripAccent(A1032)","v":"Verdier d'Europe"},null,{"$f":"StripAccent(C1032)","v":""},"Chloris chloris","European Greenfinch","Passériformes","Fringillidés","https://www.oiseaux.net/oiseaux/verdier.d.europe.html"]
["Verdier de Chine",{"$f":"StripAccent(A1033)","v":"Verdier de Chine"},null,{"$f":"StripAccent(C1033)","v":""},"Chloris sinica","Grey-capped Greenfinch","Passériformes","Fringillidés","https://www.oiseaux.net/oiseaux/verdier.de.chine.html"]
["Viréo à gorge jaune",{"$f":"StripAccent(A1034)","v":"Vireo a gorge jaune"},null,{"$f":"StripAccent(C1034)","v":""},"Vireo flavifrons","Yellow-throated Vireo","Passériformes","Viréonidés","https://www.oiseaux.net/oiseaux/vireo.a.gorge.jaune.html"]
["Viréo à oeil rouge",{"$f":"StripAccent(A1035)","v":"Vireo a oeil rouge"},"Viréo aux yeux rouges",{"$f":"StripAccent(C1035)","v":"Vireo aux yeux rouges"},"Vireo olivaceus","Red-eyed Vireo","Passériformes","Viréonidés","https://www.oiseaux.net/oiseaux/vireo.a.oeil.rouge.html"]
["Viréo à tête bleue",{"$f":"StripAccent(A1036)","v":"Vireo a tete bleue"},null,{"$f":"StripAccent(C1036)","v":""},"Vireo solitarius","Blue-headed Vireo","Passériformes","Viréonidés","https://www.oiseaux.net/oiseaux/vireo.a.tete.bleue.html"]
["Viréo aux yeux blancs",{"$f":"StripAccent(A1037)","v":"Vireo aux yeux blancs"},null,{"$f":"StripAccent(C1037)","v":""},"Vireo griseus","White-eyed Vireo","Passériformes","Viréonidés","https://www.oiseaux.net/oiseaux/vireo.aux.yeux.blancs.html"]
["Viréo de Philadelphie",{"$f":"StripAccent(A1038)","v":"Vireo de Philadelphie"},null,{"$f":"StripAccent(C1038)","v":""},"Vireo philadelphicus","Philadelphia Vireo","Passériformes","Viréonidés","https://www.oiseaux.net/oiseaux/vireo.de.philadelphie.html"]
["Viréo mélodieux",{"$f":"StripAccent(A1039)","v":"Vireo melodieux"},null,{"$f":"StripAccent(C1039)","v":""},"Vireo gilvus","Warbling Vireo","Passériformes","Viréonidés","https://www.oiseaux.net/oiseaux/vireo.melodieux.html"]
["Zostérops à flancs marron",{"$f":"StripAccent(A1040)","v":"Zosterops a flancs marron"},null,{"$f":"StripAccent(C1040)","v":""},"Zosterops erythropleurus","Chestnut-flanked White-eye","Passériformes","Zostéropidés","https://www.oiseaux.net/oiseaux/zosterops.a.flancs.marron.html"]

{"sheet":"Mammiferes","index":1,"n_rows":19,"n_cols":12,"rows_kept":19,"cut":false,"hidden":false,"merged":[]}
["Français","Autre (Fr)","Male (Fr)","Femellle (Fr)","Jeune (Fr)","Vernaculaire","Anglais","Male (En)","Femelle (En)","Famille","Liens (fr)","Liens (en)"]
[]
["Blaireau européen","Blaireau commun","Blaireau","Blairelle","Blaireautin","Meles meles","European badger",null,null,"Mustelidae","https://fr.wikipedia.org/wiki/Blaireau_européen","https://en.wikipedia.org/wiki/European_badger"]
["Bouquetin des alpes",null,"Bouc","Etagne","Eterlou,Cabri","Capra ibex","Alpine ibex",null,null,"Bovidae","https://fr.wikipedia.org/wiki/Bouquetin_des_Alpes","https://en.wikipedia.org/wiki/Alpine_ibex"]
["Castor"]
["Cerf élaphe",null,"Cerf","Biche","Daguet,Bichette,Here,Faon","Cervus elaphus","Red deer","Stag","Doe","Cervidae","https://fr.wikipedia.org/wiki/Cerf_élaphe","https://en.wikipedia.org/wiki/Red_deer"]
["Chamois",null,"Bouc","Chèvre","Eterlou,Cabri","Rupicapra rupicapra","Alpine chamois",null,null,"Bovidae","https://fr.wikipedia.org/wiki/Chamois","https://en.wikipedia.org/wiki/Chamois"]
["Chat forestier","Chat sauvage",null,null,null,"Felis silvestris","European wildcat",null,null,"Felidae","https://fr.wikipedia.org/wiki/Felis_silvestris","https://en.wikipedia.org/wiki/European_wildcat"]
["Chevreuil",null,"Brocard","Chevrette","Chevrillard,Faon","Capreolus capreolus","Roe deer","Roebuck",null,"Cervidae","https://fr.wikipedia.org/wiki/Chevreuil_d%27Europe","https://en.wikipedia.org/wiki/Roe_deer"]
["Ecureuil roux","Ecureuil d'Eurasie",null,null,null,"Sciurus vulgaris",null,null,null,"Sciuridae","https://fr.wikipedia.org/wiki/Écureuil_roux"]
["Hermine",null,null,null,null,"Mustela erminea",null,null,null,"Mustelidae","https://fr.wikipedia.org/wiki/Hermine"]
["Lapin de garenne","Lapin commun",null,null,null,"Oryctolagus cuniculus",null,null,null,"Leporidae","https://fr.wikipedia.org/wiki/Oryctolagus_cuniculus"]
["Lièvre d'europe","Lièvre brun",null,"Hase","Levreau","Lepus euopaneus",null,null,null,"Leporidae","https://fr.wikipedia.org/wiki/Lièvre_d%27Europe"]
["Loutre d'europe",null,null,null,"Loutron","Lutra lutra",null,null,null,"Mustelidae","https://fr.wikipedia.org/wiki/Loutre_d%27Europe"]
["Marmotte des Alpes",null,null,null,"Marmotton","Marmota marmota",null,null,null,"Sciuridae","https://fr.wikipedia.org/wiki/Marmota_marmota"]
["Martre des pins",null,null,null,null,"Martes martes","European pine marten",null,null,"Mustelidae","https://fr.wikipedia.org/wiki/Martre_des_pins","https://en.wikipedia.org/wiki/European_pine_marten"]
["Ragondin",null,null,null,null,"Myocastor coypus",null,null,null,"Myocastoridae","https://fr.wikipedia.org/wiki/Ragondin"]
["Renard roux","Goupil","Renard","Renarde","Renardeau","Vulpes vulpes","Red fox",null,null,"Canidae","https://fr.wikipedia.org/wiki/Renard_roux","https://en.wikipedia.org/wiki/Red_fox"]
["Sanglier",null,null,"Laie","Marcassin","Sus crofa","Wild boar",null,null,"Suidé","https://fr.wikipedia.org/wiki/Sanglier","https://en.wikipedia.org/wiki/Wild_boar"]